{"text_format":"1","workbook":"xlsx","n_sheets":2,"sheets":["download page","Main"],"not_rendered":{"charts":0,"images":0,"macros":1,"external_links":0,"defined_names":25,"comments":0,"pivot_tables":0},"unopened":[],"bounds":{"document_bytes":16777216,"sheet_cells":100000,"rows_first":2000,"rows_last":500,"rows_between":2000,"halvings":0,"cell_chars":16384,"cell_head_chars":4096},"cells_cut":0,"cells_raw":0,"read":"whole","date_system":"1900"}

{"sheet":"download page","index":0,"n_rows":15,"n_cols":7,"rows_kept":15,"cut":false,"hidden":true,"merged":[]}
[]
[]
[" Annual Returns"]
[]
[null,null,2012,2011,2010,2009,2008]
[]
["Fund Return",null,33.68,-14.76,29.99,"--","--"]
[]
["Rank In Category",null,"15/37","1936-01-01","1937-01-01","--","--"]
[]
["Category Average",null,31.25,-23.82,18.78,81.790000000000006,-55.56]
[]
["S&P BSE Sensex",null,25.7,-24.64,17.43,81.03,-52.45]
[]
["CNX Nifty ",null,27.7,-24.62,17.95,75.760000000000005,-51.79]

{"sheet":"Main","index":1,"n_rows":750,"n_cols":28,"rows_kept":750,"cut":false,"hidden":false,"merged":[[24,3,24,4],[25,3,25,4],[26,3,26,4],[27,3,27,4],[28,3,28,4],[26,1,26,2],[27,1,27,2],[28,1,28,2],[24,1,24,2],[25,1,25,2],[20,0,20,3],[17,0,17,4],[0,0,0,9],[18,0,18,3],[19,0,19,3],[2,0,2,3],[1,0,1,9],[2,4,2,9]]}
["Mutual Fund Performance Analyzer Lite Version 1.0",null,null,null,null,null,null,null,null,null,null,null,null,null,{"$f":"INDEX(L2:M750,MATCH(AB3,L2:L750,0),2)","v":{"$error":"#N/A"}},null,"wrt cat avg",{"$f":"IF(VALUE(B8)>B12,1,0)","v":1},{"$f":"IF(VALUE(C8)>C12,1,0)","v":1},1,{"$error":"#VALUE!"},{"$error":"#VALUE!"},null,{"$f":"SUM(R1:V1)","v":{"$error":"#VALUE!"}},null,null,{"$f":"COUNTIF(Z2:Z749,\"?*\")","v":28}]
["Type the first few letters of the MF scheme you need in the green area. Then select the scheme you need",null,null,null,null,null,null,null,null,null,{"$f":"IF(ISNUMBER(SEARCH($E$3,L2)),MAX($K$1,K1)+1,0)","v":0},"Axis Equity",10780,null,null,null,"wrt sensex",{"$f":"IF(VALUE(B8)>B14,1,0)","v":1},{"$f":"IF(VALUE(C8)>C14,1,0)","v":1},1,{"$error":"#VALUE!"},{"$error":"#VALUE!"},null,{"$f":"SUM(R2:V2)","v":{"$error":"#VALUE!"}},null,{"$f":"IFERROR(VLOOKUP(ROWS($Z$2:Z2),K2:L750,2,0),\"\")","v":"HDFC Capital Builder"},{"$f":"OFFSET(Z2,,,COUNTIF($Z$2:$Z$749,\"?*\"),)","v":"HDFC Capital Builder"}]
["from the drop-down list in the same area",null,null,null,"hdfc",null,null,null,null,null,{"$f":"IF(ISNUMBER(SEARCH($E$3,L3)),MAX($K$1,K2)+1,0)","v":0},"Axis Equity Direct",15682,null,null,null,"wrt Nifty",{"$f":"IF(VALUE(B8)>B16,1,0)","v":1},{"$f":"IF(VALUE(C8)>C16,1,0)","v":1},1,{"$error":"#VALUE!"},{"$error":"#VALUE!"},null,{"$f":"SUM(R3:V3)","v":{"$error":"#VALUE!"}},null,{"$f":"IFERROR(VLOOKUP(ROWS($Z$2:Z3),K3:L751,2,0),\"\")","v":"HDFC Capital Builder Direct"},null,{"$f":"E3","v":"hdfc"}]
[null,null,null,null,null,null,null,null,null,null,{"$f":"IF(ISNUMBER(SEARCH($E$3,L4)),MAX($K$1,K3)+1,0)","v":0},"Axis Focused 25",14951,null,null,null,null,{"$f":"SUM(R1:R3)","v":3},{"$f":"SUM(S1:S3)","v":3},{"$f":"SUM(T1:T3)","v":3},{"$f":"SUM(U1:U3)","v":{"$error":"#VALUE!"}},{"$f":"SUM(V1:V3)","v":{"$error":"#VALUE!"}},null,null,null,{"$f":"IFERROR(VLOOKUP(ROWS($Z$2:Z4),K4:L752,2,0),\"\")","v":"HDFC Core & Satellite"}]
[null,null,null,null,null,null,null,null,null,null,{"$f":"IF(ISNUMBER(SEARCH($E$3,L5)),MAX($K$1,K4)+1,0)","v":0},"Axis Focused 25 Direct",15684,null,null,null,null,null,null,null,null,null,null,null,null,{"$f":"IFERROR(VLOOKUP(ROWS($Z$2:Z5),K5:L753,2,0),\"\")","v":"HDFC Core & Satellite Direct"}]
[" Annual Returns",{"$f":"'download page'!C5","v":2012},{"$f":"'download page'!D5","v":2011},{"$f":"'download page'!E5","v":2010},{"$f":"'download page'!F5","v":2009},{"$f":"'download page'!G5","v":2008},null,null,null,null,{"$f":"IF(ISNUMBER(SEARCH($E$3,L6)),MAX($K$1,K5)+1,0)","v":0},"Axis Long Term Equity",10826,null,null,null,null,null,null,null,null,null,null,null,null,{"$f":"IFERROR(VLOOKUP(ROWS($Z$2:Z6),K6:L754,2,0),\"\")","v":"HDFC Equity"}]
[null,null,null,null,null,null,null,null,null,null,{"$f":"IF(ISNUMBER(SEARCH($E$3,L7)),MAX($K$1,K6)+1,0)","v":0},"Axis Long Term Equity Direct",15688,null,null,null,null,null,null,null,null,null,null,null,null,{"$f":"IFERROR(VLOOKUP(ROWS($Z$2:Z7),K7:L755,2,0),\"\")","v":"HDFC Equity Direct"}]
[{"$f":"'download page'!A7","v":"Fund Return"},{"$f":"'download page'!C7","v":33.68},{"$f":"'download page'!D7","v":-14.76},{"$f":"'download page'!E7","v":29.99},{"$f":"'download page'!F7","v":"--"},{"$f":"'download page'!G7","v":"--"},null,null,null,null,{"$f":"IF(ISNUMBER(SEARCH($E$3,L8)),MAX($K$1,K7)+1,0)","v":0},"Axis Midcap",12052,null,null,null,null,null,null,null,null,null,null,null,null,{"$f":"IFERROR(VLOOKUP(ROWS($Z$2:Z8),K8:L756,2,0),\"\")","v":"HDFC Focused Large Cap"}]
[null,null,null,null,null,null,null,null,null,null,{"$f":"IF(ISNUMBER(SEARCH($E$3,L9)),MAX($K$1,K8)+1,0)","v":0},"Axis Midcap Direct",15690,null,null,null,null,null,null,null,null,null,null,null,null,{"$f":"IFERROR(VLOOKUP(ROWS($Z$2:Z9),K9:L757,2,0),\"\")","v":"HDFC Focused Large Cap Direct"}]
[{"$f":"'download page'!A9","v":"Rank In Category"},{"$f":"IF(ISERROR(MONTH('download page'!C9)),'download page'!C9,CONCATENATE(MONTH('download page'!C9),\"/\",YEAR('download page'!C9)-1900))","v":"15/37"},{"$f":"IF(ISERROR(MONTH('download page'!D9)),'download page'!D9,CONCATENATE(MONTH('download page'!D9),\"/\",YEAR('download page'!D9)-1900))","v":"1/36"},{"$f":"IF(ISERROR(MONTH('download page'!E9)),'download page'!E9,CONCATENATE(MONTH('download page'!E9),\"/\",YEAR('download page'!E9)-1900))","v":"1/37"},{"$f":"IF(ISERROR(MONTH('download page'!F9)),'download page'!F9,CONCATENATE(MONTH('download page'!F9),\"/\",YEAR('download page'!F9)-1900))","v":"--"},{"$f":"IF(ISERROR(MONTH('download page'!G9)),'download page'!G9,CONCATENATE(MONTH('download page'!G9),\"/\",YEAR('download page'!G9)-1900))","v":"--"},null,null,null,null,{"$f":"IF(ISNUMBER(SEARCH($E$3,L10)),MAX($K$1,K9)+1,0)","v":0},"Baroda Pioneer Banking and Financial Services",14946,null,null,null,null,null,null,null,null,null,null,null,null,{"$f":"IFERROR(VLOOKUP(ROWS($Z$2:Z10),K10:L758,2,0),\"\")","v":"HDFC Growth"}]
[null,null,null,null,null,null,null,null,null,null,{"$f":"IF(ISNUMBER(SEARCH($E$3,L11)),MAX($K$1,K10)+1,0)","v":0},"Baroda Pioneer Banking and Financial Services Direct",15698,null,null,null,null,null,null,null,null,null,null,null,null,{"$f":"IFERROR(VLOOKUP(ROWS($Z$2:Z11),K11:L759,2,0),\"\")","v":"HDFC Growth Direct"}]
[{"$f":"'download page'!A11","v":"Category Average"},{"$f":"'download page'!C11","v":31.25},{"$f":"'download page'!D11","v":-23.82},{"$f":"'download page'!E11","v":18.78},{"$f":"'download page'!F11","v":81.790000000000006},{"$f":"'download page'!G11","v":-55.56},null,null,null,null,{"$f":"IF(ISNUMBER(SEARCH($E$3,L12)),MAX($K$1,K11)+1,0)","v":0},"Baroda Pioneer ELSS 96",32,null,null,null,null,null,null,null,null,null,null,null,null,{"$f":"IFERROR(VLOOKUP(ROWS($Z$2:Z12),K12:L760,2,0),\"\")","v":"HDFC Index Nifty"}]
[null,null,null,null,null,null,null,null,null,null,{"$f":"IF(ISNUMBER(SEARCH($E$3,L13)),MAX($K$1,K12)+1,0)","v":0},"Baroda Pioneer ELSS 96 Direct",17119,null,null,null,null,null,null,null,null,null,null,null,null,{"$f":"IFERROR(VLOOKUP(ROWS($Z$2:Z13),K13:L761,2,0),\"\")","v":"HDFC Index Nifty Direct"}]
[{"$f":"'download page'!A13","v":"S&P BSE Sensex"},{"$f":"'download page'!C13","v":25.7},{"$f":"'download page'!D13","v":-24.64},{"$f":"'download page'!E13","v":17.43},{"$f":"'download page'!F13","v":81.03},{"$f":"'download page'!G13","v":-52.45},null,null,null,null,{"$f":"IF(ISNUMBER(SEARCH($E$3,L14)),MAX($K$1,K13)+1,0)","v":0},"Baroda Pioneer Growth",1820,null,null,null,null,null,null,null,null,null,null,null,null,{"$f":"IFERROR(VLOOKUP(ROWS($Z$2:Z14),K14:L762,2,0),\"\")","v":"HDFC Index Sensex"}]
[null,null,null,null,null,null,null,null,null,null,{"$f":"IF(ISNUMBER(SEARCH($E$3,L15)),MAX($K$1,K14)+1,0)","v":0},"Baroda Pioneer Growth Direct",15707,null,null,null,null,null,null,null,null,null,null,null,null,{"$f":"IFERROR(VLOOKUP(ROWS($Z$2:Z15),K15:L763,2,0),\"\")","v":"HDFC Index Sensex Direct"}]
[{"$f":"'download page'!A15","v":"CNX Nifty "},{"$f":"'download page'!C15","v":27.7},{"$f":"'download page'!D15","v":-24.62},{"$f":"'download page'!E15","v":17.95},{"$f":"'download page'!F15","v":75.760000000000005},{"$f":"'download page'!G15","v":-51.79},null,null,null,null,{"$f":"IF(ISNUMBER(SEARCH($E$3,L16)),MAX($K$1,K15)+1,0)","v":0},"Baroda Pioneer Infrastructure",11194,null,null,null,null,null,null,null,null,null,null,null,null,{"$f":"IFERROR(VLOOKUP(ROWS($Z$2:Z16),K16:L764,2,0),\"\")","v":"HDFC Index Sensex Plus"}]
[null,null,null,null,null,null,null,null,null,null,{"$f":"IF(ISNUMBER(SEARCH($E$3,L17)),MAX($K$1,K16)+1,0)","v":0},"Baroda Pioneer Infrastructure Direct",15766,null,null,null,null,null,null,null,null,null,null,null,null,{"$f":"IFERROR(VLOOKUP(ROWS($Z$2:Z17),K17:L765,2,0),\"\")","v":"HDFC Index Sensex Plus Direct"}]
["Performance in the last 5 years",null,null,null,null,"Click to view Fund Page at VR Online",null,null,null,null,{"$f":"IF(ISNUMBER(SEARCH($E$3,L18)),MAX($K$1,K17)+1,0)","v":0},"Baroda Pioneer PSU Equity",11534,null,null,null,null,null,null,null,null,null,null,null,null,{"$f":"IFERROR(VLOOKUP(ROWS($Z$2:Z18),K18:L766,2,0),\"\")","v":"HDFC Infrastructure"}]
["Outperformance wrt category average",null,null,null,{"$f":"IF(ISERR(X1),\"NA\",CONCATENATE(X1,\"/\",5,\" Years\"))","v":"NA"},null,null,null,null,null,{"$f":"IF(ISNUMBER(SEARCH($E$3,L19)),MAX($K$1,K18)+1,0)","v":0},"Baroda Pioneer PSU Equity Direct",15783,null,null,null,null,null,null,null,null,null,null,null,null,{"$f":"IFERROR(VLOOKUP(ROWS($Z$2:Z19),K19:L767,2,0),\"\")","v":"HDFC Infrastructure Direct"}]
["Outperformance wrt Sensex",null,null,null,{"$f":"IF(ISERR(X2),\"NA\",CONCATENATE(X2,\"/\",5,\" Years\"))","v":"NA"},null,null,null,null,null,{"$f":"IF(ISNUMBER(SEARCH($E$3,L20)),MAX($K$1,K19)+1,0)","v":0},"Birla Sun Life Advantage",27,null,null,null,null,null,null,null,null,null,null,null,null,{"$f":"IFERROR(VLOOKUP(ROWS($Z$2:Z20),K20:L768,2,0),\"\")","v":"HDFC LT Advantage"}]
["Outperformance wrt Nifty",null,null,null,{"$f":"IF(ISERR(X3),\"NA\",CONCATENATE(X3,\"/\",5,\" Years\"))","v":"NA"},null,null,"",null,null,{"$f":"IF(ISNUMBER(SEARCH($E$3,L21)),MAX($K$1,K20)+1,0)","v":0},"Birla Sun Life Advantage Direct",15697,null,null,null,null,null,null,null,null,null,null,null,null,{"$f":"IFERROR(VLOOKUP(ROWS($Z$2:Z21),K21:L769,2,0),\"\")","v":"HDFC LT Advantage Direct"}]
[null,null,null,null,null,null,null,null,null,null,{"$f":"IF(ISNUMBER(SEARCH($E$3,L22)),MAX($K$1,K21)+1,0)","v":0},"Birla Sun Life Asset Allocation Aggressive",2049,null,null,null,null,null,null,null,null,null,null,null,null,{"$f":"IFERROR(VLOOKUP(ROWS($Z$2:Z22),K22:L770,2,0),\"\")","v":"HDFC Mid-Cap Opportunities"}]
["If funds return is higher than Sensex, Nifty and category average the cell turns green",null,null,null,null,null,null,null,null,null,{"$f":"IF(ISNUMBER(SEARCH($E$3,L23)),MAX($K$1,K22)+1,0)","v":0},"Birla Sun Life Asset Allocation Aggressive Direct",15704,null,null,null,null,null,null,null,null,null,null,null,null,{"$f":"IFERROR(VLOOKUP(ROWS($Z$2:Z23),K23:L771,2,0),\"\")","v":"HDFC Mid-Cap Opportunities Direct"}]
[null,null,null,null,null,null,null,null,null,null,{"$f":"IF(ISNUMBER(SEARCH($E$3,L24)),MAX($K$1,K23)+1,0)","v":0},"Birla Sun Life Buy India",726,null,null,null,null,null,null,null,null,null,null,null,null,{"$f":"IFERROR(VLOOKUP(ROWS($Z$2:Z24),K24:L772,2,0),\"\")","v":"HDFC Premier Multi-Cap"}]
["Effective CAGR","Last 3 years",null,"Last 5 years",null,null,null,null,null,null,{"$f":"IF(ISNUMBER(SEARCH($E$3,L25)),MAX($K$1,K24)+1,0)","v":0},"Birla Sun Life Buy India Direct",15881,null,null,null,null,null,null,null,null,null,null,null,null,{"$f":"IFERROR(VLOOKUP(ROWS($Z$2:Z25),K25:L773,2,0),\"\")","v":"HDFC Premier Multi-Cap Direct"}]
["Fund",{"$f":"((1+B8)*(1+C8)*(1+D8))^(1/3)-1","v":-25.545564980752662},null,{"$f":"IF(ISERROR(((1+B8)*(1+C8)*(1+D8)*(1+E8)*(1+F8))^(1/5)-1),\"\",((1+B8)*(1+C8)*(1+D8)*(1+E8)*(1+F8))^(1/5)-1)","v":""},null,null,null,null,null,null,{"$f":"IF(ISNUMBER(SEARCH($E$3,L26)),MAX($K$1,K25)+1,0)","v":0},"Birla Sun Life Commodity Equities - Global Agri",9316,null,null,null,null,null,null,null,null,null,null,null,null,{"$f":"IFERROR(VLOOKUP(ROWS($Z$2:Z26),K26:L774,2,0),\"\")","v":"HDFC Taxsaver"}]
[{"$f":"A12","v":"Category Average"},{"$f":"((1+B12)*(1+C12)*(1+D12))^(1/3)-1","v":-25.416901362284651},null,{"$f":"((1+B12)*(1+C12)*(1+D12)*(1+E12)*(1+F12))^(1/5)-1","v":35.60873970703387},null,null,null,null,null,null,{"$f":"IF(ISNUMBER(SEARCH($E$3,L27)),MAX($K$1,K26)+1,0)","v":0},"Birla Sun Life Commodity Equities - Global Agri Direct",15805,null,null,null,null,null,null,null,null,null,null,null,null,{"$f":"IFERROR(VLOOKUP(ROWS($Z$2:Z27),K27:L775,2,0),\"\")","v":"HDFC Taxsaver Direct"}]
[{"$f":"A14","v":"S&P BSE Sensex"},{"$f":"((1+B14)*(1+C14)*(1+D14))^(1/3)-1","v":-23.658336536274454},null,{"$f":"((1+B14)*(1+C14)*(1+D14)*(1+E14)*(1+F14))^(1/5)-1","v":33.530942467161381},null,null,null,null,null,null,{"$f":"IF(ISNUMBER(SEARCH($E$3,L28)),MAX($K$1,K27)+1,0)","v":0},"Birla Sun Life Dividend Yield Plus",1530,null,null,null,null,null,null,null,null,null,null,null,null,{"$f":"IFERROR(VLOOKUP(ROWS($Z$2:Z28),K28:L776,2,0),\"\")","v":"HDFC Top 200"}]
[{"$f":"A16","v":"CNX Nifty "},{"$f":"((1+B16)*(1+C16)*(1+D16))^(1/3)-1","v":-24.420185725665306},null,{"$f":"((1+B16)*(1+C16)*(1+D16)*(1+E16)*(1+F16))^(1/5)-1","v":33.668642505608339},null,null,null,null,null,null,{"$f":"IF(ISNUMBER(SEARCH($E$3,L29)),MAX($K$1,K28)+1,0)","v":0},"Birla Sun Life Dividend Yield Plus Direct",15813,null,null,null,null,null,null,null,null,null,null,null,null,{"$f":"IFERROR(VLOOKUP(ROWS($Z$2:Z29),K29:L777,2,0),\"\")","v":"HDFC Top 200 Direct"}]
[null,null,null,null,null,null,null,null,null,null,{"$f":"IF(ISNUMBER(SEARCH($E$3,L30)),MAX($K$1,K29)+1,0)","v":0},"Birla Sun Life Equity",561,null,null,null,null,null,null,null,null,null,null,null,null,{"$f":"IFERROR(VLOOKUP(ROWS($Z$2:Z30),K30:L778,2,0),\"\")","v":""}]
[null,null,null,null,null,null,null,null,null,null,{"$f":"IF(ISNUMBER(SEARCH($E$3,L31)),MAX($K$1,K30)+1,0)","v":0},"Birla Sun Life Equity Direct",15741,null,null,null,null,null,null,null,null,null,null,null,null,{"$f":"IFERROR(VLOOKUP(ROWS($Z$2:Z31),K31:L779,2,0),\"\")","v":""}]
[null,null,null,null,null,null,null,null,null,null,{"$f":"IF(ISNUMBER(SEARCH($E$3,L32)),MAX($K$1,K31)+1,0)","v":0},"Birla Sun Life Frontline Equity",1400,null,null,null,null,null,null,null,null,null,null,null,null,{"$f":"IFERROR(VLOOKUP(ROWS($Z$2:Z32),K32:L780,2,0),\"\")","v":""}]
[null,null,null,null,null,null,null,null,null,null,{"$f":"IF(ISNUMBER(SEARCH($E$3,L33)),MAX($K$1,K32)+1,0)","v":0},"Birla Sun Life Frontline Equity Direct",15831,null,null,null,null,null,null,null,null,null,null,null,null,{"$f":"IFERROR(VLOOKUP(ROWS($Z$2:Z33),K33:L781,2,0),\"\")","v":""}]
[null,null,null,null,null,null,null,null,null,null,{"$f":"IF(ISNUMBER(SEARCH($E$3,L34)),MAX($K$1,K33)+1,0)","v":0},"Birla Sun Life Index",1445,null,null,null,null,null,null,null,null,null,null,null,null,{"$f":"IFERROR(VLOOKUP(ROWS($Z$2:Z34),K34:L782,2,0),\"\")","v":""}]
[null,null,null,null,null,null,null,null,null,null,{"$f":"IF(ISNUMBER(SEARCH($E$3,L35)),MAX($K$1,K34)+1,0)","v":0},"Birla Sun Life Index Direct",15769,null,null,null,null,null,null,null,null,null,null,null,null,{"$f":"IFERROR(VLOOKUP(ROWS($Z$2:Z35),K35:L783,2,0),\"\")","v":""}]
[null,null,null,null,null,null,null,null,null,null,{"$f":"IF(ISNUMBER(SEARCH($E$3,L36)),MAX($K$1,K35)+1,0)","v":0},"Birla Sun Life India GenNext",2787,null,null,null,null,null,null,null,null,null,null,null,null,{"$f":"IFERROR(VLOOKUP(ROWS($Z$2:Z36),K36:L784,2,0),\"\")","v":""}]
[null,null,null,null,null,null,null,null,null,null,{"$f":"IF(ISNUMBER(SEARCH($E$3,L37)),MAX($K$1,K36)+1,0)","v":0},"Birla Sun Life India GenNext Direct",15834,null,null,null,null,null,null,null,null,null,null,null,null,{"$f":"IFERROR(VLOOKUP(ROWS($Z$2:Z37),K37:L785,2,0),\"\")","v":""}]
[null,null,null,null,null,null,null,null,null,null,{"$f":"IF(ISNUMBER(SEARCH($E$3,L38)),MAX($K$1,K37)+1,0)","v":0},"Birla Sun Life India Opportunities",1824,null,null,null,null,null,null,null,null,null,null,null,null,{"$f":"IFERROR(VLOOKUP(ROWS($Z$2:Z38),K38:L786,2,0),\"\")","v":""}]
[null,null,null,null,null,null,null,null,null,null,{"$f":"IF(ISNUMBER(SEARCH($E$3,L39)),MAX($K$1,K38)+1,0)","v":0},"Birla Sun Life India Opportunities Direct",15901,null,null,null,null,null,null,null,null,null,null,null,null,{"$f":"IFERROR(VLOOKUP(ROWS($Z$2:Z39),K39:L787,2,0),\"\")","v":""}]
[null,null,null,null,null,null,null,null,null,null,{"$f":"IF(ISNUMBER(SEARCH($E$3,L40)),MAX($K$1,K39)+1,0)","v":0},"Birla Sun Life India Reforms",11196,null,null,null,null,null,null,null,null,null,null,null,null,{"$f":"IFERROR(VLOOKUP(ROWS($Z$2:Z40),K40:L788,2,0),\"\")","v":""}]
[null,null,null,null,null,null,null,null,null,null,{"$f":"IF(ISNUMBER(SEARCH($E$3,L41)),MAX($K$1,K40)+1,0)","v":0},"Birla Sun Life India Reforms Direct",15837,null,null,null,null,null,null,null,null,null,null,null,null,{"$f":"IFERROR(VLOOKUP(ROWS($Z$2:Z41),K41:L789,2,0),\"\")","v":""}]
[null,null,null,null,null,null,null,null,null,null,{"$f":"IF(ISNUMBER(SEARCH($E$3,L42)),MAX($K$1,K41)+1,0)","v":0},"Birla Sun Life Infrastructure",3161,null,null,null,null,null,null,null,null,null,null,null,null,{"$f":"IFERROR(VLOOKUP(ROWS($Z$2:Z42),K42:L790,2,0),\"\")","v":""}]
[null,null,null,null,null,null,null,null,null,null,{"$f":"IF(ISNUMBER(SEARCH($E$3,L43)),MAX($K$1,K42)+1,0)","v":0},"Birla Sun Life Infrastructure Direct",15846,null,null,null,null,null,null,null,null,null,null,null,null,{"$f":"IFERROR(VLOOKUP(ROWS($Z$2:Z43),K43:L791,2,0),\"\")","v":""}]
[null,null,null,null,null,null,null,null,null,null,{"$f":"IF(ISNUMBER(SEARCH($E$3,L44)),MAX($K$1,K43)+1,0)","v":0},"Birla Sun Life International Equity Plan A",5802,null,null,null,null,null,null,null,null,null,null,null,null,{"$f":"IFERROR(VLOOKUP(ROWS($Z$2:Z44),K44:L792,2,0),\"\")","v":""}]
[null,null,null,null,null,null,null,null,null,null,{"$f":"IF(ISNUMBER(SEARCH($E$3,L45)),MAX($K$1,K44)+1,0)","v":0},"Birla Sun Life International Equity Plan A Direct",15903,null,null,null,null,null,null,null,null,null,null,null,null,{"$f":"IFERROR(VLOOKUP(ROWS($Z$2:Z45),K45:L793,2,0),\"\")","v":""}]
[null,null,null,null,null,null,null,null,null,null,{"$f":"IF(ISNUMBER(SEARCH($E$3,L46)),MAX($K$1,K45)+1,0)","v":0},"Birla Sun Life International Equity Plan B",5804,null,null,null,null,null,null,null,null,null,null,null,null,{"$f":"IFERROR(VLOOKUP(ROWS($Z$2:Z46),K46:L794,2,0),\"\")","v":""}]
[null,null,null,null,null,null,null,null,null,null,{"$f":"IF(ISNUMBER(SEARCH($E$3,L47)),MAX($K$1,K46)+1,0)","v":0},"Birla Sun Life International Equity Plan B Direct",15905,null,null,null,null,null,null,null,null,null,null,null,null,{"$f":"IFERROR(VLOOKUP(ROWS($Z$2:Z47),K47:L795,2,0),\"\")","v":""}]
[null,null,null,null,null,null,null,null,null,null,{"$f":"IF(ISNUMBER(SEARCH($E$3,L48)),MAX($K$1,K47)+1,0)","v":0},"Birla Sun Life Long Term Advantage",3590,null,null,null,null,null,null,null,null,null,null,null,null,{"$f":"IFERROR(VLOOKUP(ROWS($Z$2:Z48),K48:L796,2,0),\"\")","v":""}]
[null,null,null,null,null,null,null,null,null,null,{"$f":"IF(ISNUMBER(SEARCH($E$3,L49)),MAX($K$1,K48)+1,0)","v":0},"Birla Sun Life Long Term Advantage Direct",15908,null,null,null,null,null,null,null,null,null,null,null,null,{"$f":"IFERROR(VLOOKUP(ROWS($Z$2:Z49),K49:L797,2,0),\"\")","v":""}]
[null,null,null,null,null,null,null,null,null,null,{"$f":"IF(ISNUMBER(SEARCH($E$3,L50)),MAX($K$1,K49)+1,0)","v":0},"Birla Sun Life Mid Cap",1439,null,null,null,null,null,null,null,null,null,null,null,null,{"$f":"IFERROR(VLOOKUP(ROWS($Z$2:Z50),K50:L798,2,0),\"\")","v":""}]
[null,null,null,null,null,null,null,null,null,null,{"$f":"IF(ISNUMBER(SEARCH($E$3,L51)),MAX($K$1,K50)+1,0)","v":0},"Birla Sun Life Mid Cap Direct",15870,null,null,null,null,null,null,null,null,null,null,null,null,{"$f":"IFERROR(VLOOKUP(ROWS($Z$2:Z51),K51:L799,2,0),\"\")","v":""}]
[null,null,null,null,null,null,null,null,null,null,{"$f":"IF(ISNUMBER(SEARCH($E$3,L52)),MAX($K$1,K51)+1,0)","v":0},"Birla Sun Life MNC",787,null,null,null,null,null,null,null,null,null,null,null,null,{"$f":"IFERROR(VLOOKUP(ROWS($Z$2:Z52),K52:L800,2,0),\"\")","v":""}]
[null,null,null,null,null,null,null,null,null,null,{"$f":"IF(ISNUMBER(SEARCH($E$3,L53)),MAX($K$1,K52)+1,0)","v":0},"Birla Sun Life MNC Direct",15872,null,null,null,null,null,null,null,null,null,null,null,null,{"$f":"IFERROR(VLOOKUP(ROWS($Z$2:Z53),K53:L801,2,0),\"\")","v":""}]
[null,null,null,null,null,null,null,null,null,null,{"$f":"IF(ISNUMBER(SEARCH($E$3,L54)),MAX($K$1,K53)+1,0)","v":0},"Birla Sun Life New Millennium",727,null,null,null,null,null,null,null,null,null,null,null,null,{"$f":"IFERROR(VLOOKUP(ROWS($Z$2:Z54),K54:L802,2,0),\"\")","v":""}]
[null,null,null,null,null,null,null,null,null,null,{"$f":"IF(ISNUMBER(SEARCH($E$3,L55)),MAX($K$1,K54)+1,0)","v":0},"Birla Sun Life New Millennium Direct",15878,null,null,null,null,null,null,null,null,null,null,null,null,{"$f":"IFERROR(VLOOKUP(ROWS($Z$2:Z55),K55:L803,2,0),\"\")","v":""}]
[null,null,null,null,null,null,null,null,null,null,{"$f":"IF(ISNUMBER(SEARCH($E$3,L56)),MAX($K$1,K55)+1,0)","v":0},"Birla Sun Life Nifty ETF",13012,null,null,null,null,null,null,null,null,null,null,null,null,{"$f":"IFERROR(VLOOKUP(ROWS($Z$2:Z56),K56:L804,2,0),\"\")","v":""}]
[null,null,null,null,null,null,null,null,null,null,{"$f":"IF(ISNUMBER(SEARCH($E$3,L57)),MAX($K$1,K56)+1,0)","v":0},"Birla Sun Life Pure Value",6778,null,null,null,null,null,null,null,null,null,null,null,null,{"$f":"IFERROR(VLOOKUP(ROWS($Z$2:Z57),K57:L805,2,0),\"\")","v":""}]
[null,null,null,null,null,null,null,null,null,null,{"$f":"IF(ISNUMBER(SEARCH($E$3,L58)),MAX($K$1,K57)+1,0)","v":0},"Birla Sun Life Pure Value Direct",15879,null,null,null,null,null,null,null,null,null,null,null,null,{"$f":"IFERROR(VLOOKUP(ROWS($Z$2:Z58),K58:L806,2,0),\"\")","v":""}]
[null,null,null,null,null,null,null,null,null,null,{"$f":"IF(ISNUMBER(SEARCH($E$3,L59)),MAX($K$1,K58)+1,0)","v":0},"Birla Sun Life Small & Midcap",5006,null,null,null,null,null,null,null,null,null,null,null,null,{"$f":"IFERROR(VLOOKUP(ROWS($Z$2:Z59),K59:L807,2,0),\"\")","v":""}]
[null,null,null,null,null,null,null,null,null,null,{"$f":"IF(ISNUMBER(SEARCH($E$3,L60)),MAX($K$1,K59)+1,0)","v":0},"Birla Sun Life Small & Midcap Direct",15935,null,null,null,null,null,null,null,null,null,null,null,null,{"$f":"IFERROR(VLOOKUP(ROWS($Z$2:Z60),K60:L808,2,0),\"\")","v":""}]
[null,null,null,null,null,null,null,null,null,null,{"$f":"IF(ISNUMBER(SEARCH($E$3,L61)),MAX($K$1,K60)+1,0)","v":0},"Birla Sun Life Special Situations",6550,null,null,null,null,null,null,null,null,null,null,null,null,{"$f":"IFERROR(VLOOKUP(ROWS($Z$2:Z61),K61:L809,2,0),\"\")","v":""}]
[null,null,null,null,null,null,null,null,null,null,{"$f":"IF(ISNUMBER(SEARCH($E$3,L62)),MAX($K$1,K61)+1,0)","v":0},"Birla Sun Life Special Situations Direct",15892,null,null,null,null,null,null,null,null,null,null,null,null,{"$f":"IFERROR(VLOOKUP(ROWS($Z$2:Z62),K62:L810,2,0),\"\")","v":""}]
[null,null,null,null,null,null,null,null,null,null,{"$f":"IF(ISNUMBER(SEARCH($E$3,L63)),MAX($K$1,K62)+1,0)","v":0},"Birla Sun Life Tax Plan",590,null,null,null,null,null,null,null,null,null,null,null,null,{"$f":"IFERROR(VLOOKUP(ROWS($Z$2:Z63),K63:L811,2,0),\"\")","v":""}]
[null,null,null,null,null,null,null,null,null,null,{"$f":"IF(ISNUMBER(SEARCH($E$3,L64)),MAX($K$1,K63)+1,0)","v":0},"Birla Sun Life Tax Plan Direct",15886,null,null,null,null,null,null,null,null,null,null,null,null,{"$f":"IFERROR(VLOOKUP(ROWS($Z$2:Z64),K64:L812,2,0),\"\")","v":""}]
[null,null,null,null,null,null,null,null,null,null,{"$f":"IF(ISNUMBER(SEARCH($E$3,L65)),MAX($K$1,K64)+1,0)","v":0},"Birla Sun Life Tax Relief 96",24,null,null,null,null,null,null,null,null,null,null,null,null,{"$f":"IFERROR(VLOOKUP(ROWS($Z$2:Z65),K65:L813,2,0),\"\")","v":""}]
[null,null,null,null,null,null,null,null,null,null,{"$f":"IF(ISNUMBER(SEARCH($E$3,L66)),MAX($K$1,K65)+1,0)","v":0},"Birla Sun Life Tax Relief 96 Direct",15889,null,null,null,null,null,null,null,null,null,null,null,null,{"$f":"IFERROR(VLOOKUP(ROWS($Z$2:Z66),K66:L814,2,0),\"\")","v":""}]
[null,null,null,null,null,null,null,null,null,null,{"$f":"IF(ISNUMBER(SEARCH($E$3,L67)),MAX($K$1,K66)+1,0)","v":0},"Birla Sun Life Top 100",2865,null,null,null,null,null,null,null,null,null,null,null,null,{"$f":"IFERROR(VLOOKUP(ROWS($Z$2:Z67),K67:L815,2,0),\"\")","v":""}]
[null,null,null,null,null,null,null,null,null,null,{"$f":"IF(ISNUMBER(SEARCH($E$3,L68)),MAX($K$1,K67)+1,0)","v":0},"Birla Sun Life Top 100 Direct",15883,null,null,null,null,null,null,null,null,null,null,null,null,{"$f":"IFERROR(VLOOKUP(ROWS($Z$2:Z68),K68:L816,2,0),\"\")","v":""}]
[null,null,null,null,null,null,null,null,null,null,{"$f":"IF(ISNUMBER(SEARCH($E$3,L69)),MAX($K$1,K68)+1,0)","v":0},"BNP Paribas Dividend Yield",2830,null,null,null,null,null,null,null,null,null,null,null,null,{"$f":"IFERROR(VLOOKUP(ROWS($Z$2:Z69),K69:L817,2,0),\"\")","v":""}]
[null,null,null,null,null,null,null,null,null,null,{"$f":"IF(ISNUMBER(SEARCH($E$3,L70)),MAX($K$1,K69)+1,0)","v":0},"BNP Paribas Dividend Yield Direct",15716,null,null,null,null,null,null,null,null,null,null,null,null,{"$f":"IFERROR(VLOOKUP(ROWS($Z$2:Z70),K70:L818,2,0),\"\")","v":""}]
[null,null,null,null,null,null,null,null,null,null,{"$f":"IF(ISNUMBER(SEARCH($E$3,L71)),MAX($K$1,K70)+1,0)","v":0},"BNP Paribas Equity",2338,null,null,null,null,null,null,null,null,null,null,null,null,{"$f":"IFERROR(VLOOKUP(ROWS($Z$2:Z71),K71:L819,2,0),\"\")","v":""}]
[null,null,null,null,null,null,null,null,null,null,{"$f":"IF(ISNUMBER(SEARCH($E$3,L72)),MAX($K$1,K71)+1,0)","v":0},"BNP Paribas Equity Direct",15719,null,null,null,null,null,null,null,null,null,null,null,null,{"$f":"IFERROR(VLOOKUP(ROWS($Z$2:Z72),K72:L820,2,0),\"\")","v":""}]
[null,null,null,null,null,null,null,null,null,null,{"$f":"IF(ISNUMBER(SEARCH($E$3,L73)),MAX($K$1,K72)+1,0)","v":0},"BNP Paribas Midcap",3259,null,null,null,null,null,null,null,null,null,null,null,null,{"$f":"IFERROR(VLOOKUP(ROWS($Z$2:Z73),K73:L821,2,0),\"\")","v":""}]
[null,null,null,null,null,null,null,null,null,null,{"$f":"IF(ISNUMBER(SEARCH($E$3,L74)),MAX($K$1,K73)+1,0)","v":0},"BNP Paribas Midcap Direct",15726,null,null,null,null,null,null,null,null,null,null,null,null,{"$f":"IFERROR(VLOOKUP(ROWS($Z$2:Z74),K74:L822,2,0),\"\")","v":""}]
[null,null,null,null,null,null,null,null,null,null,{"$f":"IF(ISNUMBER(SEARCH($E$3,L75)),MAX($K$1,K74)+1,0)","v":0},"BNP Paribas Tax Advantage Direct",15732,null,null,null,null,null,null,null,null,null,null,null,null,{"$f":"IFERROR(VLOOKUP(ROWS($Z$2:Z75),K75:L823,2,0),\"\")","v":""}]
[null,null,null,null,null,null,null,null,null,null,{"$f":"IF(ISNUMBER(SEARCH($E$3,L76)),MAX($K$1,K75)+1,0)","v":0},"BNP Paribas Tax Advantage Plan",3001,null,null,null,null,null,null,null,null,null,null,null,null,{"$f":"IFERROR(VLOOKUP(ROWS($Z$2:Z76),K76:L824,2,0),\"\")","v":""}]
[null,null,null,null,null,null,null,null,null,null,{"$f":"IF(ISNUMBER(SEARCH($E$3,L77)),MAX($K$1,K76)+1,0)","v":0},"BOI AXA Equity Eco#",8989,null,null,null,null,null,null,null,null,null,null,null,null,{"$f":"IFERROR(VLOOKUP(ROWS($Z$2:Z77),K77:L825,2,0),\"\")","v":""}]
[null,null,null,null,null,null,null,null,null,null,{"$f":"IF(ISNUMBER(SEARCH($E$3,L78)),MAX($K$1,K77)+1,0)","v":0},"BOI AXA Equity Reg",8985,null,null,null,null,null,null,null,null,null,null,null,null,{"$f":"IFERROR(VLOOKUP(ROWS($Z$2:Z78),K78:L826,2,0),\"\")","v":""}]
[null,null,null,null,null,null,null,null,null,null,{"$f":"IF(ISNUMBER(SEARCH($E$3,L79)),MAX($K$1,K78)+1,0)","v":0},"BOI AXA Equity Reg Direct",16267,null,null,null,null,null,null,null,null,null,null,null,null,{"$f":"IFERROR(VLOOKUP(ROWS($Z$2:Z79),K79:L827,2,0),\"\")","v":""}]
[null,null,null,null,null,null,null,null,null,null,{"$f":"IF(ISNUMBER(SEARCH($E$3,L80)),MAX($K$1,K79)+1,0)","v":0},"BOI AXA Focused Infrastructure",10854,null,null,null,null,null,null,null,null,null,null,null,null,{"$f":"IFERROR(VLOOKUP(ROWS($Z$2:Z80),K80:L828,2,0),\"\")","v":""}]
[null,null,null,null,null,null,null,null,null,null,{"$f":"IF(ISNUMBER(SEARCH($E$3,L81)),MAX($K$1,K80)+1,0)","v":0},"BOI AXA Focused Infrastructure Direct",15735,null,null,null,null,null,null,null,null,null,null,null,null,{"$f":"IFERROR(VLOOKUP(ROWS($Z$2:Z81),K81:L829,2,0),\"\")","v":""}]
[null,null,null,null,null,null,null,null,null,null,{"$f":"IF(ISNUMBER(SEARCH($E$3,L82)),MAX($K$1,K81)+1,0)","v":0},"BOI AXA Tax Advantage Eco#",10099,null,null,null,null,null,null,null,null,null,null,null,null,{"$f":"IFERROR(VLOOKUP(ROWS($Z$2:Z82),K82:L830,2,0),\"\")","v":""}]
[null,null,null,null,null,null,null,null,null,null,{"$f":"IF(ISNUMBER(SEARCH($E$3,L83)),MAX($K$1,K82)+1,0)","v":0},"BOI AXA Tax Advantage Reg",10097,null,null,null,null,null,null,null,null,null,null,null,null,{"$f":"IFERROR(VLOOKUP(ROWS($Z$2:Z83),K83:L831,2,0),\"\")","v":""}]
[null,null,null,null,null,null,null,null,null,null,{"$f":"IF(ISNUMBER(SEARCH($E$3,L84)),MAX($K$1,K83)+1,0)","v":0},"BOI AXA Tax Advantage Reg Direct",16803,null,null,null,null,null,null,null,null,null,null,null,null,{"$f":"IFERROR(VLOOKUP(ROWS($Z$2:Z84),K84:L832,2,0),\"\")","v":""}]
[null,null,null,null,null,null,null,null,null,null,{"$f":"IF(ISNUMBER(SEARCH($E$3,L85)),MAX($K$1,K84)+1,0)","v":0},"Canara Robeco Emerging Equities Regular",2645,null,null,null,null,null,null,null,null,null,null,null,null,{"$f":"IFERROR(VLOOKUP(ROWS($Z$2:Z85),K85:L833,2,0),\"\")","v":""}]
[null,null,null,null,null,null,null,null,null,null,{"$f":"IF(ISNUMBER(SEARCH($E$3,L86)),MAX($K$1,K85)+1,0)","v":0},"Canara Robeco Emerging Equities Regular Direct",16581,null,null,null,null,null,null,null,null,null,null,null,null,{"$f":"IFERROR(VLOOKUP(ROWS($Z$2:Z86),K86:L834,2,0),\"\")","v":""}]
[null,null,null,null,null,null,null,null,null,null,{"$f":"IF(ISNUMBER(SEARCH($E$3,L87)),MAX($K$1,K86)+1,0)","v":0},"Canara Robeco Equity Diversified Regular",1839,null,null,null,null,null,null,null,null,null,null,null,null,{"$f":"IFERROR(VLOOKUP(ROWS($Z$2:Z87),K87:L835,2,0),\"\")","v":""}]
[null,null,null,null,null,null,null,null,null,null,{"$f":"IF(ISNUMBER(SEARCH($E$3,L88)),MAX($K$1,K87)+1,0)","v":0},"Canara Robeco Equity Diversified Regular Direct",16588,null,null,null,null,null,null,null,null,null,null,null,null,{"$f":"IFERROR(VLOOKUP(ROWS($Z$2:Z88),K88:L836,2,0),\"\")","v":""}]
[null,null,null,null,null,null,null,null,null,null,{"$f":"IF(ISNUMBER(SEARCH($E$3,L89)),MAX($K$1,K88)+1,0)","v":0},"Canara Robeco Equity Tax Saver Regular",59,null,null,null,null,null,null,null,null,null,null,null,null,{"$f":"IFERROR(VLOOKUP(ROWS($Z$2:Z89),K89:L837,2,0),\"\")","v":""}]
[null,null,null,null,null,null,null,null,null,null,{"$f":"IF(ISNUMBER(SEARCH($E$3,L90)),MAX($K$1,K89)+1,0)","v":0},"Canara Robeco Equity Tax Saver Regular Direct",16594,null,null,null,null,null,null,null,null,null,null,null,null,{"$f":"IFERROR(VLOOKUP(ROWS($Z$2:Z90),K90:L838,2,0),\"\")","v":""}]
[null,null,null,null,null,null,null,null,null,null,{"$f":"IF(ISNUMBER(SEARCH($E$3,L91)),MAX($K$1,K90)+1,0)","v":0},"Canara Robeco F.O.R.C.E Inst#",10592,null,null,null,null,null,null,null,null,null,null,null,null,{"$f":"IFERROR(VLOOKUP(ROWS($Z$2:Z91),K91:L839,2,0),\"\")","v":""}]
[null,null,null,null,null,null,null,null,null,null,{"$f":"IF(ISNUMBER(SEARCH($E$3,L92)),MAX($K$1,K91)+1,0)","v":0},"Canara Robeco F.O.R.C.E Regular",10590,null,null,null,null,null,null,null,null,null,null,null,null,{"$f":"IFERROR(VLOOKUP(ROWS($Z$2:Z92),K92:L840,2,0),\"\")","v":""}]
[null,null,null,null,null,null,null,null,null,null,{"$f":"IF(ISNUMBER(SEARCH($E$3,L93)),MAX($K$1,K92)+1,0)","v":0},"Canara Robeco F.O.R.C.E Regular Direct",16600,null,null,null,null,null,null,null,null,null,null,null,null,{"$f":"IFERROR(VLOOKUP(ROWS($Z$2:Z93),K93:L841,2,0),\"\")","v":""}]
[null,null,null,null,null,null,null,null,null,null,{"$f":"IF(ISNUMBER(SEARCH($E$3,L94)),MAX($K$1,K93)+1,0)","v":0},"Canara Robeco Infrastructure Direct",15761,null,null,null,null,null,null,null,null,null,null,null,null,{"$f":"IFERROR(VLOOKUP(ROWS($Z$2:Z94),K94:L842,2,0),\"\")","v":""}]
[null,null,null,null,null,null,null,null,null,null,{"$f":"IF(ISNUMBER(SEARCH($E$3,L95)),MAX($K$1,K94)+1,0)","v":0},"Canara Robeco Infrastructure Regular",2960,null,null,null,null,null,null,null,null,null,null,null,null,{"$f":"IFERROR(VLOOKUP(ROWS($Z$2:Z95),K95:L843,2,0),\"\")","v":""}]
[null,null,null,null,null,null,null,null,null,null,{"$f":"IF(ISNUMBER(SEARCH($E$3,L96)),MAX($K$1,K95)+1,0)","v":0},"Canara Robeco Large Cap+ Direct",15765,null,null,null,null,null,null,null,null,null,null,null,null,{"$f":"IFERROR(VLOOKUP(ROWS($Z$2:Z96),K96:L844,2,0),\"\")","v":""}]
[null,null,null,null,null,null,null,null,null,null,{"$f":"IF(ISNUMBER(SEARCH($E$3,L97)),MAX($K$1,K96)+1,0)","v":0},"Canara Robeco Large Cap+ Regular",11333,null,null,null,null,null,null,null,null,null,null,null,null,{"$f":"IFERROR(VLOOKUP(ROWS($Z$2:Z97),K97:L845,2,0),\"\")","v":""}]
[null,null,null,null,null,null,null,null,null,null,{"$f":"IF(ISNUMBER(SEARCH($E$3,L98)),MAX($K$1,K97)+1,0)","v":0},"Canara Robeco Nifty Index Direct",15776,null,null,null,null,null,null,null,null,null,null,null,null,{"$f":"IFERROR(VLOOKUP(ROWS($Z$2:Z98),K98:L846,2,0),\"\")","v":""}]
[null,null,null,null,null,null,null,null,null,null,{"$f":"IF(ISNUMBER(SEARCH($E$3,L99)),MAX($K$1,K98)+1,0)","v":0},"Canara Robeco Nifty Index Regular",2472,null,null,null,null,null,null,null,null,null,null,null,null,{"$f":"IFERROR(VLOOKUP(ROWS($Z$2:Z99),K99:L847,2,0),\"\")","v":""}]
[null,null,null,null,null,null,null,null,null,null,{"$f":"IF(ISNUMBER(SEARCH($E$3,L100)),MAX($K$1,K99)+1,0)","v":0},"Daiwa Industry Leaders",10603,null,null,null,null,null,null,null,null,null,null,null,null,{"$f":"IFERROR(VLOOKUP(ROWS($Z$2:Z100),K100:L848,2,0),\"\")","v":""}]
[null,null,null,null,null,null,null,null,null,null,{"$f":"IF(ISNUMBER(SEARCH($E$3,L101)),MAX($K$1,K100)+1,0)","v":0},"Daiwa Industry Leaders Direct",15787,null,null,null,null,null,null,null,null,null,null,null,null,{"$f":"IFERROR(VLOOKUP(ROWS($Z$2:Z101),K101:L849,2,0),\"\")","v":""}]
[null,null,null,null,null,null,null,null,null,null,{"$f":"IF(ISNUMBER(SEARCH($E$3,L102)),MAX($K$1,K101)+1,0)","v":0},"DSPBR Equity",393,null,null,null,null,null,null,null,null,null,null,null,null,{"$f":"IFERROR(VLOOKUP(ROWS($Z$2:Z102),K102:L850,2,0),\"\")","v":""}]
[null,null,null,null,null,null,null,null,null,null,{"$f":"IF(ISNUMBER(SEARCH($E$3,L103)),MAX($K$1,K102)+1,0)","v":0},"DSPBR Equity Direct",16386,null,null,null,null,null,null,null,null,null,null,null,null,{"$f":"IFERROR(VLOOKUP(ROWS($Z$2:Z103),K103:L851,2,0),\"\")","v":""}]
[null,null,null,null,null,null,null,null,null,null,{"$f":"IF(ISNUMBER(SEARCH($E$3,L104)),MAX($K$1,K103)+1,0)","v":0},"DSPBR Equity Inst#",5609,null,null,null,null,null,null,null,null,null,null,null,null,{"$f":"IFERROR(VLOOKUP(ROWS($Z$2:Z104),K104:L852,2,0),\"\")","v":""}]
[null,null,null,null,null,null,null,null,null,null,{"$f":"IF(ISNUMBER(SEARCH($E$3,L105)),MAX($K$1,K104)+1,0)","v":0},"DSPBR Focus 25",11183,null,null,null,null,null,null,null,null,null,null,null,null,{"$f":"IFERROR(VLOOKUP(ROWS($Z$2:Z105),K105:L853,2,0),\"\")","v":""}]
[null,null,null,null,null,null,null,null,null,null,{"$f":"IF(ISNUMBER(SEARCH($E$3,L106)),MAX($K$1,K105)+1,0)","v":0},"DSPBR Focus 25 Direct",16388,null,null,null,null,null,null,null,null,null,null,null,null,{"$f":"IFERROR(VLOOKUP(ROWS($Z$2:Z106),K106:L854,2,0),\"\")","v":""}]
[null,null,null,null,null,null,null,null,null,null,{"$f":"IF(ISNUMBER(SEARCH($E$3,L107)),MAX($K$1,K106)+1,0)","v":0},"DSPBR Micro Cap Reg",5069,null,null,null,null,null,null,null,null,null,null,null,null,{"$f":"IFERROR(VLOOKUP(ROWS($Z$2:Z107),K107:L855,2,0),\"\")","v":""}]
[null,null,null,null,null,null,null,null,null,null,{"$f":"IF(ISNUMBER(SEARCH($E$3,L108)),MAX($K$1,K107)+1,0)","v":0},"DSPBR Micro Cap Reg Direct",16411,null,null,null,null,null,null,null,null,null,null,null,null,{"$f":"IFERROR(VLOOKUP(ROWS($Z$2:Z108),K108:L856,2,0),\"\")","v":""}]
[null,null,null,null,null,null,null,null,null,null,{"$f":"IF(ISNUMBER(SEARCH($E$3,L109)),MAX($K$1,K108)+1,0)","v":0},"DSPBR Natural Resources and New Energy Reg",7128,null,null,null,null,null,null,null,null,null,null,null,null,{"$f":"IFERROR(VLOOKUP(ROWS($Z$2:Z109),K109:L857,2,0),\"\")","v":""}]
[null,null,null,null,null,null,null,null,null,null,{"$f":"IF(ISNUMBER(SEARCH($E$3,L110)),MAX($K$1,K109)+1,0)","v":0},"DSPBR Natural Resources and New Energy Reg Direct",16988,null,null,null,null,null,null,null,null,null,null,null,null,{"$f":"IFERROR(VLOOKUP(ROWS($Z$2:Z110),K110:L858,2,0),\"\")","v":""}]
[null,null,null,null,null,null,null,null,null,null,{"$f":"IF(ISNUMBER(SEARCH($E$3,L111)),MAX($K$1,K110)+1,0)","v":0},"DSPBR Opportunities",776,null,null,null,null,null,null,null,null,null,null,null,null,{"$f":"IFERROR(VLOOKUP(ROWS($Z$2:Z111),K111:L859,2,0),\"\")","v":""}]
[null,null,null,null,null,null,null,null,null,null,{"$f":"IF(ISNUMBER(SEARCH($E$3,L112)),MAX($K$1,K111)+1,0)","v":0},"DSPBR Opportunities Direct",16425,null,null,null,null,null,null,null,null,null,null,null,null,{"$f":"IFERROR(VLOOKUP(ROWS($Z$2:Z112),K112:L860,2,0),\"\")","v":""}]
[null,null,null,null,null,null,null,null,null,null,{"$f":"IF(ISNUMBER(SEARCH($E$3,L113)),MAX($K$1,K112)+1,0)","v":0},"DSPBR Small and Mid Cap Reg",3725,null,null,null,null,null,null,null,null,null,null,null,null,{"$f":"IFERROR(VLOOKUP(ROWS($Z$2:Z113),K113:L861,2,0),\"\")","v":""}]
[null,null,null,null,null,null,null,null,null,null,{"$f":"IF(ISNUMBER(SEARCH($E$3,L114)),MAX($K$1,K113)+1,0)","v":0},"DSPBR Small and Mid Cap Reg Direct",16438,null,null,null,null,null,null,null,null,null,null,null,null,{"$f":"IFERROR(VLOOKUP(ROWS($Z$2:Z114),K114:L862,2,0),\"\")","v":""}]
[null,null,null,null,null,null,null,null,null,null,{"$f":"IF(ISNUMBER(SEARCH($E$3,L115)),MAX($K$1,K114)+1,0)","v":0},"DSPBR T.I.G.E.R. Inst#",5240,null,null,null,null,null,null,null,null,null,null,null,null,{"$f":"IFERROR(VLOOKUP(ROWS($Z$2:Z115),K115:L863,2,0),\"\")","v":""}]
[null,null,null,null,null,null,null,null,null,null,{"$f":"IF(ISNUMBER(SEARCH($E$3,L116)),MAX($K$1,K115)+1,0)","v":0},"DSPBR T.I.G.E.R. Reg",2222,null,null,null,null,null,null,null,null,null,null,null,null,{"$f":"IFERROR(VLOOKUP(ROWS($Z$2:Z116),K116:L864,2,0),\"\")","v":""}]
[null,null,null,null,null,null,null,null,null,null,{"$f":"IF(ISNUMBER(SEARCH($E$3,L117)),MAX($K$1,K116)+1,0)","v":0},"DSPBR T.I.G.E.R. Reg Direct",16410,null,null,null,null,null,null,null,null,null,null,null,null,{"$f":"IFERROR(VLOOKUP(ROWS($Z$2:Z117),K117:L865,2,0),\"\")","v":""}]
[null,null,null,null,null,null,null,null,null,null,{"$f":"IF(ISNUMBER(SEARCH($E$3,L118)),MAX($K$1,K117)+1,0)","v":0},"DSPBR Tax Saver",3985,null,null,null,null,null,null,null,null,null,null,null,null,{"$f":"IFERROR(VLOOKUP(ROWS($Z$2:Z118),K118:L866,2,0),\"\")","v":""}]
[null,null,null,null,null,null,null,null,null,null,{"$f":"IF(ISNUMBER(SEARCH($E$3,L119)),MAX($K$1,K118)+1,0)","v":0},"DSPBR Tax Saver Direct",16454,null,null,null,null,null,null,null,null,null,null,null,null,{"$f":"IFERROR(VLOOKUP(ROWS($Z$2:Z119),K119:L867,2,0),\"\")","v":""}]
[null,null,null,null,null,null,null,null,null,null,{"$f":"IF(ISNUMBER(SEARCH($E$3,L120)),MAX($K$1,K119)+1,0)","v":0},"DSPBR Technology.com Reg",774,null,null,null,null,null,null,null,null,null,null,null,null,{"$f":"IFERROR(VLOOKUP(ROWS($Z$2:Z120),K120:L868,2,0),\"\")","v":""}]
[null,null,null,null,null,null,null,null,null,null,{"$f":"IF(ISNUMBER(SEARCH($E$3,L121)),MAX($K$1,K120)+1,0)","v":0},"DSPBR Technology.com Reg Direct",17003,null,null,null,null,null,null,null,null,null,null,null,null,{"$f":"IFERROR(VLOOKUP(ROWS($Z$2:Z121),K121:L869,2,0),\"\")","v":""}]
[null,null,null,null,null,null,null,null,null,null,{"$f":"IF(ISNUMBER(SEARCH($E$3,L122)),MAX($K$1,K121)+1,0)","v":0},"DSPBR Top 100 Equity Inst#",5219,null,null,null,null,null,null,null,null,null,null,null,null,{"$f":"IFERROR(VLOOKUP(ROWS($Z$2:Z122),K122:L870,2,0),\"\")","v":""}]
[null,null,null,null,null,null,null,null,null,null,{"$f":"IF(ISNUMBER(SEARCH($E$3,L123)),MAX($K$1,K122)+1,0)","v":0},"DSPBR Top 100 Equity Reg",1540,null,null,null,null,null,null,null,null,null,null,null,null,{"$f":"IFERROR(VLOOKUP(ROWS($Z$2:Z123),K123:L871,2,0),\"\")","v":""}]
[null,null,null,null,null,null,null,null,null,null,{"$f":"IF(ISNUMBER(SEARCH($E$3,L124)),MAX($K$1,K123)+1,0)","v":0},"DSPBR Top 100 Equity Reg Direct",16456,null,null,null,null,null,null,null,null,null,null,null,null,{"$f":"IFERROR(VLOOKUP(ROWS($Z$2:Z124),K124:L872,2,0),\"\")","v":""}]
[null,null,null,null,null,null,null,null,null,null,{"$f":"IF(ISNUMBER(SEARCH($E$3,L125)),MAX($K$1,K124)+1,0)","v":0},"DSPBR US Flexible Equity",15152,null,null,null,null,null,null,null,null,null,null,null,null,{"$f":"IFERROR(VLOOKUP(ROWS($Z$2:Z125),K125:L873,2,0),\"\")","v":""}]
[null,null,null,null,null,null,null,null,null,null,{"$f":"IF(ISNUMBER(SEARCH($E$3,L126)),MAX($K$1,K125)+1,0)","v":0},"DSPBR US Flexible Equity Direct",17006,null,null,null,null,null,null,null,null,null,null,null,null,{"$f":"IFERROR(VLOOKUP(ROWS($Z$2:Z126),K126:L874,2,0),\"\")","v":""}]
[null,null,null,null,null,null,null,null,null,null,{"$f":"IF(ISNUMBER(SEARCH($E$3,L127)),MAX($K$1,K126)+1,0)","v":0},"DSPBR World Agriculture",13395,null,null,null,null,null,null,null,null,null,null,null,null,{"$f":"IFERROR(VLOOKUP(ROWS($Z$2:Z127),K127:L875,2,0),\"\")","v":""}]
[null,null,null,null,null,null,null,null,null,null,{"$f":"IF(ISNUMBER(SEARCH($E$3,L128)),MAX($K$1,K127)+1,0)","v":0},"DSPBR World Agriculture Direct",17009,null,null,null,null,null,null,null,null,null,null,null,null,{"$f":"IFERROR(VLOOKUP(ROWS($Z$2:Z128),K128:L876,2,0),\"\")","v":""}]
[null,null,null,null,null,null,null,null,null,null,{"$f":"IF(ISNUMBER(SEARCH($E$3,L129)),MAX($K$1,K128)+1,0)","v":0},"DSPBR World Energy Reg",10559,null,null,null,null,null,null,null,null,null,null,null,null,{"$f":"IFERROR(VLOOKUP(ROWS($Z$2:Z129),K129:L877,2,0),\"\")","v":""}]
[null,null,null,null,null,null,null,null,null,null,{"$f":"IF(ISNUMBER(SEARCH($E$3,L130)),MAX($K$1,K129)+1,0)","v":0},"DSPBR World Energy Reg Direct",17012,null,null,null,null,null,null,null,null,null,null,null,null,{"$f":"IFERROR(VLOOKUP(ROWS($Z$2:Z130),K130:L878,2,0),\"\")","v":""}]
[null,null,null,null,null,null,null,null,null,null,{"$f":"IF(ISNUMBER(SEARCH($E$3,L131)),MAX($K$1,K130)+1,0)","v":0},"DSPBR World Gold Reg",5623,null,null,null,null,null,null,null,null,null,null,null,null,{"$f":"IFERROR(VLOOKUP(ROWS($Z$2:Z131),K131:L879,2,0),\"\")","v":""}]
[null,null,null,null,null,null,null,null,null,null,{"$f":"IF(ISNUMBER(SEARCH($E$3,L132)),MAX($K$1,K131)+1,0)","v":0},"DSPBR World Gold Reg Direct",17016,null,null,null,null,null,null,null,null,null,null,null,null,{"$f":"IFERROR(VLOOKUP(ROWS($Z$2:Z132),K132:L880,2,0),\"\")","v":""}]
[null,null,null,null,null,null,null,null,null,null,{"$f":"IF(ISNUMBER(SEARCH($E$3,L133)),MAX($K$1,K132)+1,0)","v":0},"DSPBR World Mining Reg",10799,null,null,null,null,null,null,null,null,null,null,null,null,{"$f":"IFERROR(VLOOKUP(ROWS($Z$2:Z133),K133:L881,2,0),\"\")","v":""}]
[null,null,null,null,null,null,null,null,null,null,{"$f":"IF(ISNUMBER(SEARCH($E$3,L134)),MAX($K$1,K133)+1,0)","v":0},"DSPBR World Mining Reg Direct",17021,null,null,null,null,null,null,null,null,null,null,null,null,{"$f":"IFERROR(VLOOKUP(ROWS($Z$2:Z134),K134:L882,2,0),\"\")","v":""}]
[null,null,null,null,null,null,null,null,null,null,{"$f":"IF(ISNUMBER(SEARCH($E$3,L135)),MAX($K$1,K134)+1,0)","v":0},"DWS Alpha Equity Direct",15574,null,null,null,null,null,null,null,null,null,null,null,null,{"$f":"IFERROR(VLOOKUP(ROWS($Z$2:Z135),K135:L883,2,0),\"\")","v":""}]
[null,null,null,null,null,null,null,null,null,null,{"$f":"IF(ISNUMBER(SEARCH($E$3,L136)),MAX($K$1,K135)+1,0)","v":0},"DWS Alpha Equity Regular",1513,null,null,null,null,null,null,null,null,null,null,null,null,{"$f":"IFERROR(VLOOKUP(ROWS($Z$2:Z136),K136:L884,2,0),\"\")","v":""}]
[null,null,null,null,null,null,null,null,null,null,{"$f":"IF(ISNUMBER(SEARCH($E$3,L137)),MAX($K$1,K136)+1,0)","v":0},"DWS Alpha Equity Wealth Plan#",10438,null,null,null,null,null,null,null,null,null,null,null,null,{"$f":"IFERROR(VLOOKUP(ROWS($Z$2:Z137),K137:L885,2,0),\"\")","v":""}]
[null,null,null,null,null,null,null,null,null,null,{"$f":"IF(ISNUMBER(SEARCH($E$3,L138)),MAX($K$1,K137)+1,0)","v":0},"DWS Global Agribusiness Offshore Reg",11136,null,null,null,null,null,null,null,null,null,null,null,null,{"$f":"IFERROR(VLOOKUP(ROWS($Z$2:Z138),K138:L886,2,0),\"\")","v":""}]
[null,null,null,null,null,null,null,null,null,null,{"$f":"IF(ISNUMBER(SEARCH($E$3,L139)),MAX($K$1,K138)+1,0)","v":0},"DWS Global Agribusiness Offshore Reg Direct",17348,null,null,null,null,null,null,null,null,null,null,null,null,{"$f":"IFERROR(VLOOKUP(ROWS($Z$2:Z139),K139:L887,2,0),\"\")","v":""}]
[null,null,null,null,null,null,null,null,null,null,{"$f":"IF(ISNUMBER(SEARCH($E$3,L140)),MAX($K$1,K139)+1,0)","v":0},"DWS Global Thematic Offshore",5558,null,null,null,null,null,null,null,null,null,null,null,null,{"$f":"IFERROR(VLOOKUP(ROWS($Z$2:Z140),K140:L888,2,0),\"\")","v":""}]
[null,null,null,null,null,null,null,null,null,null,{"$f":"IF(ISNUMBER(SEARCH($E$3,L141)),MAX($K$1,K140)+1,0)","v":0},"DWS Global Thematic Offshore Direct",17349,null,null,null,null,null,null,null,null,null,null,null,null,{"$f":"IFERROR(VLOOKUP(ROWS($Z$2:Z141),K141:L889,2,0),\"\")","v":""}]
[null,null,null,null,null,null,null,null,null,null,{"$f":"IF(ISNUMBER(SEARCH($E$3,L142)),MAX($K$1,K141)+1,0)","v":0},"DWS Investment Opportunity Direct",15620,null,null,null,null,null,null,null,null,null,null,null,null,{"$f":"IFERROR(VLOOKUP(ROWS($Z$2:Z142),K142:L890,2,0),\"\")","v":""}]
[null,null,null,null,null,null,null,null,null,null,{"$f":"IF(ISNUMBER(SEARCH($E$3,L143)),MAX($K$1,K142)+1,0)","v":0},"DWS Investment Opportunity Regular",2057,null,null,null,null,null,null,null,null,null,null,null,null,{"$f":"IFERROR(VLOOKUP(ROWS($Z$2:Z143),K143:L891,2,0),\"\")","v":""}]
[null,null,null,null,null,null,null,null,null,null,{"$f":"IF(ISNUMBER(SEARCH($E$3,L144)),MAX($K$1,K143)+1,0)","v":0},"DWS Investment Opportunity Wealth Plan#",10440,null,null,null,null,null,null,null,null,null,null,null,null,{"$f":"IFERROR(VLOOKUP(ROWS($Z$2:Z144),K144:L892,2,0),\"\")","v":""}]
[null,null,null,null,null,null,null,null,null,null,{"$f":"IF(ISNUMBER(SEARCH($E$3,L145)),MAX($K$1,K144)+1,0)","v":0},"DWS Tax Saving",3126,null,null,null,null,null,null,null,null,null,null,null,null,{"$f":"IFERROR(VLOOKUP(ROWS($Z$2:Z145),K145:L893,2,0),\"\")","v":""}]
[null,null,null,null,null,null,null,null,null,null,{"$f":"IF(ISNUMBER(SEARCH($E$3,L146)),MAX($K$1,K145)+1,0)","v":0},"DWS Tax Saving Direct",17350,null,null,null,null,null,null,null,null,null,null,null,null,{"$f":"IFERROR(VLOOKUP(ROWS($Z$2:Z146),K146:L894,2,0),\"\")","v":""}]
[null,null,null,null,null,null,null,null,null,null,{"$f":"IF(ISNUMBER(SEARCH($E$3,L147)),MAX($K$1,K146)+1,0)","v":0},"Edelweiss Diversified Growth Equity Top 100",10432,null,null,null,null,null,null,null,null,null,null,null,null,{"$f":"IFERROR(VLOOKUP(ROWS($Z$2:Z147),K147:L895,2,0),\"\")","v":""}]
[null,null,null,null,null,null,null,null,null,null,{"$f":"IF(ISNUMBER(SEARCH($E$3,L148)),MAX($K$1,K147)+1,0)","v":0},"Edelweiss Diversified Growth Equity Top 100 Direct",17352,null,null,null,null,null,null,null,null,null,null,null,null,{"$f":"IFERROR(VLOOKUP(ROWS($Z$2:Z148),K148:L896,2,0),\"\")","v":""}]
[null,null,null,null,null,null,null,null,null,null,{"$f":"IF(ISNUMBER(SEARCH($E$3,L149)),MAX($K$1,K148)+1,0)","v":0},"Edelweiss Diversified Growth Equity Top 100 Plan B#",10434,null,null,null,null,null,null,null,null,null,null,null,null,{"$f":"IFERROR(VLOOKUP(ROWS($Z$2:Z149),K149:L897,2,0),\"\")","v":""}]
[null,null,null,null,null,null,null,null,null,null,{"$f":"IF(ISNUMBER(SEARCH($E$3,L150)),MAX($K$1,K149)+1,0)","v":0},"Edelweiss Diversified Growth Equity Top 100 Plan C#",10436,null,null,null,null,null,null,null,null,null,null,null,null,{"$f":"IFERROR(VLOOKUP(ROWS($Z$2:Z150),K150:L898,2,0),\"\")","v":""}]
[null,null,null,null,null,null,null,null,null,null,{"$f":"IF(ISNUMBER(SEARCH($E$3,L151)),MAX($K$1,K150)+1,0)","v":0},"Edelweiss ELSS",10125,null,null,null,null,null,null,null,null,null,null,null,null,{"$f":"IFERROR(VLOOKUP(ROWS($Z$2:Z151),K151:L899,2,0),\"\")","v":""}]
[null,null,null,null,null,null,null,null,null,null,{"$f":"IF(ISNUMBER(SEARCH($E$3,L152)),MAX($K$1,K151)+1,0)","v":0},"Edelweiss ELSS Direct",17762,null,null,null,null,null,null,null,null,null,null,null,null,{"$f":"IFERROR(VLOOKUP(ROWS($Z$2:Z152),K152:L900,2,0),\"\")","v":""}]
[null,null,null,null,null,null,null,null,null,null,{"$f":"IF(ISNUMBER(SEARCH($E$3,L153)),MAX($K$1,K152)+1,0)","v":0},"Edelweiss Equity Enhancer",10609,null,null,null,null,null,null,null,null,null,null,null,null,{"$f":"IFERROR(VLOOKUP(ROWS($Z$2:Z153),K153:L901,2,0),\"\")","v":""}]
[null,null,null,null,null,null,null,null,null,null,{"$f":"IF(ISNUMBER(SEARCH($E$3,L154)),MAX($K$1,K153)+1,0)","v":0},"Edelweiss Equity Enhancer Direct",17354,null,null,null,null,null,null,null,null,null,null,null,null,{"$f":"IFERROR(VLOOKUP(ROWS($Z$2:Z154),K154:L902,2,0),\"\")","v":""}]
[null,null,null,null,null,null,null,null,null,null,{"$f":"IF(ISNUMBER(SEARCH($E$3,L155)),MAX($K$1,K154)+1,0)","v":0},"Edelweiss Equity Enhancer Plan B#",10478,null,null,null,null,null,null,null,null,null,null,null,null,{"$f":"IFERROR(VLOOKUP(ROWS($Z$2:Z155),K155:L903,2,0),\"\")","v":""}]
[null,null,null,null,null,null,null,null,null,null,{"$f":"IF(ISNUMBER(SEARCH($E$3,L156)),MAX($K$1,K155)+1,0)","v":0},"Edelweiss Select Midcap",13198,null,null,null,null,null,null,null,null,null,null,null,null,{"$f":"IFERROR(VLOOKUP(ROWS($Z$2:Z156),K156:L904,2,0),\"\")","v":""}]
[null,null,null,null,null,null,null,null,null,null,{"$f":"IF(ISNUMBER(SEARCH($E$3,L157)),MAX($K$1,K156)+1,0)","v":0},"Edelweiss Select Midcap Direct",15976,null,null,null,null,null,null,null,null,null,null,null,null,{"$f":"IFERROR(VLOOKUP(ROWS($Z$2:Z157),K157:L905,2,0),\"\")","v":""}]
[null,null,null,null,null,null,null,null,null,null,{"$f":"IF(ISNUMBER(SEARCH($E$3,L158)),MAX($K$1,K157)+1,0)","v":0},"Escorts Growth",952,null,null,null,null,null,null,null,null,null,null,null,null,{"$f":"IFERROR(VLOOKUP(ROWS($Z$2:Z158),K158:L906,2,0),\"\")","v":""}]
[null,null,null,null,null,null,null,null,null,null,{"$f":"IF(ISNUMBER(SEARCH($E$3,L159)),MAX($K$1,K158)+1,0)","v":0},"Escorts Growth Direct",17361,null,null,null,null,null,null,null,null,null,null,null,null,{"$f":"IFERROR(VLOOKUP(ROWS($Z$2:Z159),K159:L907,2,0),\"\")","v":""}]
[null,null,null,null,null,null,null,null,null,null,{"$f":"IF(ISNUMBER(SEARCH($E$3,L160)),MAX($K$1,K159)+1,0)","v":0},"Escorts High Yield Equity",4111,null,null,null,null,null,null,null,null,null,null,null,null,{"$f":"IFERROR(VLOOKUP(ROWS($Z$2:Z160),K160:L908,2,0),\"\")","v":""}]
[null,null,null,null,null,null,null,null,null,null,{"$f":"IF(ISNUMBER(SEARCH($E$3,L161)),MAX($K$1,K160)+1,0)","v":0},"Escorts High Yield Equity Direct",17363,null,null,null,null,null,null,null,null,null,null,null,null,{"$f":"IFERROR(VLOOKUP(ROWS($Z$2:Z161),K161:L909,2,0),\"\")","v":""}]
[null,null,null,null,null,null,null,null,null,null,{"$f":"IF(ISNUMBER(SEARCH($E$3,L162)),MAX($K$1,K161)+1,0)","v":0},"Escorts Infrastructure",5621,null,null,null,null,null,null,null,null,null,null,null,null,{"$f":"IFERROR(VLOOKUP(ROWS($Z$2:Z162),K162:L910,2,0),\"\")","v":""}]
[null,null,null,null,null,null,null,null,null,null,{"$f":"IF(ISNUMBER(SEARCH($E$3,L163)),MAX($K$1,K162)+1,0)","v":0},"Escorts Infrastructure Direct",17371,null,null,null,null,null,null,null,null,null,null,null,null,{"$f":"IFERROR(VLOOKUP(ROWS($Z$2:Z163),K163:L911,2,0),\"\")","v":""}]
[null,null,null,null,null,null,null,null,null,null,{"$f":"IF(ISNUMBER(SEARCH($E$3,L164)),MAX($K$1,K163)+1,0)","v":0},"Escorts Leading Sectors",8216,null,null,null,null,null,null,null,null,null,null,null,null,{"$f":"IFERROR(VLOOKUP(ROWS($Z$2:Z164),K164:L912,2,0),\"\")","v":""}]
[null,null,null,null,null,null,null,null,null,null,{"$f":"IF(ISNUMBER(SEARCH($E$3,L165)),MAX($K$1,K164)+1,0)","v":0},"Escorts Leading Sectors Direct",17373,null,null,null,null,null,null,null,null,null,null,null,null,{"$f":"IFERROR(VLOOKUP(ROWS($Z$2:Z165),K165:L913,2,0),\"\")","v":""}]
[null,null,null,null,null,null,null,null,null,null,{"$f":"IF(ISNUMBER(SEARCH($E$3,L166)),MAX($K$1,K165)+1,0)","v":0},"Escorts Power & Energy",8827,null,null,null,null,null,null,null,null,null,null,null,null,{"$f":"IFERROR(VLOOKUP(ROWS($Z$2:Z166),K166:L914,2,0),\"\")","v":""}]
[null,null,null,null,null,null,null,null,null,null,{"$f":"IF(ISNUMBER(SEARCH($E$3,L167)),MAX($K$1,K166)+1,0)","v":0},"Escorts Power & Energy Direct",17377,null,null,null,null,null,null,null,null,null,null,null,null,{"$f":"IFERROR(VLOOKUP(ROWS($Z$2:Z167),K167:L915,2,0),\"\")","v":""}]
[null,null,null,null,null,null,null,null,null,null,{"$f":"IF(ISNUMBER(SEARCH($E$3,L168)),MAX($K$1,K167)+1,0)","v":0},"Escorts Tax Plan",818,null,null,null,null,null,null,null,null,null,null,null,null,{"$f":"IFERROR(VLOOKUP(ROWS($Z$2:Z168),K168:L916,2,0),\"\")","v":""}]
[null,null,null,null,null,null,null,null,null,null,{"$f":"IF(ISNUMBER(SEARCH($E$3,L169)),MAX($K$1,K168)+1,0)","v":0},"Escorts Tax Plan Direct",17381,null,null,null,null,null,null,null,null,null,null,null,null,{"$f":"IFERROR(VLOOKUP(ROWS($Z$2:Z169),K169:L917,2,0),\"\")","v":""}]
[null,null,null,null,null,null,null,null,null,null,{"$f":"IF(ISNUMBER(SEARCH($E$3,L170)),MAX($K$1,K169)+1,0)","v":0},"Franklin Asian Equity",6383,null,null,null,null,null,null,null,null,null,null,null,null,{"$f":"IFERROR(VLOOKUP(ROWS($Z$2:Z170),K170:L918,2,0),\"\")","v":""}]
[null,null,null,null,null,null,null,null,null,null,{"$f":"IF(ISNUMBER(SEARCH($E$3,L171)),MAX($K$1,K170)+1,0)","v":0},"Franklin Asian Equity Direct",15977,null,null,null,null,null,null,null,null,null,null,null,null,{"$f":"IFERROR(VLOOKUP(ROWS($Z$2:Z171),K171:L919,2,0),\"\")","v":""}]
[null,null,null,null,null,null,null,null,null,null,{"$f":"IF(ISNUMBER(SEARCH($E$3,L172)),MAX($K$1,K171)+1,0)","v":0},"Franklin Build India",10563,null,null,null,null,null,null,null,null,null,null,null,null,{"$f":"IFERROR(VLOOKUP(ROWS($Z$2:Z172),K172:L920,2,0),\"\")","v":""}]
[null,null,null,null,null,null,null,null,null,null,{"$f":"IF(ISNUMBER(SEARCH($E$3,L173)),MAX($K$1,K172)+1,0)","v":0},"Franklin Build India Direct",15979,null,null,null,null,null,null,null,null,null,null,null,null,{"$f":"IFERROR(VLOOKUP(ROWS($Z$2:Z173),K173:L921,2,0),\"\")","v":""}]
[null,null,null,null,null,null,null,null,null,null,{"$f":"IF(ISNUMBER(SEARCH($E$3,L174)),MAX($K$1,K173)+1,0)","v":0},"Franklin India Bluechip",114,null,null,null,null,null,null,null,null,null,null,null,null,{"$f":"IFERROR(VLOOKUP(ROWS($Z$2:Z174),K174:L922,2,0),\"\")","v":""}]
[null,null,null,null,null,null,null,null,null,null,{"$f":"IF(ISNUMBER(SEARCH($E$3,L175)),MAX($K$1,K174)+1,0)","v":0},"Franklin India Bluechip Direct",15982,null,null,null,null,null,null,null,null,null,null,null,null,{"$f":"IFERROR(VLOOKUP(ROWS($Z$2:Z175),K175:L923,2,0),\"\")","v":""}]
[null,null,null,null,null,null,null,null,null,null,{"$f":"IF(ISNUMBER(SEARCH($E$3,L176)),MAX($K$1,K175)+1,0)","v":0},"Franklin India Flexi Cap",2605,null,null,null,null,null,null,null,null,null,null,null,null,{"$f":"IFERROR(VLOOKUP(ROWS($Z$2:Z176),K176:L924,2,0),\"\")","v":""}]
[null,null,null,null,null,null,null,null,null,null,{"$f":"IF(ISNUMBER(SEARCH($E$3,L177)),MAX($K$1,K176)+1,0)","v":0},"Franklin India Flexi Cap Direct",15986,null,null,null,null,null,null,null,null,null,null,null,null,{"$f":"IFERROR(VLOOKUP(ROWS($Z$2:Z177),K177:L925,2,0),\"\")","v":""}]
[null,null,null,null,null,null,null,null,null,null,{"$f":"IF(ISNUMBER(SEARCH($E$3,L178)),MAX($K$1,K177)+1,0)","v":0},"Franklin India High Growth Companies",5141,null,null,null,null,null,null,null,null,null,null,null,null,{"$f":"IFERROR(VLOOKUP(ROWS($Z$2:Z178),K178:L926,2,0),\"\")","v":""}]
[null,null,null,null,null,null,null,null,null,null,{"$f":"IF(ISNUMBER(SEARCH($E$3,L179)),MAX($K$1,K178)+1,0)","v":0},"Franklin India High Growth Companies Direct",15990,null,null,null,null,null,null,null,null,null,null,null,null,{"$f":"IFERROR(VLOOKUP(ROWS($Z$2:Z179),K179:L927,2,0),\"\")","v":""}]
[null,null,null,null,null,null,null,null,null,null,{"$f":"IF(ISNUMBER(SEARCH($E$3,L180)),MAX($K$1,K179)+1,0)","v":0},"Franklin India Index BSE Sensex",2167,null,null,null,null,null,null,null,null,null,null,null,null,{"$f":"IFERROR(VLOOKUP(ROWS($Z$2:Z180),K180:L928,2,0),\"\")","v":""}]
[null,null,null,null,null,null,null,null,null,null,{"$f":"IF(ISNUMBER(SEARCH($E$3,L181)),MAX($K$1,K180)+1,0)","v":0},"Franklin India Index BSE Sensex Direct",15993,null,null,null,null,null,null,null,null,null,null,null,null,{"$f":"IFERROR(VLOOKUP(ROWS($Z$2:Z181),K181:L929,2,0),\"\")","v":""}]
[null,null,null,null,null,null,null,null,null,null,{"$f":"IF(ISNUMBER(SEARCH($E$3,L182)),MAX($K$1,K181)+1,0)","v":0},"Franklin India Index NSE Nifty",834,null,null,null,null,null,null,null,null,null,null,null,null,{"$f":"IFERROR(VLOOKUP(ROWS($Z$2:Z182),K182:L930,2,0),\"\")","v":""}]
[null,null,null,null,null,null,null,null,null,null,{"$f":"IF(ISNUMBER(SEARCH($E$3,L183)),MAX($K$1,K182)+1,0)","v":0},"Franklin India Index NSE Nifty Direct",15996,null,null,null,null,null,null,null,null,null,null,null,null,{"$f":"IFERROR(VLOOKUP(ROWS($Z$2:Z183),K183:L931,2,0),\"\")","v":""}]
[null,null,null,null,null,null,null,null,null,null,{"$f":"IF(ISNUMBER(SEARCH($E$3,L184)),MAX($K$1,K183)+1,0)","v":0},"Franklin India Opportunities",2133,null,null,null,null,null,null,null,null,null,null,null,null,{"$f":"IFERROR(VLOOKUP(ROWS($Z$2:Z184),K184:L932,2,0),\"\")","v":""}]
[null,null,null,null,null,null,null,null,null,null,{"$f":"IF(ISNUMBER(SEARCH($E$3,L185)),MAX($K$1,K184)+1,0)","v":0},"Franklin India Opportunities Direct",15999,null,null,null,null,null,null,null,null,null,null,null,null,{"$f":"IFERROR(VLOOKUP(ROWS($Z$2:Z185),K185:L933,2,0),\"\")","v":""}]
[null,null,null,null,null,null,null,null,null,null,{"$f":"IF(ISNUMBER(SEARCH($E$3,L186)),MAX($K$1,K185)+1,0)","v":0},"Franklin India Prima",115,null,null,null,null,null,null,null,null,null,null,null,null,{"$f":"IFERROR(VLOOKUP(ROWS($Z$2:Z186),K186:L934,2,0),\"\")","v":""}]
[null,null,null,null,null,null,null,null,null,null,{"$f":"IF(ISNUMBER(SEARCH($E$3,L187)),MAX($K$1,K186)+1,0)","v":0},"Franklin India Prima Direct",16003,null,null,null,null,null,null,null,null,null,null,null,null,{"$f":"IFERROR(VLOOKUP(ROWS($Z$2:Z187),K187:L935,2,0),\"\")","v":""}]
[null,null,null,null,null,null,null,null,null,null,{"$f":"IF(ISNUMBER(SEARCH($E$3,L188)),MAX($K$1,K187)+1,0)","v":0},"Franklin India Prima Plus",116,null,null,null,null,null,null,null,null,null,null,null,null,{"$f":"IFERROR(VLOOKUP(ROWS($Z$2:Z188),K188:L936,2,0),\"\")","v":""}]
[null,null,null,null,null,null,null,null,null,null,{"$f":"IF(ISNUMBER(SEARCH($E$3,L189)),MAX($K$1,K188)+1,0)","v":0},"Franklin India Prima Plus Direct",16008,null,null,null,null,null,null,null,null,null,null,null,null,{"$f":"IFERROR(VLOOKUP(ROWS($Z$2:Z189),K189:L937,2,0),\"\")","v":""}]
[null,null,null,null,null,null,null,null,null,null,{"$f":"IF(ISNUMBER(SEARCH($E$3,L190)),MAX($K$1,K189)+1,0)","v":0},"Franklin India Smaller Companies",3019,null,null,null,null,null,null,null,null,null,null,null,null,{"$f":"IFERROR(VLOOKUP(ROWS($Z$2:Z190),K190:L938,2,0),\"\")","v":""}]
[null,null,null,null,null,null,null,null,null,null,{"$f":"IF(ISNUMBER(SEARCH($E$3,L191)),MAX($K$1,K190)+1,0)","v":0},"Franklin India Smaller Companies Direct",16010,null,null,null,null,null,null,null,null,null,null,null,null,{"$f":"IFERROR(VLOOKUP(ROWS($Z$2:Z191),K191:L939,2,0),\"\")","v":""}]
[null,null,null,null,null,null,null,null,null,null,{"$f":"IF(ISNUMBER(SEARCH($E$3,L192)),MAX($K$1,K191)+1,0)","v":0},"Franklin India Taxshield",601,null,null,null,null,null,null,null,null,null,null,null,null,{"$f":"IFERROR(VLOOKUP(ROWS($Z$2:Z192),K192:L940,2,0),\"\")","v":""}]
[null,null,null,null,null,null,null,null,null,null,{"$f":"IF(ISNUMBER(SEARCH($E$3,L193)),MAX($K$1,K192)+1,0)","v":0},"Franklin India Taxshield Direct",16014,null,null,null,null,null,null,null,null,null,null,null,null,{"$f":"IFERROR(VLOOKUP(ROWS($Z$2:Z193),K193:L941,2,0),\"\")","v":""}]
[null,null,null,null,null,null,null,null,null,null,{"$f":"IF(ISNUMBER(SEARCH($E$3,L194)),MAX($K$1,K193)+1,0)","v":0},"Franklin Infotech",548,null,null,null,null,null,null,null,null,null,null,null,null,{"$f":"IFERROR(VLOOKUP(ROWS($Z$2:Z194),K194:L942,2,0),\"\")","v":""}]
[null,null,null,null,null,null,null,null,null,null,{"$f":"IF(ISNUMBER(SEARCH($E$3,L195)),MAX($K$1,K194)+1,0)","v":0},"Franklin Infotech Direct",16018,null,null,null,null,null,null,null,null,null,null,null,null,{"$f":"IFERROR(VLOOKUP(ROWS($Z$2:Z195),K195:L943,2,0),\"\")","v":""}]
[null,null,null,null,null,null,null,null,null,null,{"$f":"IF(ISNUMBER(SEARCH($E$3,L196)),MAX($K$1,K195)+1,0)","v":0},"FT India Feeder Franklin US Opportunities",14017,null,null,null,null,null,null,null,null,null,null,null,null,{"$f":"IFERROR(VLOOKUP(ROWS($Z$2:Z196),K196:L944,2,0),\"\")","v":""}]
[null,null,null,null,null,null,null,null,null,null,{"$f":"IF(ISNUMBER(SEARCH($E$3,L197)),MAX($K$1,K196)+1,0)","v":0},"FT India Feeder Franklin US Opportunities Direct",16027,null,null,null,null,null,null,null,null,null,null,null,null,{"$f":"IFERROR(VLOOKUP(ROWS($Z$2:Z197),K197:L945,2,0),\"\")","v":""}]
[null,null,null,null,null,null,null,null,null,null,{"$f":"IF(ISNUMBER(SEARCH($E$3,L198)),MAX($K$1,K197)+1,0)","v":0},"FT India Life Stage FoF 20s",1978,null,null,null,null,null,null,null,null,null,null,null,null,{"$f":"IFERROR(VLOOKUP(ROWS($Z$2:Z198),K198:L946,2,0),\"\")","v":""}]
[null,null,null,null,null,null,null,null,null,null,{"$f":"IF(ISNUMBER(SEARCH($E$3,L199)),MAX($K$1,K198)+1,0)","v":0},"FT India Life Stage FoF 20s Direct",16030,null,null,null,null,null,null,null,null,null,null,null,null,{"$f":"IFERROR(VLOOKUP(ROWS($Z$2:Z199),K199:L947,2,0),\"\")","v":""}]
[null,null,null,null,null,null,null,null,null,null,{"$f":"IF(ISNUMBER(SEARCH($E$3,L200)),MAX($K$1,K199)+1,0)","v":0},"Goldman Sachs Banking BeES",2255,null,null,null,null,null,null,null,null,null,null,null,null,{"$f":"IFERROR(VLOOKUP(ROWS($Z$2:Z200),K200:L948,2,0),\"\")","v":""}]
[null,null,null,null,null,null,null,null,null,null,{"$f":"IF(ISNUMBER(SEARCH($E$3,L201)),MAX($K$1,K200)+1,0)","v":0},"Goldman Sachs CNX 500",9962,null,null,null,null,null,null,null,null,null,null,null,null,{"$f":"IFERROR(VLOOKUP(ROWS($Z$2:Z201),K201:L949,2,0),\"\")","v":""}]
[null,null,null,null,null,null,null,null,null,null,{"$f":"IF(ISNUMBER(SEARCH($E$3,L202)),MAX($K$1,K201)+1,0)","v":0},"Goldman Sachs CNX 500 Direct",16435,null,null,null,null,null,null,null,null,null,null,null,null,{"$f":"IFERROR(VLOOKUP(ROWS($Z$2:Z202),K202:L950,2,0),\"\")","v":""}]
[null,null,null,null,null,null,null,null,null,null,{"$f":"IF(ISNUMBER(SEARCH($E$3,L203)),MAX($K$1,K202)+1,0)","v":0},"Goldman Sachs CNX Nifty Shariah BeES",10218,null,null,null,null,null,null,null,null,null,null,null,null,{"$f":"IFERROR(VLOOKUP(ROWS($Z$2:Z203),K203:L951,2,0),\"\")","v":""}]
[null,null,null,null,null,null,null,null,null,null,{"$f":"IF(ISNUMBER(SEARCH($E$3,L204)),MAX($K$1,K203)+1,0)","v":0},"Goldman Sachs Hang Seng BeES",10905,null,null,null,null,null,null,null,null,null,null,null,null,{"$f":"IFERROR(VLOOKUP(ROWS($Z$2:Z204),K204:L952,2,0),\"\")","v":""}]
[null,null,null,null,null,null,null,null,null,null,{"$f":"IF(ISNUMBER(SEARCH($E$3,L205)),MAX($K$1,K204)+1,0)","v":0},"Goldman Sachs India Equity",15376,null,null,null,null,null,null,null,null,null,null,null,null,{"$f":"IFERROR(VLOOKUP(ROWS($Z$2:Z205),K205:L953,2,0),\"\")","v":""}]
[null,null,null,null,null,null,null,null,null,null,{"$f":"IF(ISNUMBER(SEARCH($E$3,L206)),MAX($K$1,K205)+1,0)","v":0},"Goldman Sachs India Equity Direct",16427,null,null,null,null,null,null,null,null,null,null,null,null,{"$f":"IFERROR(VLOOKUP(ROWS($Z$2:Z206),K206:L954,2,0),\"\")","v":""}]
[null,null,null,null,null,null,null,null,null,null,{"$f":"IF(ISNUMBER(SEARCH($E$3,L207)),MAX($K$1,K206)+1,0)","v":0},"Goldman Sachs Infra BeES",11650,null,null,null,null,null,null,null,null,null,null,null,null,{"$f":"IFERROR(VLOOKUP(ROWS($Z$2:Z207),K207:L955,2,0),\"\")","v":""}]
[null,null,null,null,null,null,null,null,null,null,{"$f":"IF(ISNUMBER(SEARCH($E$3,L208)),MAX($K$1,K207)+1,0)","v":0},"Goldman Sachs Nifty ETS",1171,null,null,null,null,null,null,null,null,null,null,null,null,{"$f":"IFERROR(VLOOKUP(ROWS($Z$2:Z208),K208:L956,2,0),\"\")","v":""}]
[null,null,null,null,null,null,null,null,null,null,{"$f":"IF(ISNUMBER(SEARCH($E$3,L209)),MAX($K$1,K208)+1,0)","v":0},"Goldman Sachs Nifty Junior BeES",1545,null,null,null,null,null,null,null,null,null,null,null,null,{"$f":"IFERROR(VLOOKUP(ROWS($Z$2:Z209),K209:L957,2,0),\"\")","v":""}]
[null,null,null,null,null,null,null,null,null,null,{"$f":"IF(ISNUMBER(SEARCH($E$3,L210)),MAX($K$1,K209)+1,0)","v":0},"Goldman Sachs PSU Bank BeES",6175,null,null,null,null,null,null,null,null,null,null,null,null,{"$f":"IFERROR(VLOOKUP(ROWS($Z$2:Z210),K210:L958,2,0),\"\")","v":""}]
[null,null,null,null,null,null,null,null,null,null,{"$f":"IF(ISNUMBER(SEARCH($E$3,L211)),MAX($K$1,K210)+1,0)","v":1},"HDFC Capital Builder",218,null,null,null,null,null,null,null,null,null,null,null,null,{"$f":"IFERROR(VLOOKUP(ROWS($Z$2:Z211),K211:L959,2,0),\"\")","v":""}]
[null,null,null,null,null,null,null,null,null,null,{"$f":"IF(ISNUMBER(SEARCH($E$3,L212)),MAX($K$1,K211)+1,0)","v":2},"HDFC Capital Builder Direct",15989,null,null,null,null,null,null,null,null,null,null,null,null,{"$f":"IFERROR(VLOOKUP(ROWS($Z$2:Z212),K212:L960,2,0),\"\")","v":""}]
[null,null,null,null,null,null,null,null,null,null,{"$f":"IF(ISNUMBER(SEARCH($E$3,L213)),MAX($K$1,K212)+1,0)","v":3},"HDFC Core & Satellite",2372,null,null,null,null,null,null,null,null,null,null,null,null,{"$f":"IFERROR(VLOOKUP(ROWS($Z$2:Z213),K213:L961,2,0),\"\")","v":""}]
[null,null,null,null,null,null,null,null,null,null,{"$f":"IF(ISNUMBER(SEARCH($E$3,L214)),MAX($K$1,K213)+1,0)","v":4},"HDFC Core & Satellite Direct",16021,null,null,null,null,null,null,null,null,null,null,null,null,{"$f":"IFERROR(VLOOKUP(ROWS($Z$2:Z214),K214:L962,2,0),\"\")","v":""}]
[null,null,null,null,null,null,null,null,null,null,{"$f":"IF(ISNUMBER(SEARCH($E$3,L215)),MAX($K$1,K214)+1,0)","v":5},"HDFC Equity",219,null,null,null,null,null,null,null,null,null,null,null,null,{"$f":"IFERROR(VLOOKUP(ROWS($Z$2:Z215),K215:L963,2,0),\"\")","v":""}]
[null,null,null,null,null,null,null,null,null,null,{"$f":"IF(ISNUMBER(SEARCH($E$3,L216)),MAX($K$1,K215)+1,0)","v":6},"HDFC Equity Direct",16026,null,null,null,null,null,null,null,null,null,null,null,null,{"$f":"IFERROR(VLOOKUP(ROWS($Z$2:Z216),K216:L964,2,0),\"\")","v":""}]
[null,null,null,null,null,null,null,null,null,null,{"$f":"IF(ISNUMBER(SEARCH($E$3,L217)),MAX($K$1,K216)+1,0)","v":7},"HDFC Focused Large Cap",3097,null,null,null,null,null,null,null,null,null,null,null,null,{"$f":"IFERROR(VLOOKUP(ROWS($Z$2:Z217),K217:L965,2,0),\"\")","v":""}]
[null,null,null,null,null,null,null,null,null,null,{"$f":"IF(ISNUMBER(SEARCH($E$3,L218)),MAX($K$1,K217)+1,0)","v":8},"HDFC Focused Large Cap Direct",16097,null,null,null,null,null,null,null,null,null,null,null,null,{"$f":"IFERROR(VLOOKUP(ROWS($Z$2:Z218),K218:L966,2,0),\"\")","v":""}]
[null,null,null,null,null,null,null,null,null,null,{"$f":"IF(ISNUMBER(SEARCH($E$3,L219)),MAX($K$1,K218)+1,0)","v":9},"HDFC Growth",842,null,null,null,null,null,null,null,null,null,null,null,null,{"$f":"IFERROR(VLOOKUP(ROWS($Z$2:Z219),K219:L967,2,0),\"\")","v":""}]
[null,null,null,null,null,null,null,null,null,null,{"$f":"IF(ISNUMBER(SEARCH($E$3,L220)),MAX($K$1,K219)+1,0)","v":10},"HDFC Growth Direct",16055,null,null,null,null,null,null,null,null,null,null,null,null,{"$f":"IFERROR(VLOOKUP(ROWS($Z$2:Z220),K220:L968,2,0),\"\")","v":""}]
[null,null,null,null,null,null,null,null,null,null,{"$f":"IF(ISNUMBER(SEARCH($E$3,L221)),MAX($K$1,K220)+1,0)","v":11},"HDFC Index Nifty",1368,null,null,null,null,null,null,null,null,null,null,null,null,{"$f":"IFERROR(VLOOKUP(ROWS($Z$2:Z221),K221:L969,2,0),\"\")","v":""}]
[null,null,null,null,null,null,null,null,null,null,{"$f":"IF(ISNUMBER(SEARCH($E$3,L222)),MAX($K$1,K221)+1,0)","v":12},"HDFC Index Nifty Direct",16069,null,null,null,null,null,null,null,null,null,null,null,null,{"$f":"IFERROR(VLOOKUP(ROWS($Z$2:Z222),K222:L970,2,0),\"\")","v":""}]
[null,null,null,null,null,null,null,null,null,null,{"$f":"IF(ISNUMBER(SEARCH($E$3,L223)),MAX($K$1,K222)+1,0)","v":13},"HDFC Index Sensex",1370,null,null,null,null,null,null,null,null,null,null,null,null,{"$f":"IFERROR(VLOOKUP(ROWS($Z$2:Z223),K223:L971,2,0),\"\")","v":""}]
[null,null,null,null,null,null,null,null,null,null,{"$f":"IF(ISNUMBER(SEARCH($E$3,L224)),MAX($K$1,K223)+1,0)","v":14},"HDFC Index Sensex Direct",16071,null,null,null,null,null,null,null,null,null,null,null,null,{"$f":"IFERROR(VLOOKUP(ROWS($Z$2:Z224),K224:L972,2,0),\"\")","v":""}]
[null,null,null,null,null,null,null,null,null,null,{"$f":"IF(ISNUMBER(SEARCH($E$3,L225)),MAX($K$1,K224)+1,0)","v":15},"HDFC Index Sensex Plus",1372,null,null,null,null,null,null,null,null,null,null,null,null,{"$f":"IFERROR(VLOOKUP(ROWS($Z$2:Z225),K225:L973,2,0),\"\")","v":""}]
[null,null,null,null,null,null,null,null,null,null,{"$f":"IF(ISNUMBER(SEARCH($E$3,L226)),MAX($K$1,K225)+1,0)","v":16},"HDFC Index Sensex Plus Direct",16073,null,null,null,null,null,null,null,null,null,null,null,null,{"$f":"IFERROR(VLOOKUP(ROWS($Z$2:Z226),K226:L974,2,0),\"\")","v":""}]
[null,null,null,null,null,null,null,null,null,null,{"$f":"IF(ISNUMBER(SEARCH($E$3,L227)),MAX($K$1,K226)+1,0)","v":17},"HDFC Infrastructure",6677,null,null,null,null,null,null,null,null,null,null,null,null,{"$f":"IFERROR(VLOOKUP(ROWS($Z$2:Z227),K227:L975,2,0),\"\")","v":""}]
[null,null,null,null,null,null,null,null,null,null,{"$f":"IF(ISNUMBER(SEARCH($E$3,L228)),MAX($K$1,K227)+1,0)","v":18},"HDFC Infrastructure Direct",16074,null,null,null,null,null,null,null,null,null,null,null,null,{"$f":"IFERROR(VLOOKUP(ROWS($Z$2:Z228),K228:L976,2,0),\"\")","v":""}]
[null,null,null,null,null,null,null,null,null,null,{"$f":"IF(ISNUMBER(SEARCH($E$3,L229)),MAX($K$1,K228)+1,0)","v":19},"HDFC LT Advantage",915,null,null,null,null,null,null,null,null,null,null,null,null,{"$f":"IFERROR(VLOOKUP(ROWS($Z$2:Z229),K229:L977,2,0),\"\")","v":""}]
[null,null,null,null,null,null,null,null,null,null,{"$f":"IF(ISNUMBER(SEARCH($E$3,L230)),MAX($K$1,K229)+1,0)","v":20},"HDFC LT Advantage Direct",16090,null,null,null,null,null,null,null,null,null,null,null,null,{"$f":"IFERROR(VLOOKUP(ROWS($Z$2:Z230),K230:L978,2,0),\"\")","v":""}]
[null,null,null,null,null,null,null,null,null,null,{"$f":"IF(ISNUMBER(SEARCH($E$3,L231)),MAX($K$1,K230)+1,0)","v":21},"HDFC Mid-Cap Opportunities",5067,null,null,null,null,null,null,null,null,null,null,null,null,{"$f":"IFERROR(VLOOKUP(ROWS($Z$2:Z231),K231:L979,2,0),\"\")","v":""}]
[null,null,null,null,null,null,null,null,null,null,{"$f":"IF(ISNUMBER(SEARCH($E$3,L232)),MAX($K$1,K231)+1,0)","v":22},"HDFC Mid-Cap Opportunities Direct",16114,null,null,null,null,null,null,null,null,null,null,null,null,{"$f":"IFERROR(VLOOKUP(ROWS($Z$2:Z232),K232:L980,2,0),\"\")","v":""}]
[null,null,null,null,null,null,null,null,null,null,{"$f":"IF(ISNUMBER(SEARCH($E$3,L233)),MAX($K$1,K232)+1,0)","v":23},"HDFC Premier Multi-Cap",2668,null,null,null,null,null,null,null,null,null,null,null,null,{"$f":"IFERROR(VLOOKUP(ROWS($Z$2:Z233),K233:L981,2,0),\"\")","v":""}]
[null,null,null,null,null,null,null,null,null,null,{"$f":"IF(ISNUMBER(SEARCH($E$3,L234)),MAX($K$1,K233)+1,0)","v":24},"HDFC Premier Multi-Cap Direct",16132,null,null,null,null,null,null,null,null,null,null,null,null,{"$f":"IFERROR(VLOOKUP(ROWS($Z$2:Z234),K234:L982,2,0),\"\")","v":""}]
[null,null,null,null,null,null,null,null,null,null,{"$f":"IF(ISNUMBER(SEARCH($E$3,L235)),MAX($K$1,K234)+1,0)","v":25},"HDFC Taxsaver",854,null,null,null,null,null,null,null,null,null,null,null,null,{"$f":"IFERROR(VLOOKUP(ROWS($Z$2:Z235),K235:L983,2,0),\"\")","v":""}]
[null,null,null,null,null,null,null,null,null,null,{"$f":"IF(ISNUMBER(SEARCH($E$3,L236)),MAX($K$1,K235)+1,0)","v":26},"HDFC Taxsaver Direct",16160,null,null,null,null,null,null,null,null,null,null,null,null,{"$f":"IFERROR(VLOOKUP(ROWS($Z$2:Z236),K236:L984,2,0),\"\")","v":""}]
[null,null,null,null,null,null,null,null,null,null,{"$f":"IF(ISNUMBER(SEARCH($E$3,L237)),MAX($K$1,K236)+1,0)","v":27},"HDFC Top 200",104,null,null,null,null,null,null,null,null,null,null,null,null,{"$f":"IFERROR(VLOOKUP(ROWS($Z$2:Z237),K237:L985,2,0),\"\")","v":""}]
[null,null,null,null,null,null,null,null,null,null,{"$f":"IF(ISNUMBER(SEARCH($E$3,L238)),MAX($K$1,K237)+1,0)","v":28},"HDFC Top 200 Direct",16164,null,null,null,null,null,null,null,null,null,null,null,null,{"$f":"IFERROR(VLOOKUP(ROWS($Z$2:Z238),K238:L986,2,0),\"\")","v":""}]
[null,null,null,null,null,null,null,null,null,null,{"$f":"IF(ISNUMBER(SEARCH($E$3,L239)),MAX($K$1,K238)+1,0)","v":0},"HSBC Brazil",12632,null,null,null,null,null,null,null,null,null,null,null,null,{"$f":"IFERROR(VLOOKUP(ROWS($Z$2:Z239),K239:L987,2,0),\"\")","v":""}]
[null,null,null,null,null,null,null,null,null,null,{"$f":"IF(ISNUMBER(SEARCH($E$3,L240)),MAX($K$1,K239)+1,0)","v":0},"HSBC Brazil Direct",17042,null,null,null,null,null,null,null,null,null,null,null,null,{"$f":"IFERROR(VLOOKUP(ROWS($Z$2:Z240),K240:L988,2,0),\"\")","v":""}]
[null,null,null,null,null,null,null,null,null,null,{"$f":"IF(ISNUMBER(SEARCH($E$3,L241)),MAX($K$1,K240)+1,0)","v":0},"HSBC Brazil Direct",17043,null,null,null,null,null,null,null,null,null,null,null,null,{"$f":"IFERROR(VLOOKUP(ROWS($Z$2:Z241),K241:L989,2,0),\"\")","v":""}]
[null,null,null,null,null,null,null,null,null,null,{"$f":"IF(ISNUMBER(SEARCH($E$3,L242)),MAX($K$1,K241)+1,0)","v":0},"HSBC Dynamic",5562,null,null,null,null,null,null,null,null,null,null,null,null,{"$f":"IFERROR(VLOOKUP(ROWS($Z$2:Z242),K242:L990,2,0),\"\")","v":""}]
[null,null,null,null,null,null,null,null,null,null,{"$f":"IF(ISNUMBER(SEARCH($E$3,L243)),MAX($K$1,K242)+1,0)","v":0},"HSBC Dynamic Direct",17388,null,null,null,null,null,null,null,null,null,null,null,null,{"$f":"IFERROR(VLOOKUP(ROWS($Z$2:Z243),K243:L991,2,0),\"\")","v":""}]
[null,null,null,null,null,null,null,null,null,null,{"$f":"IF(ISNUMBER(SEARCH($E$3,L244)),MAX($K$1,K243)+1,0)","v":0},"HSBC Emerging Markets",6774,null,null,null,null,null,null,null,null,null,null,null,null,{"$f":"IFERROR(VLOOKUP(ROWS($Z$2:Z244),K244:L992,2,0),\"\")","v":""}]
[null,null,null,null,null,null,null,null,null,null,{"$f":"IF(ISNUMBER(SEARCH($E$3,L245)),MAX($K$1,K244)+1,0)","v":0},"HSBC Emerging Markets Direct",17037,null,null,null,null,null,null,null,null,null,null,null,null,{"$f":"IFERROR(VLOOKUP(ROWS($Z$2:Z245),K245:L993,2,0),\"\")","v":""}]
[null,null,null,null,null,null,null,null,null,null,{"$f":"IF(ISNUMBER(SEARCH($E$3,L246)),MAX($K$1,K245)+1,0)","v":0},"HSBC Equity",1481,null,null,null,null,null,null,null,null,null,null,null,null,{"$f":"IFERROR(VLOOKUP(ROWS($Z$2:Z246),K246:L994,2,0),\"\")","v":""}]
[null,null,null,null,null,null,null,null,null,null,{"$f":"IF(ISNUMBER(SEARCH($E$3,L247)),MAX($K$1,K246)+1,0)","v":0},"HSBC Equity Direct",16289,null,null,null,null,null,null,null,null,null,null,null,null,{"$f":"IFERROR(VLOOKUP(ROWS($Z$2:Z247),K247:L995,2,0),\"\")","v":""}]
[null,null,null,null,null,null,null,null,null,null,{"$f":"IF(ISNUMBER(SEARCH($E$3,L248)),MAX($K$1,K247)+1,0)","v":0},"HSBC India Opportunities",2072,null,null,null,null,null,null,null,null,null,null,null,null,{"$f":"IFERROR(VLOOKUP(ROWS($Z$2:Z248),K248:L996,2,0),\"\")","v":""}]
[null,null,null,null,null,null,null,null,null,null,{"$f":"IF(ISNUMBER(SEARCH($E$3,L249)),MAX($K$1,K248)+1,0)","v":0},"HSBC India Opportunities Direct",16320,null,null,null,null,null,null,null,null,null,null,null,null,{"$f":"IFERROR(VLOOKUP(ROWS($Z$2:Z249),K249:L997,2,0),\"\")","v":""}]
[null,null,null,null,null,null,null,null,null,null,{"$f":"IF(ISNUMBER(SEARCH($E$3,L250)),MAX($K$1,K249)+1,0)","v":0},"HSBC Midcap Equity",2736,null,null,null,null,null,null,null,null,null,null,null,null,{"$f":"IFERROR(VLOOKUP(ROWS($Z$2:Z250),K250:L998,2,0),\"\")","v":""}]
[null,null,null,null,null,null,null,null,null,null,{"$f":"IF(ISNUMBER(SEARCH($E$3,L251)),MAX($K$1,K250)+1,0)","v":0},"HSBC Midcap Equity Direct",16325,null,null,null,null,null,null,null,null,null,null,null,null,{"$f":"IFERROR(VLOOKUP(ROWS($Z$2:Z251),K251:L999,2,0),\"\")","v":""}]
[null,null,null,null,null,null,null,null,null,null,{"$f":"IF(ISNUMBER(SEARCH($E$3,L252)),MAX($K$1,K251)+1,0)","v":0},"HSBC Progressive Themes",3087,null,null,null,null,null,null,null,null,null,null,null,null,{"$f":"IFERROR(VLOOKUP(ROWS($Z$2:Z252),K252:L1000,2,0),\"\")","v":""}]
[null,null,null,null,null,null,null,null,null,null,{"$f":"IF(ISNUMBER(SEARCH($E$3,L253)),MAX($K$1,K252)+1,0)","v":0},"HSBC Progressive Themes Direct",16330,null,null,null,null,null,null,null,null,null,null,null,null,{"$f":"IFERROR(VLOOKUP(ROWS($Z$2:Z253),K253:L1001,2,0),\"\")","v":""}]
[null,null,null,null,null,null,null,null,null,null,{"$f":"IF(ISNUMBER(SEARCH($E$3,L254)),MAX($K$1,K253)+1,0)","v":0},"HSBC Small Cap",6776,null,null,null,null,null,null,null,null,null,null,null,null,{"$f":"IFERROR(VLOOKUP(ROWS($Z$2:Z254),K254:L1002,2,0),\"\")","v":""}]
[null,null,null,null,null,null,null,null,null,null,{"$f":"IF(ISNUMBER(SEARCH($E$3,L255)),MAX($K$1,K254)+1,0)","v":0},"HSBC Small Cap Direct",16282,null,null,null,null,null,null,null,null,null,null,null,null,{"$f":"IFERROR(VLOOKUP(ROWS($Z$2:Z255),K255:L1003,2,0),\"\")","v":""}]
[null,null,null,null,null,null,null,null,null,null,{"$f":"IF(ISNUMBER(SEARCH($E$3,L256)),MAX($K$1,K255)+1,0)","v":0},"HSBC Tax Saver Equity",3927,null,null,null,null,null,null,null,null,null,null,null,null,{"$f":"IFERROR(VLOOKUP(ROWS($Z$2:Z256),K256:L1004,2,0),\"\")","v":""}]
[null,null,null,null,null,null,null,null,null,null,{"$f":"IF(ISNUMBER(SEARCH($E$3,L257)),MAX($K$1,K256)+1,0)","v":0},"HSBC Tax Saver Equity Direct",16332,null,null,null,null,null,null,null,null,null,null,null,null,{"$f":"IFERROR(VLOOKUP(ROWS($Z$2:Z257),K257:L1005,2,0),\"\")","v":""}]
[null,null,null,null,null,null,null,null,null,null,{"$f":"IF(ISNUMBER(SEARCH($E$3,L258)),MAX($K$1,K257)+1,0)","v":0},"HSBC Unique Opportunities",4254,null,null,null,null,null,null,null,null,null,null,null,null,{"$f":"IFERROR(VLOOKUP(ROWS($Z$2:Z258),K258:L1006,2,0),\"\")","v":""}]
[null,null,null,null,null,null,null,null,null,null,{"$f":"IF(ISNUMBER(SEARCH($E$3,L259)),MAX($K$1,K258)+1,0)","v":0},"HSBC Unique Opportunities Direct",17698,null,null,null,null,null,null,null,null,null,null,null,null,{"$f":"IFERROR(VLOOKUP(ROWS($Z$2:Z259),K259:L1007,2,0),\"\")","v":""}]
[null,null,null,null,null,null,null,null,null,null,{"$f":"IF(ISNUMBER(SEARCH($E$3,L260)),MAX($K$1,K259)+1,0)","v":0},"ICICI Prudential Advisor-Very Aggressive Reg",1936,null,null,null,null,null,null,null,null,null,null,null,null,{"$f":"IFERROR(VLOOKUP(ROWS($Z$2:Z260),K260:L1008,2,0),\"\")","v":""}]
[null,null,null,null,null,null,null,null,null,null,{"$f":"IF(ISNUMBER(SEARCH($E$3,L261)),MAX($K$1,K260)+1,0)","v":0},"ICICI Prudential Banking and Financial Services Direct",15936,null,null,null,null,null,null,null,null,null,null,null,null,{"$f":"IFERROR(VLOOKUP(ROWS($Z$2:Z261),K261:L1009,2,0),\"\")","v":""}]
[null,null,null,null,null,null,null,null,null,null,{"$f":"IF(ISNUMBER(SEARCH($E$3,L262)),MAX($K$1,K261)+1,0)","v":0},"ICICI Prudential Banking and Financial Services Reg",8293,null,null,null,null,null,null,null,null,null,null,null,null,{"$f":"IFERROR(VLOOKUP(ROWS($Z$2:Z262),K262:L1010,2,0),\"\")","v":""}]
[null,null,null,null,null,null,null,null,null,null,{"$f":"IF(ISNUMBER(SEARCH($E$3,L263)),MAX($K$1,K262)+1,0)","v":0},"ICICI Prudential CNX 100 ETF",20933,null,null,null,null,null,null,null,null,null,null,null,null,{"$f":"IFERROR(VLOOKUP(ROWS($Z$2:Z263),K263:L1011,2,0),\"\")","v":""}]
[null,null,null,null,null,null,null,null,null,null,{"$f":"IF(ISNUMBER(SEARCH($E$3,L264)),MAX($K$1,K263)+1,0)","v":0},"ICICI Prudential Discovery Direct",15822,null,null,null,null,null,null,null,null,null,null,null,null,{"$f":"IFERROR(VLOOKUP(ROWS($Z$2:Z264),K264:L1012,2,0),\"\")","v":""}]
[null,null,null,null,null,null,null,null,null,null,{"$f":"IF(ISNUMBER(SEARCH($E$3,L265)),MAX($K$1,K264)+1,0)","v":0},"ICICI Prudential Discovery Inst I",3278,null,null,null,null,null,null,null,null,null,null,null,null,{"$f":"IFERROR(VLOOKUP(ROWS($Z$2:Z265),K265:L1013,2,0),\"\")","v":""}]
[null,null,null,null,null,null,null,null,null,null,{"$f":"IF(ISNUMBER(SEARCH($E$3,L266)),MAX($K$1,K265)+1,0)","v":0},"ICICI Prudential Discovery Reg",2310,null,null,null,null,null,null,null,null,null,null,null,null,{"$f":"IFERROR(VLOOKUP(ROWS($Z$2:Z266),K266:L1014,2,0),\"\")","v":""}]
[null,null,null,null,null,null,null,null,null,null,{"$f":"IF(ISNUMBER(SEARCH($E$3,L267)),MAX($K$1,K266)+1,0)","v":0},"ICICI Prudential Dynamic Direct",15945,null,null,null,null,null,null,null,null,null,null,null,null,{"$f":"IFERROR(VLOOKUP(ROWS($Z$2:Z267),K267:L1015,2,0),\"\")","v":""}]
[null,null,null,null,null,null,null,null,null,null,{"$f":"IF(ISNUMBER(SEARCH($E$3,L268)),MAX($K$1,K267)+1,0)","v":0},"ICICI Prudential Dynamic Inst",12753,null,null,null,null,null,null,null,null,null,null,null,null,{"$f":"IFERROR(VLOOKUP(ROWS($Z$2:Z268),K268:L1016,2,0),\"\")","v":""}]
[null,null,null,null,null,null,null,null,null,null,{"$f":"IF(ISNUMBER(SEARCH($E$3,L269)),MAX($K$1,K268)+1,0)","v":0},"ICICI Prudential Dynamic Inst I",4437,null,null,null,null,null,null,null,null,null,null,null,null,{"$f":"IFERROR(VLOOKUP(ROWS($Z$2:Z269),K269:L1017,2,0),\"\")","v":""}]
[null,null,null,null,null,null,null,null,null,null,{"$f":"IF(ISNUMBER(SEARCH($E$3,L270)),MAX($K$1,K269)+1,0)","v":0},"ICICI Prudential Dynamic Reg",1471,null,null,null,null,null,null,null,null,null,null,null,null,{"$f":"IFERROR(VLOOKUP(ROWS($Z$2:Z270),K270:L1018,2,0),\"\")","v":""}]
[null,null,null,null,null,null,null,null,null,null,{"$f":"IF(ISNUMBER(SEARCH($E$3,L271)),MAX($K$1,K270)+1,0)","v":0},"ICICI Prudential Exports and Other Services Direct",15859,null,null,null,null,null,null,null,null,null,null,null,null,{"$f":"IFERROR(VLOOKUP(ROWS($Z$2:Z271),K271:L1019,2,0),\"\")","v":""}]
[null,null,null,null,null,null,null,null,null,null,{"$f":"IF(ISNUMBER(SEARCH($E$3,L272)),MAX($K$1,K271)+1,0)","v":0},"ICICI Prudential Exports and Other Services Reg",2968,null,null,null,null,null,null,null,null,null,null,null,null,{"$f":"IFERROR(VLOOKUP(ROWS($Z$2:Z272),K272:L1020,2,0),\"\")","v":""}]
[null,null,null,null,null,null,null,null,null,null,{"$f":"IF(ISNUMBER(SEARCH($E$3,L273)),MAX($K$1,K272)+1,0)","v":0},"ICICI Prudential FMCG Direct",15836,null,null,null,null,null,null,null,null,null,null,null,null,{"$f":"IFERROR(VLOOKUP(ROWS($Z$2:Z273),K273:L1021,2,0),\"\")","v":""}]
[null,null,null,null,null,null,null,null,null,null,{"$f":"IF(ISNUMBER(SEARCH($E$3,L274)),MAX($K$1,K273)+1,0)","v":0},"ICICI Prudential FMCG Reg",591,null,null,null,null,null,null,null,null,null,null,null,null,{"$f":"IFERROR(VLOOKUP(ROWS($Z$2:Z274),K274:L1022,2,0),\"\")","v":""}]
[null,null,null,null,null,null,null,null,null,null,{"$f":"IF(ISNUMBER(SEARCH($E$3,L275)),MAX($K$1,K274)+1,0)","v":0},"ICICI Prudential Focused Bluechip Equity Direct",15841,null,null,null,null,null,null,null,null,null,null,null,null,{"$f":"IFERROR(VLOOKUP(ROWS($Z$2:Z275),K275:L1023,2,0),\"\")","v":""}]
[null,null,null,null,null,null,null,null,null,null,{"$f":"IF(ISNUMBER(SEARCH($E$3,L276)),MAX($K$1,K275)+1,0)","v":0},"ICICI Prudential Focused Bluechip Equity Inst I",7519,null,null,null,null,null,null,null,null,null,null,null,null,{"$f":"IFERROR(VLOOKUP(ROWS($Z$2:Z276),K276:L1024,2,0),\"\")","v":""}]
[null,null,null,null,null,null,null,null,null,null,{"$f":"IF(ISNUMBER(SEARCH($E$3,L277)),MAX($K$1,K276)+1,0)","v":0},"ICICI Prudential Focused Bluechip Equity Reg",7517,null,null,null,null,null,null,null,null,null,null,null,null,{"$f":"IFERROR(VLOOKUP(ROWS($Z$2:Z277),K277:L1025,2,0),\"\")","v":""}]
[null,null,null,null,null,null,null,null,null,null,{"$f":"IF(ISNUMBER(SEARCH($E$3,L278)),MAX($K$1,K277)+1,0)","v":0},"ICICI Prudential Global Stable Equity Direct",20857,null,null,null,null,null,null,null,null,null,null,null,null,{"$f":"IFERROR(VLOOKUP(ROWS($Z$2:Z278),K278:L1026,2,0),\"\")","v":""}]
[null,null,null,null,null,null,null,null,null,null,{"$f":"IF(ISNUMBER(SEARCH($E$3,L279)),MAX($K$1,K278)+1,0)","v":0},"ICICI Prudential Global Stable Equity Reg",20855,null,null,null,null,null,null,null,null,null,null,null,null,{"$f":"IFERROR(VLOOKUP(ROWS($Z$2:Z279),K279:L1027,2,0),\"\")","v":""}]
[null,null,null,null,null,null,null,null,null,null,{"$f":"IF(ISNUMBER(SEARCH($E$3,L280)),MAX($K$1,K279)+1,0)","v":0},"ICICI Prudential Index Direct",15959,null,null,null,null,null,null,null,null,null,null,null,null,{"$f":"IFERROR(VLOOKUP(ROWS($Z$2:Z280),K280:L1028,2,0),\"\")","v":""}]
[null,null,null,null,null,null,null,null,null,null,{"$f":"IF(ISNUMBER(SEARCH($E$3,L281)),MAX($K$1,K280)+1,0)","v":0},"ICICI Prudential Index Reg",1236,null,null,null,null,null,null,null,null,null,null,null,null,{"$f":"IFERROR(VLOOKUP(ROWS($Z$2:Z281),K281:L1029,2,0),\"\")","v":""}]
[null,null,null,null,null,null,null,null,null,null,{"$f":"IF(ISNUMBER(SEARCH($E$3,L282)),MAX($K$1,K281)+1,0)","v":0},"ICICI Prudential Indo Asia Equity Direct",17116,null,null,null,null,null,null,null,null,null,null,null,null,{"$f":"IFERROR(VLOOKUP(ROWS($Z$2:Z282),K282:L1030,2,0),\"\")","v":""}]
[null,null,null,null,null,null,null,null,null,null,{"$f":"IF(ISNUMBER(SEARCH($E$3,L283)),MAX($K$1,K282)+1,0)","v":0},"ICICI Prudential Indo Asia Equity Inst",5648,null,null,null,null,null,null,null,null,null,null,null,null,{"$f":"IFERROR(VLOOKUP(ROWS($Z$2:Z283),K283:L1031,2,0),\"\")","v":""}]
[null,null,null,null,null,null,null,null,null,null,{"$f":"IF(ISNUMBER(SEARCH($E$3,L284)),MAX($K$1,K283)+1,0)","v":0},"ICICI Prudential Indo Asia Equity Reg",5646,null,null,null,null,null,null,null,null,null,null,null,null,{"$f":"IFERROR(VLOOKUP(ROWS($Z$2:Z284),K284:L1032,2,0),\"\")","v":""}]
[null,null,null,null,null,null,null,null,null,null,{"$f":"IF(ISNUMBER(SEARCH($E$3,L285)),MAX($K$1,K284)+1,0)","v":0},"ICICI Prudential Infrastructure Direct",15849,null,null,null,null,null,null,null,null,null,null,null,null,{"$f":"IFERROR(VLOOKUP(ROWS($Z$2:Z285),K285:L1033,2,0),\"\")","v":""}]
[null,null,null,null,null,null,null,null,null,null,{"$f":"IF(ISNUMBER(SEARCH($E$3,L286)),MAX($K$1,K285)+1,0)","v":0},"ICICI Prudential Infrastructure Inst I",4936,null,null,null,null,null,null,null,null,null,null,null,null,{"$f":"IFERROR(VLOOKUP(ROWS($Z$2:Z286),K286:L1034,2,0),\"\")","v":""}]
[null,null,null,null,null,null,null,null,null,null,{"$f":"IF(ISNUMBER(SEARCH($E$3,L287)),MAX($K$1,K286)+1,0)","v":0},"ICICI Prudential Infrastructure Reg",2814,null,null,null,null,null,null,null,null,null,null,null,null,{"$f":"IFERROR(VLOOKUP(ROWS($Z$2:Z287),K287:L1035,2,0),\"\")","v":""}]
[null,null,null,null,null,null,null,null,null,null,{"$f":"IF(ISNUMBER(SEARCH($E$3,L288)),MAX($K$1,K287)+1,0)","v":0},"ICICI Prudential Midcap Direct",15960,null,null,null,null,null,null,null,null,null,null,null,null,{"$f":"IFERROR(VLOOKUP(ROWS($Z$2:Z288),K288:L1036,2,0),\"\")","v":""}]
[null,null,null,null,null,null,null,null,null,null,{"$f":"IF(ISNUMBER(SEARCH($E$3,L289)),MAX($K$1,K288)+1,0)","v":0},"ICICI Prudential Midcap Inst I",3402,null,null,null,null,null,null,null,null,null,null,null,null,{"$f":"IFERROR(VLOOKUP(ROWS($Z$2:Z289),K289:L1037,2,0),\"\")","v":""}]
[null,null,null,null,null,null,null,null,null,null,{"$f":"IF(ISNUMBER(SEARCH($E$3,L290)),MAX($K$1,K289)+1,0)","v":0},"ICICI Prudential Midcap Reg",2439,null,null,null,null,null,null,null,null,null,null,null,null,{"$f":"IFERROR(VLOOKUP(ROWS($Z$2:Z290),K290:L1038,2,0),\"\")","v":""}]
[null,null,null,null,null,null,null,null,null,null,{"$f":"IF(ISNUMBER(SEARCH($E$3,L291)),MAX($K$1,K290)+1,0)","v":0},"ICICI Prudential Nifty ETF",18653,null,null,null,null,null,null,null,null,null,null,null,null,{"$f":"IFERROR(VLOOKUP(ROWS($Z$2:Z291),K291:L1039,2,0),\"\")","v":""}]
[null,null,null,null,null,null,null,null,null,null,{"$f":"IF(ISNUMBER(SEARCH($E$3,L292)),MAX($K$1,K291)+1,0)","v":0},"ICICI Prudential Nifty Junior Index",11236,null,null,null,null,null,null,null,null,null,null,null,null,{"$f":"IFERROR(VLOOKUP(ROWS($Z$2:Z292),K292:L1040,2,0),\"\")","v":""}]
[null,null,null,null,null,null,null,null,null,null,{"$f":"IF(ISNUMBER(SEARCH($E$3,L293)),MAX($K$1,K292)+1,0)","v":0},"ICICI Prudential Nifty Junior Index Direct",15856,null,null,null,null,null,null,null,null,null,null,null,null,{"$f":"IFERROR(VLOOKUP(ROWS($Z$2:Z293),K293:L1041,2,0),\"\")","v":""}]
[null,null,null,null,null,null,null,null,null,null,{"$f":"IF(ISNUMBER(SEARCH($E$3,L294)),MAX($K$1,K293)+1,0)","v":0},"ICICI Prudential SPIcE",1512,null,null,null,null,null,null,null,null,null,null,null,null,{"$f":"IFERROR(VLOOKUP(ROWS($Z$2:Z294),K294:L1042,2,0),\"\")","v":""}]
[null,null,null,null,null,null,null,null,null,null,{"$f":"IF(ISNUMBER(SEARCH($E$3,L295)),MAX($K$1,K294)+1,0)","v":0},"ICICI Prudential Target Returns Direct",17412,null,null,null,null,null,null,null,null,null,null,null,null,{"$f":"IFERROR(VLOOKUP(ROWS($Z$2:Z295),K295:L1043,2,0),\"\")","v":""}]
[null,null,null,null,null,null,null,null,null,null,{"$f":"IF(ISNUMBER(SEARCH($E$3,L296)),MAX($K$1,K295)+1,0)","v":0},"ICICI Prudential Target Returns Reg",10399,null,null,null,null,null,null,null,null,null,null,null,null,{"$f":"IFERROR(VLOOKUP(ROWS($Z$2:Z296),K296:L1044,2,0),\"\")","v":""}]
[null,null,null,null,null,null,null,null,null,null,{"$f":"IF(ISNUMBER(SEARCH($E$3,L297)),MAX($K$1,K296)+1,0)","v":0},"ICICI Prudential Tax Direct",15862,null,null,null,null,null,null,null,null,null,null,null,null,{"$f":"IFERROR(VLOOKUP(ROWS($Z$2:Z297),K297:L1045,2,0),\"\")","v":""}]
[null,null,null,null,null,null,null,null,null,null,{"$f":"IF(ISNUMBER(SEARCH($E$3,L298)),MAX($K$1,K297)+1,0)","v":0},"ICICI Prudential Tax Plan Reg",640,null,null,null,null,null,null,null,null,null,null,null,null,{"$f":"IFERROR(VLOOKUP(ROWS($Z$2:Z298),K298:L1046,2,0),\"\")","v":""}]
[null,null,null,null,null,null,null,null,null,null,{"$f":"IF(ISNUMBER(SEARCH($E$3,L299)),MAX($K$1,K298)+1,0)","v":0},"ICICI Prudential Technology Direct",15864,null,null,null,null,null,null,null,null,null,null,null,null,{"$f":"IFERROR(VLOOKUP(ROWS($Z$2:Z299),K299:L1047,2,0),\"\")","v":""}]
[null,null,null,null,null,null,null,null,null,null,{"$f":"IF(ISNUMBER(SEARCH($E$3,L300)),MAX($K$1,K299)+1,0)","v":0},"ICICI Prudential Technology Reg",737,null,null,null,null,null,null,null,null,null,null,null,null,{"$f":"IFERROR(VLOOKUP(ROWS($Z$2:Z300),K300:L1048,2,0),\"\")","v":""}]
[null,null,null,null,null,null,null,null,null,null,{"$f":"IF(ISNUMBER(SEARCH($E$3,L301)),MAX($K$1,K300)+1,0)","v":0},"ICICI Prudential Top 100 Direct",15868,null,null,null,null,null,null,null,null,null,null,null,null,{"$f":"IFERROR(VLOOKUP(ROWS($Z$2:Z301),K301:L1049,2,0),\"\")","v":""}]
[null,null,null,null,null,null,null,null,null,null,{"$f":"IF(ISNUMBER(SEARCH($E$3,L302)),MAX($K$1,K301)+1,0)","v":0},"ICICI Prudential Top 100 Inst I",3279,null,null,null,null,null,null,null,null,null,null,null,null,{"$f":"IFERROR(VLOOKUP(ROWS($Z$2:Z302),K302:L1050,2,0),\"\")","v":""}]
[null,null,null,null,null,null,null,null,null,null,{"$f":"IF(ISNUMBER(SEARCH($E$3,L303)),MAX($K$1,K302)+1,0)","v":0},"ICICI Prudential Top 100 Reg",534,null,null,null,null,null,null,null,null,null,null,null,null,{"$f":"IFERROR(VLOOKUP(ROWS($Z$2:Z303),K303:L1051,2,0),\"\")","v":""}]
[null,null,null,null,null,null,null,null,null,null,{"$f":"IF(ISNUMBER(SEARCH($E$3,L304)),MAX($K$1,K303)+1,0)","v":0},"ICICI Prudential Top 200 Direct",15874,null,null,null,null,null,null,null,null,null,null,null,null,{"$f":"IFERROR(VLOOKUP(ROWS($Z$2:Z304),K304:L1052,2,0),\"\")","v":""}]
[null,null,null,null,null,null,null,null,null,null,{"$f":"IF(ISNUMBER(SEARCH($E$3,L305)),MAX($K$1,K304)+1,0)","v":0},"ICICI Prudential Top 200 Inst I",2857,null,null,null,null,null,null,null,null,null,null,null,null,{"$f":"IFERROR(VLOOKUP(ROWS($Z$2:Z305),K305:L1053,2,0),\"\")","v":""}]
[null,null,null,null,null,null,null,null,null,null,{"$f":"IF(ISNUMBER(SEARCH($E$3,L306)),MAX($K$1,K305)+1,0)","v":0},"ICICI Prudential Top 200 Reg",86,null,null,null,null,null,null,null,null,null,null,null,null,{"$f":"IFERROR(VLOOKUP(ROWS($Z$2:Z306),K306:L1054,2,0),\"\")","v":""}]
[null,null,null,null,null,null,null,null,null,null,{"$f":"IF(ISNUMBER(SEARCH($E$3,L307)),MAX($K$1,K306)+1,0)","v":0},"ICICI Prudential US Bluechip Equity",14998,null,null,null,null,null,null,null,null,null,null,null,null,{"$f":"IFERROR(VLOOKUP(ROWS($Z$2:Z307),K307:L1055,2,0),\"\")","v":""}]
[null,null,null,null,null,null,null,null,null,null,{"$f":"IF(ISNUMBER(SEARCH($E$3,L308)),MAX($K$1,K307)+1,0)","v":0},"ICICI Prudential US Bluechip Equity Direct",17160,null,null,null,null,null,null,null,null,null,null,null,null,{"$f":"IFERROR(VLOOKUP(ROWS($Z$2:Z308),K308:L1056,2,0),\"\")","v":""}]
[null,null,null,null,null,null,null,null,null,null,{"$f":"IF(ISNUMBER(SEARCH($E$3,L309)),MAX($K$1,K308)+1,0)","v":0},"IDBI India Top 100 Equity",14722,null,null,null,null,null,null,null,null,null,null,null,null,{"$f":"IFERROR(VLOOKUP(ROWS($Z$2:Z309),K309:L1057,2,0),\"\")","v":""}]
[null,null,null,null,null,null,null,null,null,null,{"$f":"IF(ISNUMBER(SEARCH($E$3,L310)),MAX($K$1,K309)+1,0)","v":0},"IDBI India Top 100 Equity Direct",16499,null,null,null,null,null,null,null,null,null,null,null,null,{"$f":"IFERROR(VLOOKUP(ROWS($Z$2:Z310),K310:L1058,2,0),\"\")","v":""}]
[null,null,null,null,null,null,null,null,null,null,{"$f":"IF(ISNUMBER(SEARCH($E$3,L311)),MAX($K$1,K310)+1,0)","v":0},"IDBI Nifty Index",11188,null,null,null,null,null,null,null,null,null,null,null,null,{"$f":"IFERROR(VLOOKUP(ROWS($Z$2:Z311),K311:L1059,2,0),\"\")","v":""}]
[null,null,null,null,null,null,null,null,null,null,{"$f":"IF(ISNUMBER(SEARCH($E$3,L312)),MAX($K$1,K311)+1,0)","v":0},"IDBI Nifty Index Direct",16523,null,null,null,null,null,null,null,null,null,null,null,null,{"$f":"IFERROR(VLOOKUP(ROWS($Z$2:Z312),K312:L1060,2,0),\"\")","v":""}]
[null,null,null,null,null,null,null,null,null,null,{"$f":"IF(ISNUMBER(SEARCH($E$3,L313)),MAX($K$1,K312)+1,0)","v":0},"IDBI Nifty Junior Index",11500,null,null,null,null,null,null,null,null,null,null,null,null,{"$f":"IFERROR(VLOOKUP(ROWS($Z$2:Z313),K313:L1061,2,0),\"\")","v":""}]
[null,null,null,null,null,null,null,null,null,null,{"$f":"IF(ISNUMBER(SEARCH($E$3,L314)),MAX($K$1,K313)+1,0)","v":0},"IDBI Nifty Junior Index Direct",16528,null,null,null,null,null,null,null,null,null,null,null,null,{"$f":"IFERROR(VLOOKUP(ROWS($Z$2:Z314),K314:L1062,2,0),\"\")","v":""}]
[null,null,null,null,null,null,null,null,null,null,{"$f":"IF(ISNUMBER(SEARCH($E$3,L315)),MAX($K$1,K314)+1,0)","v":0},"IDBI Tax Saving Direct",20683,null,null,null,null,null,null,null,null,null,null,null,null,{"$f":"IFERROR(VLOOKUP(ROWS($Z$2:Z315),K315:L1063,2,0),\"\")","v":""}]
[null,null,null,null,null,null,null,null,null,null,{"$f":"IF(ISNUMBER(SEARCH($E$3,L316)),MAX($K$1,K315)+1,0)","v":0},"IDBI Tax Saving Reg",20681,null,null,null,null,null,null,null,null,null,null,null,null,{"$f":"IFERROR(VLOOKUP(ROWS($Z$2:Z316),K316:L1064,2,0),\"\")","v":""}]
[null,null,null,null,null,null,null,null,null,null,{"$f":"IF(ISNUMBER(SEARCH($E$3,L317)),MAX($K$1,K316)+1,0)","v":0},"IDFC Classic Equity Direct",16474,null,null,null,null,null,null,null,null,null,null,null,null,{"$f":"IFERROR(VLOOKUP(ROWS($Z$2:Z317),K317:L1065,2,0),\"\")","v":""}]
[null,null,null,null,null,null,null,null,null,null,{"$f":"IF(ISNUMBER(SEARCH($E$3,L318)),MAX($K$1,K317)+1,0)","v":0},"IDFC Classic Equity Plan B#",10376,null,null,null,null,null,null,null,null,null,null,null,null,{"$f":"IFERROR(VLOOKUP(ROWS($Z$2:Z318),K318:L1066,2,0),\"\")","v":""}]
[null,null,null,null,null,null,null,null,null,null,{"$f":"IF(ISNUMBER(SEARCH($E$3,L319)),MAX($K$1,K318)+1,0)","v":0},"IDFC Classic Equity Regular",2797,null,null,null,null,null,null,null,null,null,null,null,null,{"$f":"IFERROR(VLOOKUP(ROWS($Z$2:Z319),K319:L1067,2,0),\"\")","v":""}]
[null,null,null,null,null,null,null,null,null,null,{"$f":"IF(ISNUMBER(SEARCH($E$3,L320)),MAX($K$1,K319)+1,0)","v":0},"IDFC Equity Direct",16699,null,null,null,null,null,null,null,null,null,null,null,null,{"$f":"IFERROR(VLOOKUP(ROWS($Z$2:Z320),K320:L1068,2,0),\"\")","v":""}]
[null,null,null,null,null,null,null,null,null,null,{"$f":"IF(ISNUMBER(SEARCH($E$3,L321)),MAX($K$1,K320)+1,0)","v":0},"IDFC Equity Regular",3400,null,null,null,null,null,null,null,null,null,null,null,null,{"$f":"IFERROR(VLOOKUP(ROWS($Z$2:Z321),K321:L1069,2,0),\"\")","v":""}]
[null,null,null,null,null,null,null,null,null,null,{"$f":"IF(ISNUMBER(SEARCH($E$3,L322)),MAX($K$1,K321)+1,0)","v":0},"IDFC Imperial Equity Direct",16507,null,null,null,null,null,null,null,null,null,null,null,null,{"$f":"IFERROR(VLOOKUP(ROWS($Z$2:Z322),K322:L1070,2,0),\"\")","v":""}]
[null,null,null,null,null,null,null,null,null,null,{"$f":"IF(ISNUMBER(SEARCH($E$3,L323)),MAX($K$1,K322)+1,0)","v":0},"IDFC Imperial Equity Regular",3151,null,null,null,null,null,null,null,null,null,null,null,null,{"$f":"IFERROR(VLOOKUP(ROWS($Z$2:Z323),K323:L1071,2,0),\"\")","v":""}]
[null,null,null,null,null,null,null,null,null,null,{"$f":"IF(ISNUMBER(SEARCH($E$3,L324)),MAX($K$1,K323)+1,0)","v":0},"IDFC India GDP Growth Direct",16512,null,null,null,null,null,null,null,null,null,null,null,null,{"$f":"IFERROR(VLOOKUP(ROWS($Z$2:Z324),K324:L1072,2,0),\"\")","v":""}]
[null,null,null,null,null,null,null,null,null,null,{"$f":"IF(ISNUMBER(SEARCH($E$3,L325)),MAX($K$1,K324)+1,0)","v":0},"IDFC India GDP Growth Regular",10216,null,null,null,null,null,null,null,null,null,null,null,null,{"$f":"IFERROR(VLOOKUP(ROWS($Z$2:Z325),K325:L1073,2,0),\"\")","v":""}]
[null,null,null,null,null,null,null,null,null,null,{"$f":"IF(ISNUMBER(SEARCH($E$3,L326)),MAX($K$1,K325)+1,0)","v":0},"IDFC Infrastructure Direct",16514,null,null,null,null,null,null,null,null,null,null,null,null,{"$f":"IFERROR(VLOOKUP(ROWS($Z$2:Z326),K326:L1074,2,0),\"\")","v":""}]
[null,null,null,null,null,null,null,null,null,null,{"$f":"IF(ISNUMBER(SEARCH($E$3,L327)),MAX($K$1,K326)+1,0)","v":0},"IDFC Infrastructure Regular",12129,null,null,null,null,null,null,null,null,null,null,null,null,{"$f":"IFERROR(VLOOKUP(ROWS($Z$2:Z327),K327:L1075,2,0),\"\")","v":""}]
[null,null,null,null,null,null,null,null,null,null,{"$f":"IF(ISNUMBER(SEARCH($E$3,L328)),MAX($K$1,K327)+1,0)","v":0},"IDFC Nifty Direct",16504,null,null,null,null,null,null,null,null,null,null,null,null,{"$f":"IFERROR(VLOOKUP(ROWS($Z$2:Z328),K328:L1076,2,0),\"\")","v":""}]
[null,null,null,null,null,null,null,null,null,null,{"$f":"IF(ISNUMBER(SEARCH($E$3,L329)),MAX($K$1,K328)+1,0)","v":0},"IDFC Nifty Regular",11154,null,null,null,null,null,null,null,null,null,null,null,null,{"$f":"IFERROR(VLOOKUP(ROWS($Z$2:Z329),K329:L1077,2,0),\"\")","v":""}]
[null,null,null,null,null,null,null,null,null,null,{"$f":"IF(ISNUMBER(SEARCH($E$3,L330)),MAX($K$1,K329)+1,0)","v":0},"IDFC Premier Equity Direct",16501,null,null,null,null,null,null,null,null,null,null,null,null,{"$f":"IFERROR(VLOOKUP(ROWS($Z$2:Z330),K330:L1078,2,0),\"\")","v":""}]
[null,null,null,null,null,null,null,null,null,null,{"$f":"IF(ISNUMBER(SEARCH($E$3,L331)),MAX($K$1,K330)+1,0)","v":0},"IDFC Premier Equity Regular",2886,null,null,null,null,null,null,null,null,null,null,null,null,{"$f":"IFERROR(VLOOKUP(ROWS($Z$2:Z331),K331:L1079,2,0),\"\")","v":""}]
[null,null,null,null,null,null,null,null,null,null,{"$f":"IF(ISNUMBER(SEARCH($E$3,L332)),MAX($K$1,K331)+1,0)","v":0},"IDFC Sterling Equity Direct",16498,null,null,null,null,null,null,null,null,null,null,null,null,{"$f":"IFERROR(VLOOKUP(ROWS($Z$2:Z332),K332:L1080,2,0),\"\")","v":""}]
[null,null,null,null,null,null,null,null,null,null,{"$f":"IF(ISNUMBER(SEARCH($E$3,L333)),MAX($K$1,K332)+1,0)","v":0},"IDFC Sterling Equity Regular",6693,null,null,null,null,null,null,null,null,null,null,null,null,{"$f":"IFERROR(VLOOKUP(ROWS($Z$2:Z333),K333:L1081,2,0),\"\")","v":""}]
[null,null,null,null,null,null,null,null,null,null,{"$f":"IF(ISNUMBER(SEARCH($E$3,L334)),MAX($K$1,K333)+1,0)","v":0},"IDFC Strategic Sector (50-50) Equity Direct",16710,null,null,null,null,null,null,null,null,null,null,null,null,{"$f":"IFERROR(VLOOKUP(ROWS($Z$2:Z334),K334:L1082,2,0),\"\")","v":""}]
[null,null,null,null,null,null,null,null,null,null,{"$f":"IF(ISNUMBER(SEARCH($E$3,L335)),MAX($K$1,K334)+1,0)","v":0},"IDFC Strategic Sector (50-50) Equity Regular",8871,null,null,null,null,null,null,null,null,null,null,null,null,{"$f":"IFERROR(VLOOKUP(ROWS($Z$2:Z335),K335:L1083,2,0),\"\")","v":""}]
[null,null,null,null,null,null,null,null,null,null,{"$f":"IF(ISNUMBER(SEARCH($E$3,L336)),MAX($K$1,K335)+1,0)","v":0},"IDFC Tax Advantage (ELSS) Direct",16493,null,null,null,null,null,null,null,null,null,null,null,null,{"$f":"IFERROR(VLOOKUP(ROWS($Z$2:Z336),K336:L1084,2,0),\"\")","v":""}]
[null,null,null,null,null,null,null,null,null,null,{"$f":"IF(ISNUMBER(SEARCH($E$3,L337)),MAX($K$1,K336)+1,0)","v":0},"IDFC Tax Advantage (ELSS) Regular",10032,null,null,null,null,null,null,null,null,null,null,null,null,{"$f":"IFERROR(VLOOKUP(ROWS($Z$2:Z337),K337:L1085,2,0),\"\")","v":""}]
[null,null,null,null,null,null,null,null,null,null,{"$f":"IF(ISNUMBER(SEARCH($E$3,L338)),MAX($K$1,K337)+1,0)","v":0},"IIFL Dividend Opportunities Index",14972,null,null,null,null,null,null,null,null,null,null,null,null,{"$f":"IFERROR(VLOOKUP(ROWS($Z$2:Z338),K338:L1086,2,0),\"\")","v":""}]
[null,null,null,null,null,null,null,null,null,null,{"$f":"IF(ISNUMBER(SEARCH($E$3,L339)),MAX($K$1,K338)+1,0)","v":0},"IIFL Dividend Opportunities Index Direct",16475,null,null,null,null,null,null,null,null,null,null,null,null,{"$f":"IFERROR(VLOOKUP(ROWS($Z$2:Z339),K339:L1087,2,0),\"\")","v":""}]
[null,null,null,null,null,null,null,null,null,null,{"$f":"IF(ISNUMBER(SEARCH($E$3,L340)),MAX($K$1,K339)+1,0)","v":0},"IIFL Nifty ETF",13382,null,null,null,null,null,null,null,null,null,null,null,null,{"$f":"IFERROR(VLOOKUP(ROWS($Z$2:Z340),K340:L1088,2,0),\"\")","v":""}]
[null,null,null,null,null,null,null,null,null,null,{"$f":"IF(ISNUMBER(SEARCH($E$3,L341)),MAX($K$1,K340)+1,0)","v":0},"Indiabulls Bluechip",14013,null,null,null,null,null,null,null,null,null,null,null,null,{"$f":"IFERROR(VLOOKUP(ROWS($Z$2:Z341),K341:L1089,2,0),\"\")","v":""}]
[null,null,null,null,null,null,null,null,null,null,{"$f":"IF(ISNUMBER(SEARCH($E$3,L342)),MAX($K$1,K341)+1,0)","v":0},"Indiabulls Bluechip Direct",15579,null,null,null,null,null,null,null,null,null,null,null,null,{"$f":"IFERROR(VLOOKUP(ROWS($Z$2:Z342),K342:L1090,2,0),\"\")","v":""}]
[null,null,null,null,null,null,null,null,null,null,{"$f":"IF(ISNUMBER(SEARCH($E$3,L343)),MAX($K$1,K342)+1,0)","v":0},"ING Core Equity",606,null,null,null,null,null,null,null,null,null,null,null,null,{"$f":"IFERROR(VLOOKUP(ROWS($Z$2:Z343),K343:L1091,2,0),\"\")","v":""}]
[null,null,null,null,null,null,null,null,null,null,{"$f":"IF(ISNUMBER(SEARCH($E$3,L344)),MAX($K$1,K343)+1,0)","v":0},"ING Core Equity Direct",16901,null,null,null,null,null,null,null,null,null,null,null,null,{"$f":"IFERROR(VLOOKUP(ROWS($Z$2:Z344),K344:L1092,2,0),\"\")","v":""}]
[null,null,null,null,null,null,null,null,null,null,{"$f":"IF(ISNUMBER(SEARCH($E$3,L345)),MAX($K$1,K344)+1,0)","v":0},"ING Dividend Yield",2879,null,null,null,null,null,null,null,null,null,null,null,null,{"$f":"IFERROR(VLOOKUP(ROWS($Z$2:Z345),K345:L1093,2,0),\"\")","v":""}]
[null,null,null,null,null,null,null,null,null,null,{"$f":"IF(ISNUMBER(SEARCH($E$3,L346)),MAX($K$1,K345)+1,0)","v":0},"ING Dividend Yield Direct",16907,null,null,null,null,null,null,null,null,null,null,null,null,{"$f":"IFERROR(VLOOKUP(ROWS($Z$2:Z346),K346:L1094,2,0),\"\")","v":""}]
[null,null,null,null,null,null,null,null,null,null,{"$f":"IF(ISNUMBER(SEARCH($E$3,L347)),MAX($K$1,K346)+1,0)","v":0},"ING Global Real Estate Retail",6275,null,null,null,null,null,null,null,null,null,null,null,null,{"$f":"IFERROR(VLOOKUP(ROWS($Z$2:Z347),K347:L1095,2,0),\"\")","v":""}]
[null,null,null,null,null,null,null,null,null,null,{"$f":"IF(ISNUMBER(SEARCH($E$3,L348)),MAX($K$1,K347)+1,0)","v":0},"ING Global Real Estate Retail Direct",17099,null,null,null,null,null,null,null,null,null,null,null,null,{"$f":"IFERROR(VLOOKUP(ROWS($Z$2:Z348),K348:L1096,2,0),\"\")","v":""}]
[null,null,null,null,null,null,null,null,null,null,{"$f":"IF(ISNUMBER(SEARCH($E$3,L349)),MAX($K$1,K348)+1,0)","v":0},"ING Large Cap Equity",2063,null,null,null,null,null,null,null,null,null,null,null,null,{"$f":"IFERROR(VLOOKUP(ROWS($Z$2:Z349),K349:L1097,2,0),\"\")","v":""}]
[null,null,null,null,null,null,null,null,null,null,{"$f":"IF(ISNUMBER(SEARCH($E$3,L350)),MAX($K$1,K349)+1,0)","v":0},"ING Large Cap Equity Direct",16937,null,null,null,null,null,null,null,null,null,null,null,null,{"$f":"IFERROR(VLOOKUP(ROWS($Z$2:Z350),K350:L1098,2,0),\"\")","v":""}]
[null,null,null,null,null,null,null,null,null,null,{"$f":"IF(ISNUMBER(SEARCH($E$3,L351)),MAX($K$1,K350)+1,0)","v":0},"ING Latin America Equity",8123,null,null,null,null,null,null,null,null,null,null,null,null,{"$f":"IFERROR(VLOOKUP(ROWS($Z$2:Z351),K351:L1099,2,0),\"\")","v":""}]
[null,null,null,null,null,null,null,null,null,null,{"$f":"IF(ISNUMBER(SEARCH($E$3,L352)),MAX($K$1,K351)+1,0)","v":0},"ING Latin America Equity Direct",17104,null,null,null,null,null,null,null,null,null,null,null,null,{"$f":"IFERROR(VLOOKUP(ROWS($Z$2:Z352),K352:L1100,2,0),\"\")","v":""}]
[null,null,null,null,null,null,null,null,null,null,{"$f":"IF(ISNUMBER(SEARCH($E$3,L353)),MAX($K$1,K352)+1,0)","v":0},"ING Midcap",2742,null,null,null,null,null,null,null,null,null,null,null,null,{"$f":"IFERROR(VLOOKUP(ROWS($Z$2:Z353),K353:L1101,2,0),\"\")","v":""}]
[null,null,null,null,null,null,null,null,null,null,{"$f":"IF(ISNUMBER(SEARCH($E$3,L354)),MAX($K$1,K353)+1,0)","v":0},"ING Midcap Direct",16931,null,null,null,null,null,null,null,null,null,null,null,null,{"$f":"IFERROR(VLOOKUP(ROWS($Z$2:Z354),K354:L1102,2,0),\"\")","v":""}]
[null,null,null,null,null,null,null,null,null,null,{"$f":"IF(ISNUMBER(SEARCH($E$3,L355)),MAX($K$1,K354)+1,0)","v":0},"ING OptiMix 5 Star Multi Manager FoF",4154,null,null,null,null,null,null,null,null,null,null,null,null,{"$f":"IFERROR(VLOOKUP(ROWS($Z$2:Z355),K355:L1103,2,0),\"\")","v":""}]
[null,null,null,null,null,null,null,null,null,null,{"$f":"IF(ISNUMBER(SEARCH($E$3,L356)),MAX($K$1,K355)+1,0)","v":0},"ING OptiMix 5 Star Multi Manager FoF Direct",16876,null,null,null,null,null,null,null,null,null,null,null,null,{"$f":"IFERROR(VLOOKUP(ROWS($Z$2:Z356),K356:L1104,2,0),\"\")","v":""}]
[null,null,null,null,null,null,null,null,null,null,{"$f":"IF(ISNUMBER(SEARCH($E$3,L357)),MAX($K$1,K356)+1,0)","v":0},"ING OptiMix Global Commodities",8751,null,null,null,null,null,null,null,null,null,null,null,null,{"$f":"IFERROR(VLOOKUP(ROWS($Z$2:Z357),K357:L1105,2,0),\"\")","v":""}]
[null,null,null,null,null,null,null,null,null,null,{"$f":"IF(ISNUMBER(SEARCH($E$3,L358)),MAX($K$1,K357)+1,0)","v":0},"ING OptiMix Global Commodities Direct",17094,null,null,null,null,null,null,null,null,null,null,null,null,{"$f":"IFERROR(VLOOKUP(ROWS($Z$2:Z358),K358:L1106,2,0),\"\")","v":""}]
[null,null,null,null,null,null,null,null,null,null,{"$f":"IF(ISNUMBER(SEARCH($E$3,L359)),MAX($K$1,K358)+1,0)","v":0},"ING OptiMix Multi Manager Equity Option A",4553,null,null,null,null,null,null,null,null,null,null,null,null,{"$f":"IFERROR(VLOOKUP(ROWS($Z$2:Z359),K359:L1107,2,0),\"\")","v":""}]
[null,null,null,null,null,null,null,null,null,null,{"$f":"IF(ISNUMBER(SEARCH($E$3,L360)),MAX($K$1,K359)+1,0)","v":0},"ING OptiMix Multi Manager Equity Option A Direct",16927,null,null,null,null,null,null,null,null,null,null,null,null,{"$f":"IFERROR(VLOOKUP(ROWS($Z$2:Z360),K360:L1108,2,0),\"\")","v":""}]
[null,null,null,null,null,null,null,null,null,null,{"$f":"IF(ISNUMBER(SEARCH($E$3,L361)),MAX($K$1,K360)+1,0)","v":0},"ING Tax Savings",2127,null,null,null,null,null,null,null,null,null,null,null,null,{"$f":"IFERROR(VLOOKUP(ROWS($Z$2:Z361),K361:L1109,2,0),\"\")","v":""}]
[null,null,null,null,null,null,null,null,null,null,{"$f":"IF(ISNUMBER(SEARCH($E$3,L362)),MAX($K$1,K361)+1,0)","v":0},"ING Tax Savings Direct",16910,null,null,null,null,null,null,null,null,null,null,null,null,{"$f":"IFERROR(VLOOKUP(ROWS($Z$2:Z362),K362:L1110,2,0),\"\")","v":""}]
[null,null,null,null,null,null,null,null,null,null,{"$f":"IF(ISNUMBER(SEARCH($E$3,L363)),MAX($K$1,K362)+1,0)","v":0},"ING Tax Savings Direct",16918,null,null,null,null,null,null,null,null,null,null,null,null,{"$f":"IFERROR(VLOOKUP(ROWS($Z$2:Z363),K363:L1111,2,0),\"\")","v":""}]
[null,null,null,null,null,null,null,null,null,null,{"$f":"IF(ISNUMBER(SEARCH($E$3,L364)),MAX($K$1,K363)+1,0)","v":0},"JM Basic",3157,null,null,null,null,null,null,null,null,null,null,null,null,{"$f":"IFERROR(VLOOKUP(ROWS($Z$2:Z364),K364:L1112,2,0),\"\")","v":""}]
[null,null,null,null,null,null,null,null,null,null,{"$f":"IF(ISNUMBER(SEARCH($E$3,L365)),MAX($K$1,K364)+1,0)","v":0},"JM Basic Direct",16530,null,null,null,null,null,null,null,null,null,null,null,null,{"$f":"IFERROR(VLOOKUP(ROWS($Z$2:Z365),K365:L1113,2,0),\"\")","v":""}]
[null,null,null,null,null,null,null,null,null,null,{"$f":"IF(ISNUMBER(SEARCH($E$3,L366)),MAX($K$1,K365)+1,0)","v":0},"JM Core 11",6673,null,null,null,null,null,null,null,null,null,null,null,null,{"$f":"IFERROR(VLOOKUP(ROWS($Z$2:Z366),K366:L1114,2,0),\"\")","v":""}]
[null,null,null,null,null,null,null,null,null,null,{"$f":"IF(ISNUMBER(SEARCH($E$3,L367)),MAX($K$1,K366)+1,0)","v":0},"JM Core 11 Direct",16539,null,null,null,null,null,null,null,null,null,null,null,null,{"$f":"IFERROR(VLOOKUP(ROWS($Z$2:Z367),K367:L1115,2,0),\"\")","v":""}]
[null,null,null,null,null,null,null,null,null,null,{"$f":"IF(ISNUMBER(SEARCH($E$3,L368)),MAX($K$1,K367)+1,0)","v":0},"JM Equity",108,null,null,null,null,null,null,null,null,null,null,null,null,{"$f":"IFERROR(VLOOKUP(ROWS($Z$2:Z368),K368:L1116,2,0),\"\")","v":""}]
[null,null,null,null,null,null,null,null,null,null,{"$f":"IF(ISNUMBER(SEARCH($E$3,L369)),MAX($K$1,K368)+1,0)","v":0},"JM Equity Direct",16541,null,null,null,null,null,null,null,null,null,null,null,null,{"$f":"IFERROR(VLOOKUP(ROWS($Z$2:Z369),K369:L1117,2,0),\"\")","v":""}]
[null,null,null,null,null,null,null,null,null,null,{"$f":"IF(ISNUMBER(SEARCH($E$3,L370)),MAX($K$1,K369)+1,0)","v":0},"JM Multi Strategy",8653,null,null,null,null,null,null,null,null,null,null,null,null,{"$f":"IFERROR(VLOOKUP(ROWS($Z$2:Z370),K370:L1118,2,0),\"\")","v":""}]
[null,null,null,null,null,null,null,null,null,null,{"$f":"IF(ISNUMBER(SEARCH($E$3,L371)),MAX($K$1,K370)+1,0)","v":0},"JM Multi Strategy Direct",16547,null,null,null,null,null,null,null,null,null,null,null,null,{"$f":"IFERROR(VLOOKUP(ROWS($Z$2:Z371),K371:L1119,2,0),\"\")","v":""}]
[null,null,null,null,null,null,null,null,null,null,{"$f":"IF(ISNUMBER(SEARCH($E$3,L372)),MAX($K$1,K371)+1,0)","v":0},"JM Tax Gain",6679,null,null,null,null,null,null,null,null,null,null,null,null,{"$f":"IFERROR(VLOOKUP(ROWS($Z$2:Z372),K372:L1120,2,0),\"\")","v":""}]
[null,null,null,null,null,null,null,null,null,null,{"$f":"IF(ISNUMBER(SEARCH($E$3,L373)),MAX($K$1,K372)+1,0)","v":0},"JM Tax Gain Direct",16552,null,null,null,null,null,null,null,null,null,null,null,null,{"$f":"IFERROR(VLOOKUP(ROWS($Z$2:Z373),K373:L1121,2,0),\"\")","v":""}]
[null,null,null,null,null,null,null,null,null,null,{"$f":"IF(ISNUMBER(SEARCH($E$3,L374)),MAX($K$1,K373)+1,0)","v":0},"JP Morgan ASEAN Equity Off Shore",12762,null,null,null,null,null,null,null,null,null,null,null,null,{"$f":"IFERROR(VLOOKUP(ROWS($Z$2:Z374),K374:L1122,2,0),\"\")","v":""}]
[null,null,null,null,null,null,null,null,null,null,{"$f":"IF(ISNUMBER(SEARCH($E$3,L375)),MAX($K$1,K374)+1,0)","v":0},"JP Morgan ASEAN Equity Off Shore Direct",17131,null,null,null,null,null,null,null,null,null,null,null,null,{"$f":"IFERROR(VLOOKUP(ROWS($Z$2:Z375),K375:L1123,2,0),\"\")","v":""}]
[null,null,null,null,null,null,null,null,null,null,{"$f":"IF(ISNUMBER(SEARCH($E$3,L376)),MAX($K$1,K375)+1,0)","v":0},"JP Morgan Emerging Eu Mid East and Afr Eqt Off Shore",11691,null,null,null,null,null,null,null,null,null,null,null,null,{"$f":"IFERROR(VLOOKUP(ROWS($Z$2:Z376),K376:L1124,2,0),\"\")","v":""}]
[null,null,null,null,null,null,null,null,null,null,{"$f":"IF(ISNUMBER(SEARCH($E$3,L377)),MAX($K$1,K376)+1,0)","v":0},"JP Morgan Emerging Eu Mid East and Afr Eqt Off Shore Direct",17127,null,null,null,null,null,null,null,null,null,null,null,null,{"$f":"IFERROR(VLOOKUP(ROWS($Z$2:Z377),K377:L1125,2,0),\"\")","v":""}]
[null,null,null,null,null,null,null,null,null,null,{"$f":"IF(ISNUMBER(SEARCH($E$3,L378)),MAX($K$1,K377)+1,0)","v":0},"JP Morgan Greater China Equity Off-shore",10567,null,null,null,null,null,null,null,null,null,null,null,null,{"$f":"IFERROR(VLOOKUP(ROWS($Z$2:Z378),K378:L1126,2,0),\"\")","v":""}]
[null,null,null,null,null,null,null,null,null,null,{"$f":"IF(ISNUMBER(SEARCH($E$3,L379)),MAX($K$1,K378)+1,0)","v":0},"JP Morgan Greater China Equity Off-shore Direct",17132,null,null,null,null,null,null,null,null,null,null,null,null,{"$f":"IFERROR(VLOOKUP(ROWS($Z$2:Z379),K379:L1127,2,0),\"\")","v":""}]
[null,null,null,null,null,null,null,null,null,null,{"$f":"IF(ISNUMBER(SEARCH($E$3,L380)),MAX($K$1,K379)+1,0)","v":0},"JP Morgan India Equity",4871,null,null,null,null,null,null,null,null,null,null,null,null,{"$f":"IFERROR(VLOOKUP(ROWS($Z$2:Z380),K380:L1128,2,0),\"\")","v":""}]
[null,null,null,null,null,null,null,null,null,null,{"$f":"IF(ISNUMBER(SEARCH($E$3,L381)),MAX($K$1,K380)+1,0)","v":0},"JP Morgan India Equity Direct",16569,null,null,null,null,null,null,null,null,null,null,null,null,{"$f":"IFERROR(VLOOKUP(ROWS($Z$2:Z381),K381:L1129,2,0),\"\")","v":""}]
[null,null,null,null,null,null,null,null,null,null,{"$f":"IF(ISNUMBER(SEARCH($E$3,L382)),MAX($K$1,K381)+1,0)","v":0},"JP Morgan India Smaller Companies",6227,null,null,null,null,null,null,null,null,null,null,null,null,{"$f":"IFERROR(VLOOKUP(ROWS($Z$2:Z382),K382:L1130,2,0),\"\")","v":""}]
[null,null,null,null,null,null,null,null,null,null,{"$f":"IF(ISNUMBER(SEARCH($E$3,L383)),MAX($K$1,K382)+1,0)","v":0},"JP Morgan India Smaller Companies Direct",16586,null,null,null,null,null,null,null,null,null,null,null,null,{"$f":"IFERROR(VLOOKUP(ROWS($Z$2:Z383),K383:L1131,2,0),\"\")","v":""}]
[null,null,null,null,null,null,null,null,null,null,{"$f":"IF(ISNUMBER(SEARCH($E$3,L384)),MAX($K$1,K383)+1,0)","v":0},"JP Morgan India Tax Advantage",10095,null,null,null,null,null,null,null,null,null,null,null,null,{"$f":"IFERROR(VLOOKUP(ROWS($Z$2:Z384),K384:L1132,2,0),\"\")","v":""}]
[null,null,null,null,null,null,null,null,null,null,{"$f":"IF(ISNUMBER(SEARCH($E$3,L385)),MAX($K$1,K384)+1,0)","v":0},"JP Morgan India Tax Advantage Direct",16592,null,null,null,null,null,null,null,null,null,null,null,null,{"$f":"IFERROR(VLOOKUP(ROWS($Z$2:Z385),K385:L1133,2,0),\"\")","v":""}]
[null,null,null,null,null,null,null,null,null,null,{"$f":"IF(ISNUMBER(SEARCH($E$3,L386)),MAX($K$1,K385)+1,0)","v":0},"JP Morgan US Value Equity Offshore Direct",20060,null,null,null,null,null,null,null,null,null,null,null,null,{"$f":"IFERROR(VLOOKUP(ROWS($Z$2:Z386),K386:L1134,2,0),\"\")","v":""}]
[null,null,null,null,null,null,null,null,null,null,{"$f":"IF(ISNUMBER(SEARCH($E$3,L387)),MAX($K$1,K386)+1,0)","v":0},"JP Morgan US Value Equity Offshore Reg",20059,null,null,null,null,null,null,null,null,null,null,null,null,{"$f":"IFERROR(VLOOKUP(ROWS($Z$2:Z387),K387:L1135,2,0),\"\")","v":""}]
[null,null,null,null,null,null,null,null,null,null,{"$f":"IF(ISNUMBER(SEARCH($E$3,L388)),MAX($K$1,K387)+1,0)","v":0},"Kotak 50",577,null,null,null,null,null,null,null,null,null,null,null,null,{"$f":"IFERROR(VLOOKUP(ROWS($Z$2:Z388),K388:L1136,2,0),\"\")","v":""}]
[null,null,null,null,null,null,null,null,null,null,{"$f":"IF(ISNUMBER(SEARCH($E$3,L389)),MAX($K$1,K388)+1,0)","v":0},"Kotak 50 Direct",16337,null,null,null,null,null,null,null,null,null,null,null,null,{"$f":"IFERROR(VLOOKUP(ROWS($Z$2:Z389),K389:L1137,2,0),\"\")","v":""}]
[null,null,null,null,null,null,null,null,null,null,{"$f":"IF(ISNUMBER(SEARCH($E$3,L390)),MAX($K$1,K389)+1,0)","v":0},"Kotak Classic Equity",2780,null,null,null,null,null,null,null,null,null,null,null,null,{"$f":"IFERROR(VLOOKUP(ROWS($Z$2:Z390),K390:L1138,2,0),\"\")","v":""}]
[null,null,null,null,null,null,null,null,null,null,{"$f":"IF(ISNUMBER(SEARCH($E$3,L391)),MAX($K$1,K390)+1,0)","v":0},"Kotak Classic Equity Direct",16341,null,null,null,null,null,null,null,null,null,null,null,null,{"$f":"IFERROR(VLOOKUP(ROWS($Z$2:Z391),K391:L1139,2,0),\"\")","v":""}]
[null,null,null,null,null,null,null,null,null,null,{"$f":"IF(ISNUMBER(SEARCH($E$3,L392)),MAX($K$1,K391)+1,0)","v":0},"Kotak Emerging Equity",4270,null,null,null,null,null,null,null,null,null,null,null,null,{"$f":"IFERROR(VLOOKUP(ROWS($Z$2:Z392),K392:L1140,2,0),\"\")","v":""}]
[null,null,null,null,null,null,null,null,null,null,{"$f":"IF(ISNUMBER(SEARCH($E$3,L393)),MAX($K$1,K392)+1,0)","v":0},"Kotak Emerging Equity Direct",17134,null,null,null,null,null,null,null,null,null,null,null,null,{"$f":"IFERROR(VLOOKUP(ROWS($Z$2:Z393),K393:L1141,2,0),\"\")","v":""}]
[null,null,null,null,null,null,null,null,null,null,{"$f":"IF(ISNUMBER(SEARCH($E$3,L394)),MAX($K$1,K393)+1,0)","v":0},"Kotak Equity FoF",2308,null,null,null,null,null,null,null,null,null,null,null,null,{"$f":"IFERROR(VLOOKUP(ROWS($Z$2:Z394),K394:L1142,2,0),\"\")","v":""}]
[null,null,null,null,null,null,null,null,null,null,{"$f":"IF(ISNUMBER(SEARCH($E$3,L395)),MAX($K$1,K394)+1,0)","v":0},"Kotak Equity FoF Direct",17436,null,null,null,null,null,null,null,null,null,null,null,null,{"$f":"IFERROR(VLOOKUP(ROWS($Z$2:Z395),K395:L1143,2,0),\"\")","v":""}]
[null,null,null,null,null,null,null,null,null,null,{"$f":"IF(ISNUMBER(SEARCH($E$3,L396)),MAX($K$1,K395)+1,0)","v":0},"Kotak Global Emerging Market",5560,null,null,null,null,null,null,null,null,null,null,null,null,{"$f":"IFERROR(VLOOKUP(ROWS($Z$2:Z396),K396:L1144,2,0),\"\")","v":""}]
[null,null,null,null,null,null,null,null,null,null,{"$f":"IF(ISNUMBER(SEARCH($E$3,L397)),MAX($K$1,K396)+1,0)","v":0},"Kotak Global Emerging Market Direct",17439,null,null,null,null,null,null,null,null,null,null,null,null,{"$f":"IFERROR(VLOOKUP(ROWS($Z$2:Z397),K397:L1145,2,0),\"\")","v":""}]
[null,null,null,null,null,null,null,null,null,null,{"$f":"IF(ISNUMBER(SEARCH($E$3,L398)),MAX($K$1,K397)+1,0)","v":0},"Kotak Mid-Cap",2597,null,null,null,null,null,null,null,null,null,null,null,null,{"$f":"IFERROR(VLOOKUP(ROWS($Z$2:Z398),K398:L1146,2,0),\"\")","v":""}]
[null,null,null,null,null,null,null,null,null,null,{"$f":"IF(ISNUMBER(SEARCH($E$3,L399)),MAX($K$1,K398)+1,0)","v":0},"Kotak Mid-Cap Direct",16382,null,null,null,null,null,null,null,null,null,null,null,null,{"$f":"IFERROR(VLOOKUP(ROWS($Z$2:Z399),K399:L1147,2,0),\"\")","v":""}]
[null,null,null,null,null,null,null,null,null,null,{"$f":"IF(ISNUMBER(SEARCH($E$3,L400)),MAX($K$1,K399)+1,0)","v":0},"Kotak Nifty ETF",10843,null,null,null,null,null,null,null,null,null,null,null,null,{"$f":"IFERROR(VLOOKUP(ROWS($Z$2:Z400),K400:L1148,2,0),\"\")","v":""}]
[null,null,null,null,null,null,null,null,null,null,{"$f":"IF(ISNUMBER(SEARCH($E$3,L401)),MAX($K$1,K400)+1,0)","v":0},"Kotak Opportunities",2360,null,null,null,null,null,null,null,null,null,null,null,null,{"$f":"IFERROR(VLOOKUP(ROWS($Z$2:Z401),K401:L1149,2,0),\"\")","v":""}]
[null,null,null,null,null,null,null,null,null,null,{"$f":"IF(ISNUMBER(SEARCH($E$3,L402)),MAX($K$1,K401)+1,0)","v":0},"Kotak Opportunities Direct",16378,null,null,null,null,null,null,null,null,null,null,null,null,{"$f":"IFERROR(VLOOKUP(ROWS($Z$2:Z402),K402:L1150,2,0),\"\")","v":""}]
[null,null,null,null,null,null,null,null,null,null,{"$f":"IF(ISNUMBER(SEARCH($E$3,L403)),MAX($K$1,K402)+1,0)","v":0},"Kotak PSU Bank ETF",6157,null,null,null,null,null,null,null,null,null,null,null,null,{"$f":"IFERROR(VLOOKUP(ROWS($Z$2:Z403),K403:L1151,2,0),\"\")","v":""}]
[null,null,null,null,null,null,null,null,null,null,{"$f":"IF(ISNUMBER(SEARCH($E$3,L404)),MAX($K$1,K403)+1,0)","v":0},"Kotak Select Focus",10594,null,null,null,null,null,null,null,null,null,null,null,null,{"$f":"IFERROR(VLOOKUP(ROWS($Z$2:Z404),K404:L1152,2,0),\"\")","v":""}]
[null,null,null,null,null,null,null,null,null,null,{"$f":"IF(ISNUMBER(SEARCH($E$3,L405)),MAX($K$1,K404)+1,0)","v":0},"Kotak Select Focus Direct",17140,null,null,null,null,null,null,null,null,null,null,null,null,{"$f":"IFERROR(VLOOKUP(ROWS($Z$2:Z405),K405:L1153,2,0),\"\")","v":""}]
[null,null,null,null,null,null,null,null,null,null,{"$f":"IF(ISNUMBER(SEARCH($E$3,L406)),MAX($K$1,K405)+1,0)","v":0},"Kotak Sensex ETF",7780,null,null,null,null,null,null,null,null,null,null,null,null,{"$f":"IFERROR(VLOOKUP(ROWS($Z$2:Z406),K406:L1154,2,0),\"\")","v":""}]
[null,null,null,null,null,null,null,null,null,null,{"$f":"IF(ISNUMBER(SEARCH($E$3,L407)),MAX($K$1,K406)+1,0)","v":0},"Kotak Tax Saver",2937,null,null,null,null,null,null,null,null,null,null,null,null,{"$f":"IFERROR(VLOOKUP(ROWS($Z$2:Z407),K407:L1155,2,0),\"\")","v":""}]
[null,null,null,null,null,null,null,null,null,null,{"$f":"IF(ISNUMBER(SEARCH($E$3,L408)),MAX($K$1,K407)+1,0)","v":0},"Kotak Tax Saver Direct",16380,null,null,null,null,null,null,null,null,null,null,null,null,{"$f":"IFERROR(VLOOKUP(ROWS($Z$2:Z408),K408:L1156,2,0),\"\")","v":""}]
[null,null,null,null,null,null,null,null,null,null,{"$f":"IF(ISNUMBER(SEARCH($E$3,L409)),MAX($K$1,K408)+1,0)","v":0},"L&T Equity",2686,null,null,null,null,null,null,null,null,null,null,null,null,{"$f":"IFERROR(VLOOKUP(ROWS($Z$2:Z409),K409:L1157,2,0),\"\")","v":""}]
[null,null,null,null,null,null,null,null,null,null,{"$f":"IF(ISNUMBER(SEARCH($E$3,L410)),MAX($K$1,K409)+1,0)","v":0},"L&T Equity Direct",16212,null,null,null,null,null,null,null,null,null,null,null,null,{"$f":"IFERROR(VLOOKUP(ROWS($Z$2:Z410),K410:L1158,2,0),\"\")","v":""}]
[null,null,null,null,null,null,null,null,null,null,{"$f":"IF(ISNUMBER(SEARCH($E$3,L411)),MAX($K$1,K410)+1,0)","v":0},"L&T Global Real Assets",10859,null,null,null,null,null,null,null,null,null,null,null,null,{"$f":"IFERROR(VLOOKUP(ROWS($Z$2:Z411),K411:L1159,2,0),\"\")","v":""}]
[null,null,null,null,null,null,null,null,null,null,{"$f":"IF(ISNUMBER(SEARCH($E$3,L412)),MAX($K$1,K411)+1,0)","v":0},"L&T Global Real Assets Direct",16243,null,null,null,null,null,null,null,null,null,null,null,null,{"$f":"IFERROR(VLOOKUP(ROWS($Z$2:Z412),K412:L1160,2,0),\"\")","v":""}]
[null,null,null,null,null,null,null,null,null,null,{"$f":"IF(ISNUMBER(SEARCH($E$3,L413)),MAX($K$1,K412)+1,0)","v":0},"L&T India Large Cap",5707,null,null,null,null,null,null,null,null,null,null,null,null,{"$f":"IFERROR(VLOOKUP(ROWS($Z$2:Z413),K413:L1161,2,0),\"\")","v":""}]
[null,null,null,null,null,null,null,null,null,null,{"$f":"IF(ISNUMBER(SEARCH($E$3,L414)),MAX($K$1,K413)+1,0)","v":0},"L&T India Large Cap Direct",16256,null,null,null,null,null,null,null,null,null,null,null,null,{"$f":"IFERROR(VLOOKUP(ROWS($Z$2:Z414),K414:L1162,2,0),\"\")","v":""}]
[null,null,null,null,null,null,null,null,null,null,{"$f":"IF(ISNUMBER(SEARCH($E$3,L415)),MAX($K$1,K414)+1,0)","v":0},"L&T India Special Situations",3326,null,null,null,null,null,null,null,null,null,null,null,null,{"$f":"IFERROR(VLOOKUP(ROWS($Z$2:Z415),K415:L1163,2,0),\"\")","v":""}]
[null,null,null,null,null,null,null,null,null,null,{"$f":"IF(ISNUMBER(SEARCH($E$3,L416)),MAX($K$1,K415)+1,0)","v":0},"L&T India Special Situations Direct",16266,null,null,null,null,null,null,null,null,null,null,null,null,{"$f":"IFERROR(VLOOKUP(ROWS($Z$2:Z416),K416:L1164,2,0),\"\")","v":""}]
[null,null,null,null,null,null,null,null,null,null,{"$f":"IF(ISNUMBER(SEARCH($E$3,L417)),MAX($K$1,K416)+1,0)","v":0},"L&T India Value",10789,null,null,null,null,null,null,null,null,null,null,null,null,{"$f":"IFERROR(VLOOKUP(ROWS($Z$2:Z417),K417:L1165,2,0),\"\")","v":""}]
[null,null,null,null,null,null,null,null,null,null,{"$f":"IF(ISNUMBER(SEARCH($E$3,L418)),MAX($K$1,K417)+1,0)","v":0},"L&T India Value Direct",16269,null,null,null,null,null,null,null,null,null,null,null,null,{"$f":"IFERROR(VLOOKUP(ROWS($Z$2:Z418),K418:L1166,2,0),\"\")","v":""}]
[null,null,null,null,null,null,null,null,null,null,{"$f":"IF(ISNUMBER(SEARCH($E$3,L419)),MAX($K$1,K418)+1,0)","v":0},"L&T Indo Asia",4836,null,null,null,null,null,null,null,null,null,null,null,null,{"$f":"IFERROR(VLOOKUP(ROWS($Z$2:Z419),K419:L1167,2,0),\"\")","v":""}]
[null,null,null,null,null,null,null,null,null,null,{"$f":"IF(ISNUMBER(SEARCH($E$3,L420)),MAX($K$1,K419)+1,0)","v":0},"L&T Indo Asia Direct",16272,null,null,null,null,null,null,null,null,null,null,null,null,{"$f":"IFERROR(VLOOKUP(ROWS($Z$2:Z420),K420:L1168,2,0),\"\")","v":""}]
[null,null,null,null,null,null,null,null,null,null,{"$f":"IF(ISNUMBER(SEARCH($E$3,L421)),MAX($K$1,K420)+1,0)","v":0},"L&T Infrastructure",5564,null,null,null,null,null,null,null,null,null,null,null,null,{"$f":"IFERROR(VLOOKUP(ROWS($Z$2:Z421),K421:L1169,2,0),\"\")","v":""}]
[null,null,null,null,null,null,null,null,null,null,{"$f":"IF(ISNUMBER(SEARCH($E$3,L422)),MAX($K$1,K421)+1,0)","v":0},"L&T Infrastructure Direct",16275,null,null,null,null,null,null,null,null,null,null,null,null,{"$f":"IFERROR(VLOOKUP(ROWS($Z$2:Z422),K422:L1170,2,0),\"\")","v":""}]
[null,null,null,null,null,null,null,null,null,null,{"$f":"IF(ISNUMBER(SEARCH($E$3,L423)),MAX($K$1,K422)+1,0)","v":0},"L&T Midcap",2333,null,null,null,null,null,null,null,null,null,null,null,null,{"$f":"IFERROR(VLOOKUP(ROWS($Z$2:Z423),K423:L1171,2,0),\"\")","v":""}]
[null,null,null,null,null,null,null,null,null,null,{"$f":"IF(ISNUMBER(SEARCH($E$3,L424)),MAX($K$1,K423)+1,0)","v":0},"L&T Midcap Direct",16280,null,null,null,null,null,null,null,null,null,null,null,null,{"$f":"IFERROR(VLOOKUP(ROWS($Z$2:Z424),K424:L1172,2,0),\"\")","v":""}]
[null,null,null,null,null,null,null,null,null,null,{"$f":"IF(ISNUMBER(SEARCH($E$3,L425)),MAX($K$1,K424)+1,0)","v":0},"L&T Tax Advantage",3112,null,null,null,null,null,null,null,null,null,null,null,null,{"$f":"IFERROR(VLOOKUP(ROWS($Z$2:Z425),K425:L1173,2,0),\"\")","v":""}]
[null,null,null,null,null,null,null,null,null,null,{"$f":"IF(ISNUMBER(SEARCH($E$3,L426)),MAX($K$1,K425)+1,0)","v":0},"L&T Tax Advantage Direct",16200,null,null,null,null,null,null,null,null,null,null,null,null,{"$f":"IFERROR(VLOOKUP(ROWS($Z$2:Z426),K426:L1174,2,0),\"\")","v":""}]
[null,null,null,null,null,null,null,null,null,null,{"$f":"IF(ISNUMBER(SEARCH($E$3,L427)),MAX($K$1,K426)+1,0)","v":0},"L&T Tax Saver",2920,null,null,null,null,null,null,null,null,null,null,null,null,{"$f":"IFERROR(VLOOKUP(ROWS($Z$2:Z427),K427:L1175,2,0),\"\")","v":""}]
[null,null,null,null,null,null,null,null,null,null,{"$f":"IF(ISNUMBER(SEARCH($E$3,L428)),MAX($K$1,K427)+1,0)","v":0},"LIC Nomura MF Equity",134,null,null,null,null,null,null,null,null,null,null,null,null,{"$f":"IFERROR(VLOOKUP(ROWS($Z$2:Z428),K428:L1176,2,0),\"\")","v":""}]
[null,null,null,null,null,null,null,null,null,null,{"$f":"IF(ISNUMBER(SEARCH($E$3,L429)),MAX($K$1,K428)+1,0)","v":0},"LIC Nomura MF Equity Direct",16756,null,null,null,null,null,null,null,null,null,null,null,null,{"$f":"IFERROR(VLOOKUP(ROWS($Z$2:Z429),K429:L1177,2,0),\"\")","v":""}]
[null,null,null,null,null,null,null,null,null,null,{"$f":"IF(ISNUMBER(SEARCH($E$3,L430)),MAX($K$1,K429)+1,0)","v":0},"LIC Nomura MF Growth",158,null,null,null,null,null,null,null,null,null,null,null,null,{"$f":"IFERROR(VLOOKUP(ROWS($Z$2:Z430),K430:L1178,2,0),\"\")","v":""}]
[null,null,null,null,null,null,null,null,null,null,{"$f":"IF(ISNUMBER(SEARCH($E$3,L431)),MAX($K$1,K430)+1,0)","v":0},"LIC Nomura MF Growth Direct",16781,null,null,null,null,null,null,null,null,null,null,null,null,{"$f":"IFERROR(VLOOKUP(ROWS($Z$2:Z431),K431:L1179,2,0),\"\")","v":""}]
[null,null,null,null,null,null,null,null,null,null,{"$f":"IF(ISNUMBER(SEARCH($E$3,L432)),MAX($K$1,K431)+1,0)","v":0},"LIC Nomura MF Index Nifty",1478,null,null,null,null,null,null,null,null,null,null,null,null,{"$f":"IFERROR(VLOOKUP(ROWS($Z$2:Z432),K432:L1180,2,0),\"\")","v":""}]
[null,null,null,null,null,null,null,null,null,null,{"$f":"IF(ISNUMBER(SEARCH($E$3,L433)),MAX($K$1,K432)+1,0)","v":0},"LIC Nomura MF Index Nifty Direct",16763,null,null,null,null,null,null,null,null,null,null,null,null,{"$f":"IFERROR(VLOOKUP(ROWS($Z$2:Z433),K433:L1181,2,0),\"\")","v":""}]
[null,null,null,null,null,null,null,null,null,null,{"$f":"IF(ISNUMBER(SEARCH($E$3,L434)),MAX($K$1,K433)+1,0)","v":0},"LIC Nomura MF Index Sensex",1479,null,null,null,null,null,null,null,null,null,null,null,null,{"$f":"IFERROR(VLOOKUP(ROWS($Z$2:Z434),K434:L1182,2,0),\"\")","v":""}]
[null,null,null,null,null,null,null,null,null,null,{"$f":"IF(ISNUMBER(SEARCH($E$3,L435)),MAX($K$1,K434)+1,0)","v":0},"LIC Nomura MF Index Sensex Direct",16798,null,null,null,null,null,null,null,null,null,null,null,null,{"$f":"IFERROR(VLOOKUP(ROWS($Z$2:Z435),K435:L1183,2,0),\"\")","v":""}]
[null,null,null,null,null,null,null,null,null,null,{"$f":"IF(ISNUMBER(SEARCH($E$3,L436)),MAX($K$1,K435)+1,0)","v":0},"LIC Nomura MF India Vision",3976,null,null,null,null,null,null,null,null,null,null,null,null,{"$f":"IFERROR(VLOOKUP(ROWS($Z$2:Z436),K436:L1184,2,0),\"\")","v":""}]
[null,null,null,null,null,null,null,null,null,null,{"$f":"IF(ISNUMBER(SEARCH($E$3,L437)),MAX($K$1,K436)+1,0)","v":0},"LIC Nomura MF India Vision Direct",16805,null,null,null,null,null,null,null,null,null,null,null,null,{"$f":"IFERROR(VLOOKUP(ROWS($Z$2:Z437),K437:L1185,2,0),\"\")","v":""}]
[null,null,null,null,null,null,null,null,null,null,{"$f":"IF(ISNUMBER(SEARCH($E$3,L438)),MAX($K$1,K437)+1,0)","v":0},"LIC Nomura MF Infrastructure",6780,null,null,null,null,null,null,null,null,null,null,null,null,{"$f":"IFERROR(VLOOKUP(ROWS($Z$2:Z438),K438:L1186,2,0),\"\")","v":""}]
[null,null,null,null,null,null,null,null,null,null,{"$f":"IF(ISNUMBER(SEARCH($E$3,L439)),MAX($K$1,K438)+1,0)","v":0},"LIC Nomura MF Infrastructure Direct",16808,null,null,null,null,null,null,null,null,null,null,null,null,{"$f":"IFERROR(VLOOKUP(ROWS($Z$2:Z439),K439:L1187,2,0),\"\")","v":""}]
[null,null,null,null,null,null,null,null,null,null,{"$f":"IF(ISNUMBER(SEARCH($E$3,L440)),MAX($K$1,K439)+1,0)","v":0},"LIC Nomura MF Opportunities",2615,null,null,null,null,null,null,null,null,null,null,null,null,{"$f":"IFERROR(VLOOKUP(ROWS($Z$2:Z440),K440:L1188,2,0),\"\")","v":""}]
[null,null,null,null,null,null,null,null,null,null,{"$f":"IF(ISNUMBER(SEARCH($E$3,L441)),MAX($K$1,K440)+1,0)","v":0},"LIC Nomura MF Opportunities Direct",16867,null,null,null,null,null,null,null,null,null,null,null,null,{"$f":"IFERROR(VLOOKUP(ROWS($Z$2:Z441),K441:L1189,2,0),\"\")","v":""}]
[null,null,null,null,null,null,null,null,null,null,{"$f":"IF(ISNUMBER(SEARCH($E$3,L442)),MAX($K$1,K441)+1,0)","v":0},"LIC Nomura MF Sensex Advantage",1480,null,null,null,null,null,null,null,null,null,null,null,null,{"$f":"IFERROR(VLOOKUP(ROWS($Z$2:Z442),K442:L1190,2,0),\"\")","v":""}]
[null,null,null,null,null,null,null,null,null,null,{"$f":"IF(ISNUMBER(SEARCH($E$3,L443)),MAX($K$1,K442)+1,0)","v":0},"LIC Nomura MF Sensex Advantage Direct",16742,null,null,null,null,null,null,null,null,null,null,null,null,{"$f":"IFERROR(VLOOKUP(ROWS($Z$2:Z443),K443:L1191,2,0),\"\")","v":""}]
[null,null,null,null,null,null,null,null,null,null,{"$f":"IF(ISNUMBER(SEARCH($E$3,L444)),MAX($K$1,K443)+1,0)","v":0},"LIC Nomura MF Systematic Asset Allocation",5733,null,null,null,null,null,null,null,null,null,null,null,null,{"$f":"IFERROR(VLOOKUP(ROWS($Z$2:Z444),K444:L1192,2,0),\"\")","v":""}]
[null,null,null,null,null,null,null,null,null,null,{"$f":"IF(ISNUMBER(SEARCH($E$3,L445)),MAX($K$1,K444)+1,0)","v":0},"LIC Nomura MF Systematic Asset Allocation Direct",17452,null,null,null,null,null,null,null,null,null,null,null,null,{"$f":"IFERROR(VLOOKUP(ROWS($Z$2:Z445),K445:L1193,2,0),\"\")","v":""}]
[null,null,null,null,null,null,null,null,null,null,{"$f":"IF(ISNUMBER(SEARCH($E$3,L446)),MAX($K$1,K445)+1,0)","v":0},"LIC Nomura MF Tax Plan",405,null,null,null,null,null,null,null,null,null,null,null,null,{"$f":"IFERROR(VLOOKUP(ROWS($Z$2:Z446),K446:L1194,2,0),\"\")","v":""}]
[null,null,null,null,null,null,null,null,null,null,{"$f":"IF(ISNUMBER(SEARCH($E$3,L447)),MAX($K$1,K446)+1,0)","v":0},"LIC Nomura MF Tax Plan Direct",16868,null,null,null,null,null,null,null,null,null,null,null,null,{"$f":"IFERROR(VLOOKUP(ROWS($Z$2:Z447),K447:L1195,2,0),\"\")","v":""}]
[null,null,null,null,null,null,null,null,null,null,{"$f":"IF(ISNUMBER(SEARCH($E$3,L448)),MAX($K$1,K447)+1,0)","v":0},"LIC Nomura MF Top 100",6233,null,null,null,null,null,null,null,null,null,null,null,null,{"$f":"IFERROR(VLOOKUP(ROWS($Z$2:Z448),K448:L1196,2,0),\"\")","v":""}]
[null,null,null,null,null,null,null,null,null,null,{"$f":"IF(ISNUMBER(SEARCH($E$3,L449)),MAX($K$1,K448)+1,0)","v":0},"LIC Nomura MF Top 100 Direct",16862,null,null,null,null,null,null,null,null,null,null,null,null,{"$f":"IFERROR(VLOOKUP(ROWS($Z$2:Z449),K449:L1197,2,0),\"\")","v":""}]
[null,null,null,null,null,null,null,null,null,null,{"$f":"IF(ISNUMBER(SEARCH($E$3,L450)),MAX($K$1,K449)+1,0)","v":0},"Mirae Asset China Advantage",10683,null,null,null,null,null,null,null,null,null,null,null,null,{"$f":"IFERROR(VLOOKUP(ROWS($Z$2:Z450),K450:L1198,2,0),\"\")","v":""}]
[null,null,null,null,null,null,null,null,null,null,{"$f":"IF(ISNUMBER(SEARCH($E$3,L451)),MAX($K$1,K450)+1,0)","v":0},"Mirae Asset China Advantage Direct",16987,null,null,null,null,null,null,null,null,null,null,null,null,{"$f":"IFERROR(VLOOKUP(ROWS($Z$2:Z451),K451:L1199,2,0),\"\")","v":""}]
[null,null,null,null,null,null,null,null,null,null,{"$f":"IF(ISNUMBER(SEARCH($E$3,L452)),MAX($K$1,K451)+1,0)","v":0},"Mirae Asset Emerging Bluechip Regular",11213,null,null,null,null,null,null,null,null,null,null,null,null,{"$f":"IFERROR(VLOOKUP(ROWS($Z$2:Z452),K452:L1200,2,0),\"\")","v":""}]
[null,null,null,null,null,null,null,null,null,null,{"$f":"IF(ISNUMBER(SEARCH($E$3,L453)),MAX($K$1,K452)+1,0)","v":0},"Mirae Asset Emerging Bluechip Regular Direct",16563,null,null,null,null,null,null,null,null,null,null,null,null,{"$f":"IFERROR(VLOOKUP(ROWS($Z$2:Z453),K453:L1201,2,0),\"\")","v":""}]
[null,null,null,null,null,null,null,null,null,null,{"$f":"IF(ISNUMBER(SEARCH($E$3,L454)),MAX($K$1,K453)+1,0)","v":0},"Mirae Asset Global Commodity Stocks",8186,null,null,null,null,null,null,null,null,null,null,null,null,{"$f":"IFERROR(VLOOKUP(ROWS($Z$2:Z454),K454:L1202,2,0),\"\")","v":""}]
[null,null,null,null,null,null,null,null,null,null,{"$f":"IF(ISNUMBER(SEARCH($E$3,L455)),MAX($K$1,K454)+1,0)","v":0},"Mirae Asset Global Commodity Stocks Direct",16568,null,null,null,null,null,null,null,null,null,null,null,null,{"$f":"IFERROR(VLOOKUP(ROWS($Z$2:Z455),K455:L1203,2,0),\"\")","v":""}]
[null,null,null,null,null,null,null,null,null,null,{"$f":"IF(ISNUMBER(SEARCH($E$3,L456)),MAX($K$1,K455)+1,0)","v":0},"Mirae Asset India Opportunities Regular",6762,null,null,null,null,null,null,null,null,null,null,null,null,{"$f":"IFERROR(VLOOKUP(ROWS($Z$2:Z456),K456:L1204,2,0),\"\")","v":""}]
[null,null,null,null,null,null,null,null,null,null,{"$f":"IF(ISNUMBER(SEARCH($E$3,L457)),MAX($K$1,K456)+1,0)","v":0},"Mirae Asset India Opportunities Regular Direct",16575,null,null,null,null,null,null,null,null,null,null,null,null,{"$f":"IFERROR(VLOOKUP(ROWS($Z$2:Z457),K457:L1205,2,0),\"\")","v":""}]
[null,null,null,null,null,null,null,null,null,null,{"$f":"IF(ISNUMBER(SEARCH($E$3,L458)),MAX($K$1,K457)+1,0)","v":0},"Mirae Asset India-China Consumption Reg",12342,null,null,null,null,null,null,null,null,null,null,null,null,{"$f":"IFERROR(VLOOKUP(ROWS($Z$2:Z458),K458:L1206,2,0),\"\")","v":""}]
[null,null,null,null,null,null,null,null,null,null,{"$f":"IF(ISNUMBER(SEARCH($E$3,L459)),MAX($K$1,K458)+1,0)","v":0},"Mirae Asset India-China Consumption Reg Direct",16584,null,null,null,null,null,null,null,null,null,null,null,null,{"$f":"IFERROR(VLOOKUP(ROWS($Z$2:Z459),K459:L1207,2,0),\"\")","v":""}]
[null,null,null,null,null,null,null,null,null,null,{"$f":"IF(ISNUMBER(SEARCH($E$3,L460)),MAX($K$1,K459)+1,0)","v":0},"Morgan Stanley A.C.E. Direct",16617,null,null,null,null,null,null,null,null,null,null,null,null,{"$f":"IFERROR(VLOOKUP(ROWS($Z$2:Z460),K460:L1208,2,0),\"\")","v":""}]
[null,null,null,null,null,null,null,null,null,null,{"$f":"IF(ISNUMBER(SEARCH($E$3,L461)),MAX($K$1,K460)+1,0)","v":0},"Morgan Stanley A.C.E. Reg",6770,null,null,null,null,null,null,null,null,null,null,null,null,{"$f":"IFERROR(VLOOKUP(ROWS($Z$2:Z461),K461:L1209,2,0),\"\")","v":""}]
[null,null,null,null,null,null,null,null,null,null,{"$f":"IF(ISNUMBER(SEARCH($E$3,L462)),MAX($K$1,K461)+1,0)","v":0},"Morgan Stanley Growth Direct",16626,null,null,null,null,null,null,null,null,null,null,null,null,{"$f":"IFERROR(VLOOKUP(ROWS($Z$2:Z462),K462:L1210,2,0),\"\")","v":""}]
[null,null,null,null,null,null,null,null,null,null,{"$f":"IF(ISNUMBER(SEARCH($E$3,L463)),MAX($K$1,K462)+1,0)","v":0},"Morgan Stanley Growth Reg",172,null,null,null,null,null,null,null,null,null,null,null,null,{"$f":"IFERROR(VLOOKUP(ROWS($Z$2:Z463),K463:L1211,2,0),\"\")","v":""}]
[null,null,null,null,null,null,null,null,null,null,{"$f":"IF(ISNUMBER(SEARCH($E$3,L464)),MAX($K$1,K463)+1,0)","v":0},"Motilal Oswal MOSt Focused 25 Direct",19514,null,null,null,null,null,null,null,null,null,null,null,null,{"$f":"IFERROR(VLOOKUP(ROWS($Z$2:Z464),K464:L1212,2,0),\"\")","v":""}]
[null,null,null,null,null,null,null,null,null,null,{"$f":"IF(ISNUMBER(SEARCH($E$3,L465)),MAX($K$1,K464)+1,0)","v":0},"Motilal Oswal MOSt Focused 25 Reg",19512,null,null,null,null,null,null,null,null,null,null,null,null,{"$f":"IFERROR(VLOOKUP(ROWS($Z$2:Z465),K465:L1213,2,0),\"\")","v":""}]
[null,null,null,null,null,null,null,null,null,null,{"$f":"IF(ISNUMBER(SEARCH($E$3,L466)),MAX($K$1,K465)+1,0)","v":0},"Motilal Oswal MOSt Shares M100 ETF",12012,null,null,null,null,null,null,null,null,null,null,null,null,{"$f":"IFERROR(VLOOKUP(ROWS($Z$2:Z466),K466:L1214,2,0),\"\")","v":""}]
[null,null,null,null,null,null,null,null,null,null,{"$f":"IF(ISNUMBER(SEARCH($E$3,L467)),MAX($K$1,K466)+1,0)","v":0},"Motilal Oswal MOSt Shares M50 ETF",11348,null,null,null,null,null,null,null,null,null,null,null,null,{"$f":"IFERROR(VLOOKUP(ROWS($Z$2:Z467),K467:L1215,2,0),\"\")","v":""}]
[null,null,null,null,null,null,null,null,null,null,{"$f":"IF(ISNUMBER(SEARCH($E$3,L468)),MAX($K$1,K467)+1,0)","v":0},"Motilal Oswal MOSt Shares NASDAQ-100 ETF",12498,null,null,null,null,null,null,null,null,null,null,null,null,{"$f":"IFERROR(VLOOKUP(ROWS($Z$2:Z468),K468:L1216,2,0),\"\")","v":""}]
[null,null,null,null,null,null,null,null,null,null,{"$f":"IF(ISNUMBER(SEARCH($E$3,L469)),MAX($K$1,K468)+1,0)","v":0},"Peerless Equity",13264,null,null,null,null,null,null,null,null,null,null,null,null,{"$f":"IFERROR(VLOOKUP(ROWS($Z$2:Z469),K469:L1217,2,0),\"\")","v":""}]
[null,null,null,null,null,null,null,null,null,null,{"$f":"IF(ISNUMBER(SEARCH($E$3,L470)),MAX($K$1,K469)+1,0)","v":0},"Peerless Equity Direct",16461,null,null,null,null,null,null,null,null,null,null,null,null,{"$f":"IFERROR(VLOOKUP(ROWS($Z$2:Z470),K470:L1218,2,0),\"\")","v":""}]
[null,null,null,null,null,null,null,null,null,null,{"$f":"IF(ISNUMBER(SEARCH($E$3,L471)),MAX($K$1,K470)+1,0)","v":0},"PineBridge India Equity Standard",5010,null,null,null,null,null,null,null,null,null,null,null,null,{"$f":"IFERROR(VLOOKUP(ROWS($Z$2:Z471),K471:L1219,2,0),\"\")","v":""}]
[null,null,null,null,null,null,null,null,null,null,{"$f":"IF(ISNUMBER(SEARCH($E$3,L472)),MAX($K$1,K471)+1,0)","v":0},"PineBridge India Equity Standard Direct",16494,null,null,null,null,null,null,null,null,null,null,null,null,{"$f":"IFERROR(VLOOKUP(ROWS($Z$2:Z472),K472:L1220,2,0),\"\")","v":""}]
[null,null,null,null,null,null,null,null,null,null,{"$f":"IF(ISNUMBER(SEARCH($E$3,L473)),MAX($K$1,K472)+1,0)","v":0},"PineBridge Infrastructure and Economic Reform Inst#",6671,null,null,null,null,null,null,null,null,null,null,null,null,{"$f":"IFERROR(VLOOKUP(ROWS($Z$2:Z473),K473:L1221,2,0),\"\")","v":""}]
[null,null,null,null,null,null,null,null,null,null,{"$f":"IF(ISNUMBER(SEARCH($E$3,L474)),MAX($K$1,K473)+1,0)","v":0},"PineBridge Infrastructure and Economic Reform Standard",6669,null,null,null,null,null,null,null,null,null,null,null,null,{"$f":"IFERROR(VLOOKUP(ROWS($Z$2:Z474),K474:L1222,2,0),\"\")","v":""}]
[null,null,null,null,null,null,null,null,null,null,{"$f":"IF(ISNUMBER(SEARCH($E$3,L475)),MAX($K$1,K474)+1,0)","v":0},"PineBridge Infrastructure and Economic Reform Standard Direct",16508,null,null,null,null,null,null,null,null,null,null,null,null,{"$f":"IFERROR(VLOOKUP(ROWS($Z$2:Z475),K475:L1223,2,0),\"\")","v":""}]
[null,null,null,null,null,null,null,null,null,null,{"$f":"IF(ISNUMBER(SEARCH($E$3,L476)),MAX($K$1,K475)+1,0)","v":0},"PineBridge World Gold Standard",7515,null,null,null,null,null,null,null,null,null,null,null,null,{"$f":"IFERROR(VLOOKUP(ROWS($Z$2:Z476),K476:L1224,2,0),\"\")","v":""}]
[null,null,null,null,null,null,null,null,null,null,{"$f":"IF(ISNUMBER(SEARCH($E$3,L477)),MAX($K$1,K476)+1,0)","v":0},"PineBridge World Gold Standard Direct",16995,null,null,null,null,null,null,null,null,null,null,null,null,{"$f":"IFERROR(VLOOKUP(ROWS($Z$2:Z477),K477:L1225,2,0),\"\")","v":""}]
[null,null,null,null,null,null,null,null,null,null,{"$f":"IF(ISNUMBER(SEARCH($E$3,L478)),MAX($K$1,K477)+1,0)","v":0},"PPFAS Long Term Value Direct",19701,null,null,null,null,null,null,null,null,null,null,null,null,{"$f":"IFERROR(VLOOKUP(ROWS($Z$2:Z478),K478:L1226,2,0),\"\")","v":""}]
[null,null,null,null,null,null,null,null,null,null,{"$f":"IF(ISNUMBER(SEARCH($E$3,L479)),MAX($K$1,K478)+1,0)","v":0},"PPFAS Long Term Value Regular",19699,null,null,null,null,null,null,null,null,null,null,null,null,{"$f":"IFERROR(VLOOKUP(ROWS($Z$2:Z479),K479:L1227,2,0),\"\")","v":""}]
[null,null,null,null,null,null,null,null,null,null,{"$f":"IF(ISNUMBER(SEARCH($E$3,L480)),MAX($K$1,K479)+1,0)","v":0},"Pramerica Large Cap Equity",11797,null,null,null,null,null,null,null,null,null,null,null,null,{"$f":"IFERROR(VLOOKUP(ROWS($Z$2:Z480),K480:L1228,2,0),\"\")","v":""}]
[null,null,null,null,null,null,null,null,null,null,{"$f":"IF(ISNUMBER(SEARCH($E$3,L481)),MAX($K$1,K480)+1,0)","v":0},"Pramerica Large Cap Equity Direct",16639,null,null,null,null,null,null,null,null,null,null,null,null,{"$f":"IFERROR(VLOOKUP(ROWS($Z$2:Z481),K481:L1229,2,0),\"\")","v":""}]
[null,null,null,null,null,null,null,null,null,null,{"$f":"IF(ISNUMBER(SEARCH($E$3,L482)),MAX($K$1,K481)+1,0)","v":0},"Principal Dividend Yield",2470,null,null,null,null,null,null,null,null,null,null,null,null,{"$f":"IFERROR(VLOOKUP(ROWS($Z$2:Z482),K482:L1230,2,0),\"\")","v":""}]
[null,null,null,null,null,null,null,null,null,null,{"$f":"IF(ISNUMBER(SEARCH($E$3,L483)),MAX($K$1,K482)+1,0)","v":0},"Principal Dividend Yield Direct",16567,null,null,null,null,null,null,null,null,null,null,null,null,{"$f":"IFERROR(VLOOKUP(ROWS($Z$2:Z483),K483:L1231,2,0),\"\")","v":""}]
[null,null,null,null,null,null,null,null,null,null,{"$f":"IF(ISNUMBER(SEARCH($E$3,L484)),MAX($K$1,K483)+1,0)","v":0},"Principal Emerging Bluechip",9429,null,null,null,null,null,null,null,null,null,null,null,null,{"$f":"IFERROR(VLOOKUP(ROWS($Z$2:Z484),K484:L1232,2,0),\"\")","v":""}]
[null,null,null,null,null,null,null,null,null,null,{"$f":"IF(ISNUMBER(SEARCH($E$3,L485)),MAX($K$1,K484)+1,0)","v":0},"Principal Emerging Bluechip Direct",16573,null,null,null,null,null,null,null,null,null,null,null,null,{"$f":"IFERROR(VLOOKUP(ROWS($Z$2:Z485),K485:L1233,2,0),\"\")","v":""}]
[null,null,null,null,null,null,null,null,null,null,{"$f":"IF(ISNUMBER(SEARCH($E$3,L486)),MAX($K$1,K485)+1,0)","v":0},"Principal Global Opportunities",2117,null,null,null,null,null,null,null,null,null,null,null,null,{"$f":"IFERROR(VLOOKUP(ROWS($Z$2:Z486),K486:L1234,2,0),\"\")","v":""}]
[null,null,null,null,null,null,null,null,null,null,{"$f":"IF(ISNUMBER(SEARCH($E$3,L487)),MAX($K$1,K486)+1,0)","v":0},"Principal Global Opportunities Direct",16999,null,null,null,null,null,null,null,null,null,null,null,null,{"$f":"IFERROR(VLOOKUP(ROWS($Z$2:Z487),K487:L1235,2,0),\"\")","v":""}]
[null,null,null,null,null,null,null,null,null,null,{"$f":"IF(ISNUMBER(SEARCH($E$3,L488)),MAX($K$1,K487)+1,0)","v":0},"Principal Growth",866,null,null,null,null,null,null,null,null,null,null,null,null,{"$f":"IFERROR(VLOOKUP(ROWS($Z$2:Z488),K488:L1236,2,0),\"\")","v":""}]
[null,null,null,null,null,null,null,null,null,null,{"$f":"IF(ISNUMBER(SEARCH($E$3,L489)),MAX($K$1,K488)+1,0)","v":0},"Principal Growth Direct",16580,null,null,null,null,null,null,null,null,null,null,null,null,{"$f":"IFERROR(VLOOKUP(ROWS($Z$2:Z489),K489:L1237,2,0),\"\")","v":""}]
[null,null,null,null,null,null,null,null,null,null,{"$f":"IF(ISNUMBER(SEARCH($E$3,L490)),MAX($K$1,K489)+1,0)","v":0},"Principal Index",637,null,null,null,null,null,null,null,null,null,null,null,null,{"$f":"IFERROR(VLOOKUP(ROWS($Z$2:Z490),K490:L1238,2,0),\"\")","v":""}]
[null,null,null,null,null,null,null,null,null,null,{"$f":"IF(ISNUMBER(SEARCH($E$3,L491)),MAX($K$1,K490)+1,0)","v":0},"Principal Index Direct",16608,null,null,null,null,null,null,null,null,null,null,null,null,{"$f":"IFERROR(VLOOKUP(ROWS($Z$2:Z491),K491:L1239,2,0),\"\")","v":""}]
[null,null,null,null,null,null,null,null,null,null,{"$f":"IF(ISNUMBER(SEARCH($E$3,L492)),MAX($K$1,K491)+1,0)","v":0},"Principal Large Cap",2916,null,null,null,null,null,null,null,null,null,null,null,null,{"$f":"IFERROR(VLOOKUP(ROWS($Z$2:Z492),K492:L1240,2,0),\"\")","v":""}]
[null,null,null,null,null,null,null,null,null,null,{"$f":"IF(ISNUMBER(SEARCH($E$3,L493)),MAX($K$1,K492)+1,0)","v":0},"Principal Large Cap Direct",16614,null,null,null,null,null,null,null,null,null,null,null,null,{"$f":"IFERROR(VLOOKUP(ROWS($Z$2:Z493),K493:L1241,2,0),\"\")","v":""}]
[null,null,null,null,null,null,null,null,null,null,{"$f":"IF(ISNUMBER(SEARCH($E$3,L494)),MAX($K$1,K493)+1,0)","v":0},"Principal Personal Tax Saver",105,null,null,null,null,null,null,null,null,null,null,null,null,{"$f":"IFERROR(VLOOKUP(ROWS($Z$2:Z494),K494:L1242,2,0),\"\")","v":""}]
[null,null,null,null,null,null,null,null,null,null,{"$f":"IF(ISNUMBER(SEARCH($E$3,L495)),MAX($K$1,K494)+1,0)","v":0},"Principal Personal Tax Saver Direct",16621,null,null,null,null,null,null,null,null,null,null,null,null,{"$f":"IFERROR(VLOOKUP(ROWS($Z$2:Z495),K495:L1243,2,0),\"\")","v":""}]
[null,null,null,null,null,null,null,null,null,null,{"$f":"IF(ISNUMBER(SEARCH($E$3,L496)),MAX($K$1,K495)+1,0)","v":0},"Principal Tax Savings",89,null,null,null,null,null,null,null,null,null,null,null,null,{"$f":"IFERROR(VLOOKUP(ROWS($Z$2:Z496),K496:L1244,2,0),\"\")","v":""}]
[null,null,null,null,null,null,null,null,null,null,{"$f":"IF(ISNUMBER(SEARCH($E$3,L497)),MAX($K$1,K496)+1,0)","v":0},"Principal Tax Savings Direct",16650,null,null,null,null,null,null,null,null,null,null,null,null,{"$f":"IFERROR(VLOOKUP(ROWS($Z$2:Z497),K497:L1245,2,0),\"\")","v":""}]
[null,null,null,null,null,null,null,null,null,null,{"$f":"IF(ISNUMBER(SEARCH($E$3,L498)),MAX($K$1,K497)+1,0)","v":0},"Quantum Equity FoF",10550,null,null,null,null,null,null,null,null,null,null,null,null,{"$f":"IFERROR(VLOOKUP(ROWS($Z$2:Z498),K498:L1246,2,0),\"\")","v":""}]
[null,null,null,null,null,null,null,null,null,null,{"$f":"IF(ISNUMBER(SEARCH($E$3,L499)),MAX($K$1,K498)+1,0)","v":0},"Quantum Index",7834,null,null,null,null,null,null,null,null,null,null,null,null,{"$f":"IFERROR(VLOOKUP(ROWS($Z$2:Z499),K499:L1247,2,0),\"\")","v":""}]
[null,null,null,null,null,null,null,null,null,null,{"$f":"IF(ISNUMBER(SEARCH($E$3,L500)),MAX($K$1,K499)+1,0)","v":0},"Quantum Long Term Equity",3181,null,null,null,null,null,null,null,null,null,null,null,null,{"$f":"IFERROR(VLOOKUP(ROWS($Z$2:Z500),K500:L1248,2,0),\"\")","v":""}]
[null,null,null,null,null,null,null,null,null,null,{"$f":"IF(ISNUMBER(SEARCH($E$3,L501)),MAX($K$1,K500)+1,0)","v":0},"Quantum Tax Saving",10080,null,null,null,null,null,null,null,null,null,null,null,null,{"$f":"IFERROR(VLOOKUP(ROWS($Z$2:Z501),K501:L1249,2,0),\"\")","v":""}]
[null,null,null,null,null,null,null,null,null,null,{"$f":"IF(ISNUMBER(SEARCH($E$3,L502)),MAX($K$1,K501)+1,0)","v":0},"R*Shares Banking ETF",7803,null,null,null,null,null,null,null,null,null,null,null,null,{"$f":"IFERROR(VLOOKUP(ROWS($Z$2:Z502),K502:L1250,2,0),\"\")","v":""}]
[null,null,null,null,null,null,null,null,null,null,{"$f":"IF(ISNUMBER(SEARCH($E$3,L503)),MAX($K$1,K502)+1,0)","v":0},"R*Shares CNX 100",18234,null,null,null,null,null,null,null,null,null,null,null,null,{"$f":"IFERROR(VLOOKUP(ROWS($Z$2:Z503),K503:L1251,2,0),\"\")","v":""}]
[null,null,null,null,null,null,null,null,null,null,{"$f":"IF(ISNUMBER(SEARCH($E$3,L504)),MAX($K$1,K503)+1,0)","v":0},"Reliance Banking",1708,null,null,null,null,null,null,null,null,null,null,null,null,{"$f":"IFERROR(VLOOKUP(ROWS($Z$2:Z504),K504:L1252,2,0),\"\")","v":""}]
[null,null,null,null,null,null,null,null,null,null,{"$f":"IF(ISNUMBER(SEARCH($E$3,L505)),MAX($K$1,K504)+1,0)","v":0},"Reliance Banking Direct",16048,null,null,null,null,null,null,null,null,null,null,null,null,{"$f":"IFERROR(VLOOKUP(ROWS($Z$2:Z505),K505:L1253,2,0),\"\")","v":""}]
[null,null,null,null,null,null,null,null,null,null,{"$f":"IF(ISNUMBER(SEARCH($E$3,L506)),MAX($K$1,K505)+1,0)","v":0},"Reliance Diversified Power Sector",2194,null,null,null,null,null,null,null,null,null,null,null,null,{"$f":"IFERROR(VLOOKUP(ROWS($Z$2:Z506),K506:L1254,2,0),\"\")","v":""}]
[null,null,null,null,null,null,null,null,null,null,{"$f":"IF(ISNUMBER(SEARCH($E$3,L507)),MAX($K$1,K506)+1,0)","v":0},"Reliance Diversified Power Sector Direct",16054,null,null,null,null,null,null,null,null,null,null,null,null,{"$f":"IFERROR(VLOOKUP(ROWS($Z$2:Z507),K507:L1255,2,0),\"\")","v":""}]
[null,null,null,null,null,null,null,null,null,null,{"$f":"IF(ISNUMBER(SEARCH($E$3,L508)),MAX($K$1,K507)+1,0)","v":0},"Reliance Equity",3158,null,null,null,null,null,null,null,null,null,null,null,null,{"$f":"IFERROR(VLOOKUP(ROWS($Z$2:Z508),K508:L1256,2,0),\"\")","v":""}]
[null,null,null,null,null,null,null,null,null,null,{"$f":"IF(ISNUMBER(SEARCH($E$3,L509)),MAX($K$1,K508)+1,0)","v":0},"Reliance Equity Direct",17038,null,null,null,null,null,null,null,null,null,null,null,null,{"$f":"IFERROR(VLOOKUP(ROWS($Z$2:Z509),K509:L1257,2,0),\"\")","v":""}]
[null,null,null,null,null,null,null,null,null,null,{"$f":"IF(ISNUMBER(SEARCH($E$3,L510)),MAX($K$1,K509)+1,0)","v":0},"Reliance Equity Opportunities",2640,null,null,null,null,null,null,null,null,null,null,null,null,{"$f":"IFERROR(VLOOKUP(ROWS($Z$2:Z510),K510:L1258,2,0),\"\")","v":""}]
[null,null,null,null,null,null,null,null,null,null,{"$f":"IF(ISNUMBER(SEARCH($E$3,L511)),MAX($K$1,K510)+1,0)","v":0},"Reliance Equity Opportunities Direct",16068,null,null,null,null,null,null,null,null,null,null,null,null,{"$f":"IFERROR(VLOOKUP(ROWS($Z$2:Z511),K511:L1259,2,0),\"\")","v":""}]
[null,null,null,null,null,null,null,null,null,null,{"$f":"IF(ISNUMBER(SEARCH($E$3,L512)),MAX($K$1,K511)+1,0)","v":0},"Reliance Equity Opportunities Inst#",5589,null,null,null,null,null,null,null,null,null,null,null,null,{"$f":"IFERROR(VLOOKUP(ROWS($Z$2:Z512),K512:L1260,2,0),\"\")","v":""}]
[null,null,null,null,null,null,null,null,null,null,{"$f":"IF(ISNUMBER(SEARCH($E$3,L513)),MAX($K$1,K512)+1,0)","v":0},"Reliance Growth",183,null,null,null,null,null,null,null,null,null,null,null,null,{"$f":"IFERROR(VLOOKUP(ROWS($Z$2:Z513),K513:L1261,2,0),\"\")","v":""}]
[null,null,null,null,null,null,null,null,null,null,{"$f":"IF(ISNUMBER(SEARCH($E$3,L514)),MAX($K$1,K513)+1,0)","v":0},"Reliance Growth Direct",16083,null,null,null,null,null,null,null,null,null,null,null,null,{"$f":"IFERROR(VLOOKUP(ROWS($Z$2:Z514),K514:L1262,2,0),\"\")","v":""}]
[null,null,null,null,null,null,null,null,null,null,{"$f":"IF(ISNUMBER(SEARCH($E$3,L515)),MAX($K$1,K514)+1,0)","v":0},"Reliance Growth Inst#",5578,null,null,null,null,null,null,null,null,null,null,null,null,{"$f":"IFERROR(VLOOKUP(ROWS($Z$2:Z515),K515:L1263,2,0),\"\")","v":""}]
[null,null,null,null,null,null,null,null,null,null,{"$f":"IF(ISNUMBER(SEARCH($E$3,L516)),MAX($K$1,K515)+1,0)","v":0},"Reliance Index Nifty",11536,null,null,null,null,null,null,null,null,null,null,null,null,{"$f":"IFERROR(VLOOKUP(ROWS($Z$2:Z516),K516:L1264,2,0),\"\")","v":""}]
[null,null,null,null,null,null,null,null,null,null,{"$f":"IF(ISNUMBER(SEARCH($E$3,L517)),MAX($K$1,K516)+1,0)","v":0},"Reliance Index Nifty Direct",16856,null,null,null,null,null,null,null,null,null,null,null,null,{"$f":"IFERROR(VLOOKUP(ROWS($Z$2:Z517),K517:L1265,2,0),\"\")","v":""}]
[null,null,null,null,null,null,null,null,null,null,{"$f":"IF(ISNUMBER(SEARCH($E$3,L518)),MAX($K$1,K517)+1,0)","v":0},"Reliance Index Sensex",11541,null,null,null,null,null,null,null,null,null,null,null,null,{"$f":"IFERROR(VLOOKUP(ROWS($Z$2:Z518),K518:L1266,2,0),\"\")","v":""}]
[null,null,null,null,null,null,null,null,null,null,{"$f":"IF(ISNUMBER(SEARCH($E$3,L519)),MAX($K$1,K518)+1,0)","v":0},"Reliance Index Sensex Direct",16859,null,null,null,null,null,null,null,null,null,null,null,null,{"$f":"IFERROR(VLOOKUP(ROWS($Z$2:Z519),K519:L1267,2,0),\"\")","v":""}]
[null,null,null,null,null,null,null,null,null,null,{"$f":"IF(ISNUMBER(SEARCH($E$3,L520)),MAX($K$1,K519)+1,0)","v":0},"Reliance Long Term Equity",3900,null,null,null,null,null,null,null,null,null,null,null,null,{"$f":"IFERROR(VLOOKUP(ROWS($Z$2:Z520),K520:L1268,2,0),\"\")","v":""}]
[null,null,null,null,null,null,null,null,null,null,{"$f":"IF(ISNUMBER(SEARCH($E$3,L521)),MAX($K$1,K520)+1,0)","v":0},"Reliance Long Term Equity Direct",16129,null,null,null,null,null,null,null,null,null,null,null,null,{"$f":"IFERROR(VLOOKUP(ROWS($Z$2:Z521),K521:L1269,2,0),\"\")","v":""}]
[null,null,null,null,null,null,null,null,null,null,{"$f":"IF(ISNUMBER(SEARCH($E$3,L522)),MAX($K$1,K521)+1,0)","v":0},"Reliance Media & Entertainment",2474,null,null,null,null,null,null,null,null,null,null,null,null,{"$f":"IFERROR(VLOOKUP(ROWS($Z$2:Z522),K522:L1270,2,0),\"\")","v":""}]
[null,null,null,null,null,null,null,null,null,null,{"$f":"IF(ISNUMBER(SEARCH($E$3,L523)),MAX($K$1,K522)+1,0)","v":0},"Reliance Media & Entertainment Direct",16131,null,null,null,null,null,null,null,null,null,null,null,null,{"$f":"IFERROR(VLOOKUP(ROWS($Z$2:Z523),K523:L1271,2,0),\"\")","v":""}]
[null,null,null,null,null,null,null,null,null,null,{"$f":"IF(ISNUMBER(SEARCH($E$3,L524)),MAX($K$1,K523)+1,0)","v":0},"Reliance NRI Equity",2510,null,null,null,null,null,null,null,null,null,null,null,null,{"$f":"IFERROR(VLOOKUP(ROWS($Z$2:Z524),K524:L1272,2,0),\"\")","v":""}]
[null,null,null,null,null,null,null,null,null,null,{"$f":"IF(ISNUMBER(SEARCH($E$3,L525)),MAX($K$1,K524)+1,0)","v":0},"Reliance NRI Equity Direct",17097,null,null,null,null,null,null,null,null,null,null,null,null,{"$f":"IFERROR(VLOOKUP(ROWS($Z$2:Z525),K525:L1273,2,0),\"\")","v":""}]
[null,null,null,null,null,null,null,null,null,null,{"$f":"IF(ISNUMBER(SEARCH($E$3,L526)),MAX($K$1,K525)+1,0)","v":0},"Reliance Pharma",2241,null,null,null,null,null,null,null,null,null,null,null,null,{"$f":"IFERROR(VLOOKUP(ROWS($Z$2:Z526),K526:L1274,2,0),\"\")","v":""}]
[null,null,null,null,null,null,null,null,null,null,{"$f":"IF(ISNUMBER(SEARCH($E$3,L527)),MAX($K$1,K526)+1,0)","v":0},"Reliance Pharma Direct",16150,null,null,null,null,null,null,null,null,null,null,null,null,{"$f":"IFERROR(VLOOKUP(ROWS($Z$2:Z527),K527:L1275,2,0),\"\")","v":""}]
[null,null,null,null,null,null,null,null,null,null,{"$f":"IF(ISNUMBER(SEARCH($E$3,L528)),MAX($K$1,K527)+1,0)","v":0},"Reliance Quant Plus Retail",7591,null,null,null,null,null,null,null,null,null,null,null,null,{"$f":"IFERROR(VLOOKUP(ROWS($Z$2:Z528),K528:L1276,2,0),\"\")","v":""}]
[null,null,null,null,null,null,null,null,null,null,{"$f":"IF(ISNUMBER(SEARCH($E$3,L529)),MAX($K$1,K528)+1,0)","v":0},"Reliance Quant Plus Retail Direct",16155,null,null,null,null,null,null,null,null,null,null,null,null,{"$f":"IFERROR(VLOOKUP(ROWS($Z$2:Z529),K529:L1277,2,0),\"\")","v":""}]
[null,null,null,null,null,null,null,null,null,null,{"$f":"IF(ISNUMBER(SEARCH($E$3,L530)),MAX($K$1,K529)+1,0)","v":0},"Reliance Regular Savings Equity",2790,null,null,null,null,null,null,null,null,null,null,null,null,{"$f":"IFERROR(VLOOKUP(ROWS($Z$2:Z530),K530:L1278,2,0),\"\")","v":""}]
[null,null,null,null,null,null,null,null,null,null,{"$f":"IF(ISNUMBER(SEARCH($E$3,L531)),MAX($K$1,K530)+1,0)","v":0},"Reliance Regular Savings Equity Direct",16175,null,null,null,null,null,null,null,null,null,null,null,null,{"$f":"IFERROR(VLOOKUP(ROWS($Z$2:Z531),K531:L1279,2,0),\"\")","v":""}]
[null,null,null,null,null,null,null,null,null,null,{"$f":"IF(ISNUMBER(SEARCH($E$3,L532)),MAX($K$1,K531)+1,0)","v":0},"Reliance Small Cap",11463,null,null,null,null,null,null,null,null,null,null,null,null,{"$f":"IFERROR(VLOOKUP(ROWS($Z$2:Z532),K532:L1280,2,0),\"\")","v":""}]
[null,null,null,null,null,null,null,null,null,null,{"$f":"IF(ISNUMBER(SEARCH($E$3,L533)),MAX($K$1,K532)+1,0)","v":0},"Reliance Small Cap Direct",16182,null,null,null,null,null,null,null,null,null,null,null,null,{"$f":"IFERROR(VLOOKUP(ROWS($Z$2:Z533),K533:L1281,2,0),\"\")","v":""}]
[null,null,null,null,null,null,null,null,null,null,{"$f":"IF(ISNUMBER(SEARCH($E$3,L534)),MAX($K$1,K533)+1,0)","v":0},"Reliance Tax Saver",2816,null,null,null,null,null,null,null,null,null,null,null,null,{"$f":"IFERROR(VLOOKUP(ROWS($Z$2:Z534),K534:L1282,2,0),\"\")","v":""}]
[null,null,null,null,null,null,null,null,null,null,{"$f":"IF(ISNUMBER(SEARCH($E$3,L535)),MAX($K$1,K534)+1,0)","v":0},"Reliance Tax Saver Direct",16186,null,null,null,null,null,null,null,null,null,null,null,null,{"$f":"IFERROR(VLOOKUP(ROWS($Z$2:Z535),K535:L1283,2,0),\"\")","v":""}]
[null,null,null,null,null,null,null,null,null,null,{"$f":"IF(ISNUMBER(SEARCH($E$3,L536)),MAX($K$1,K535)+1,0)","v":0},"Reliance Top 200 Retail",5270,null,null,null,null,null,null,null,null,null,null,null,null,{"$f":"IFERROR(VLOOKUP(ROWS($Z$2:Z536),K536:L1284,2,0),\"\")","v":""}]
[null,null,null,null,null,null,null,null,null,null,{"$f":"IF(ISNUMBER(SEARCH($E$3,L537)),MAX($K$1,K536)+1,0)","v":0},"Reliance Top 200 Retail Direct",16192,null,null,null,null,null,null,null,null,null,null,null,null,{"$f":"IFERROR(VLOOKUP(ROWS($Z$2:Z537),K537:L1285,2,0),\"\")","v":""}]
[null,null,null,null,null,null,null,null,null,null,{"$f":"IF(ISNUMBER(SEARCH($E$3,L538)),MAX($K$1,K537)+1,0)","v":0},"Reliance Vision",182,null,null,null,null,null,null,null,null,null,null,null,null,{"$f":"IFERROR(VLOOKUP(ROWS($Z$2:Z538),K538:L1286,2,0),\"\")","v":""}]
[null,null,null,null,null,null,null,null,null,null,{"$f":"IF(ISNUMBER(SEARCH($E$3,L539)),MAX($K$1,K538)+1,0)","v":0},"Reliance Vision Direct",16194,null,null,null,null,null,null,null,null,null,null,null,null,{"$f":"IFERROR(VLOOKUP(ROWS($Z$2:Z539),K539:L1287,2,0),\"\")","v":""}]
[null,null,null,null,null,null,null,null,null,null,{"$f":"IF(ISNUMBER(SEARCH($E$3,L540)),MAX($K$1,K539)+1,0)","v":0},"Reliance Vision Inst#",5581,null,null,null,null,null,null,null,null,null,null,null,null,{"$f":"IFERROR(VLOOKUP(ROWS($Z$2:Z540),K540:L1288,2,0),\"\")","v":""}]
[null,null,null,null,null,null,null,null,null,null,{"$f":"IF(ISNUMBER(SEARCH($E$3,L541)),MAX($K$1,K540)+1,0)","v":0},"Religare Invesco AGILE",6115,null,null,null,null,null,null,null,null,null,null,null,null,{"$f":"IFERROR(VLOOKUP(ROWS($Z$2:Z541),K541:L1289,2,0),\"\")","v":""}]
[null,null,null,null,null,null,null,null,null,null,{"$f":"IF(ISNUMBER(SEARCH($E$3,L542)),MAX($K$1,K541)+1,0)","v":0},"Religare Invesco AGILE Direct",16360,null,null,null,null,null,null,null,null,null,null,null,null,{"$f":"IFERROR(VLOOKUP(ROWS($Z$2:Z542),K542:L1290,2,0),\"\")","v":""}]
[null,null,null,null,null,null,null,null,null,null,{"$f":"IF(ISNUMBER(SEARCH($E$3,L543)),MAX($K$1,K542)+1,0)","v":0},"Religare Invesco Banking",7830,null,null,null,null,null,null,null,null,null,null,null,null,{"$f":"IFERROR(VLOOKUP(ROWS($Z$2:Z543),K543:L1291,2,0),\"\")","v":""}]
[null,null,null,null,null,null,null,null,null,null,{"$f":"IF(ISNUMBER(SEARCH($E$3,L544)),MAX($K$1,K543)+1,0)","v":0},"Religare Invesco Banking Direct",16702,null,null,null,null,null,null,null,null,null,null,null,null,{"$f":"IFERROR(VLOOKUP(ROWS($Z$2:Z544),K544:L1292,2,0),\"\")","v":""}]
[null,null,null,null,null,null,null,null,null,null,{"$f":"IF(ISNUMBER(SEARCH($E$3,L545)),MAX($K$1,K544)+1,0)","v":0},"Religare Invesco Business Leaders",10565,null,null,null,null,null,null,null,null,null,null,null,null,{"$f":"IFERROR(VLOOKUP(ROWS($Z$2:Z545),K545:L1293,2,0),\"\")","v":""}]
[null,null,null,null,null,null,null,null,null,null,{"$f":"IF(ISNUMBER(SEARCH($E$3,L546)),MAX($K$1,K545)+1,0)","v":0},"Religare Invesco Business Leaders Direct",16712,null,null,null,null,null,null,null,null,null,null,null,null,{"$f":"IFERROR(VLOOKUP(ROWS($Z$2:Z546),K546:L1294,2,0),\"\")","v":""}]
[null,null,null,null,null,null,null,null,null,null,{"$f":"IF(ISNUMBER(SEARCH($E$3,L547)),MAX($K$1,K546)+1,0)","v":0},"Religare Invesco Contra",4278,null,null,null,null,null,null,null,null,null,null,null,null,{"$f":"IFERROR(VLOOKUP(ROWS($Z$2:Z547),K547:L1295,2,0),\"\")","v":""}]
[null,null,null,null,null,null,null,null,null,null,{"$f":"IF(ISNUMBER(SEARCH($E$3,L548)),MAX($K$1,K547)+1,0)","v":0},"Religare Invesco Contra Direct",16719,null,null,null,null,null,null,null,null,null,null,null,null,{"$f":"IFERROR(VLOOKUP(ROWS($Z$2:Z548),K548:L1296,2,0),\"\")","v":""}]
[null,null,null,null,null,null,null,null,null,null,{"$f":"IF(ISNUMBER(SEARCH($E$3,L549)),MAX($K$1,K548)+1,0)","v":0},"Religare Invesco Equity",5566,null,null,null,null,null,null,null,null,null,null,null,null,{"$f":"IFERROR(VLOOKUP(ROWS($Z$2:Z549),K549:L1297,2,0),\"\")","v":""}]
[null,null,null,null,null,null,null,null,null,null,{"$f":"IF(ISNUMBER(SEARCH($E$3,L550)),MAX($K$1,K549)+1,0)","v":0},"Religare Invesco Equity Direct",16740,null,null,null,null,null,null,null,null,null,null,null,null,{"$f":"IFERROR(VLOOKUP(ROWS($Z$2:Z550),K550:L1298,2,0),\"\")","v":""}]
[null,null,null,null,null,null,null,null,null,null,{"$f":"IF(ISNUMBER(SEARCH($E$3,L551)),MAX($K$1,K550)+1,0)","v":0},"Religare Invesco Growth",5346,null,null,null,null,null,null,null,null,null,null,null,null,{"$f":"IFERROR(VLOOKUP(ROWS($Z$2:Z551),K551:L1299,2,0),\"\")","v":""}]
[null,null,null,null,null,null,null,null,null,null,{"$f":"IF(ISNUMBER(SEARCH($E$3,L552)),MAX($K$1,K551)+1,0)","v":0},"Religare Invesco Growth Direct",16770,null,null,null,null,null,null,null,null,null,null,null,null,{"$f":"IFERROR(VLOOKUP(ROWS($Z$2:Z552),K552:L1300,2,0),\"\")","v":""}]
[null,null,null,null,null,null,null,null,null,null,{"$f":"IF(ISNUMBER(SEARCH($E$3,L553)),MAX($K$1,K552)+1,0)","v":0},"Religare Invesco Infrastructure",5882,null,null,null,null,null,null,null,null,null,null,null,null,{"$f":"IFERROR(VLOOKUP(ROWS($Z$2:Z553),K553:L1301,2,0),\"\")","v":""}]
[null,null,null,null,null,null,null,null,null,null,{"$f":"IF(ISNUMBER(SEARCH($E$3,L554)),MAX($K$1,K553)+1,0)","v":0},"Religare Invesco Infrastructure Direct",16774,null,null,null,null,null,null,null,null,null,null,null,null,{"$f":"IFERROR(VLOOKUP(ROWS($Z$2:Z554),K554:L1302,2,0),\"\")","v":""}]
[null,null,null,null,null,null,null,null,null,null,{"$f":"IF(ISNUMBER(SEARCH($E$3,L555)),MAX($K$1,K554)+1,0)","v":0},"Religare Invesco Mid Cap",4280,null,null,null,null,null,null,null,null,null,null,null,null,{"$f":"IFERROR(VLOOKUP(ROWS($Z$2:Z555),K555:L1303,2,0),\"\")","v":""}]
[null,null,null,null,null,null,null,null,null,null,{"$f":"IF(ISNUMBER(SEARCH($E$3,L556)),MAX($K$1,K555)+1,0)","v":0},"Religare Invesco Mid Cap Direct",16807,null,null,null,null,null,null,null,null,null,null,null,null,{"$f":"IFERROR(VLOOKUP(ROWS($Z$2:Z556),K556:L1304,2,0),\"\")","v":""}]
[null,null,null,null,null,null,null,null,null,null,{"$f":"IF(ISNUMBER(SEARCH($E$3,L557)),MAX($K$1,K556)+1,0)","v":0},"Religare Invesco Mid N Small Cap",6675,null,null,null,null,null,null,null,null,null,null,null,null,{"$f":"IFERROR(VLOOKUP(ROWS($Z$2:Z557),K557:L1305,2,0),\"\")","v":""}]
[null,null,null,null,null,null,null,null,null,null,{"$f":"IF(ISNUMBER(SEARCH($E$3,L558)),MAX($K$1,K557)+1,0)","v":0},"Religare Invesco Mid N Small Cap Direct",16811,null,null,null,null,null,null,null,null,null,null,null,null,{"$f":"IFERROR(VLOOKUP(ROWS($Z$2:Z558),K558:L1306,2,0),\"\")","v":""}]
[null,null,null,null,null,null,null,null,null,null,{"$f":"IF(ISNUMBER(SEARCH($E$3,L559)),MAX($K$1,K558)+1,0)","v":0},"Religare Invesco Nifty ETF",12761,null,null,null,null,null,null,null,null,null,null,null,null,{"$f":"IFERROR(VLOOKUP(ROWS($Z$2:Z559),K559:L1307,2,0),\"\")","v":""}]
[null,null,null,null,null,null,null,null,null,null,{"$f":"IF(ISNUMBER(SEARCH($E$3,L560)),MAX($K$1,K559)+1,0)","v":0},"Religare Invesco PSU Equity",10694,null,null,null,null,null,null,null,null,null,null,null,null,{"$f":"IFERROR(VLOOKUP(ROWS($Z$2:Z560),K560:L1308,2,0),\"\")","v":""}]
[null,null,null,null,null,null,null,null,null,null,{"$f":"IF(ISNUMBER(SEARCH($E$3,L561)),MAX($K$1,K560)+1,0)","v":0},"Religare Invesco PSU Equity Direct",16831,null,null,null,null,null,null,null,null,null,null,null,null,{"$f":"IFERROR(VLOOKUP(ROWS($Z$2:Z561),K561:L1309,2,0),\"\")","v":""}]
[null,null,null,null,null,null,null,null,null,null,{"$f":"IF(ISNUMBER(SEARCH($E$3,L562)),MAX($K$1,K561)+1,0)","v":0},"Religare Invesco Tax Plan",3913,null,null,null,null,null,null,null,null,null,null,null,null,{"$f":"IFERROR(VLOOKUP(ROWS($Z$2:Z562),K562:L1310,2,0),\"\")","v":""}]
[null,null,null,null,null,null,null,null,null,null,{"$f":"IF(ISNUMBER(SEARCH($E$3,L563)),MAX($K$1,K562)+1,0)","v":0},"Religare Invesco Tax Plan Direct",16849,null,null,null,null,null,null,null,null,null,null,null,null,{"$f":"IFERROR(VLOOKUP(ROWS($Z$2:Z563),K563:L1311,2,0),\"\")","v":""}]
[null,null,null,null,null,null,null,null,null,null,{"$f":"IF(ISNUMBER(SEARCH($E$3,L564)),MAX($K$1,K563)+1,0)","v":0},"Sahara Banking and Financial Services",8554,null,null,null,null,null,null,null,null,null,null,null,null,{"$f":"IFERROR(VLOOKUP(ROWS($Z$2:Z564),K564:L1312,2,0),\"\")","v":""}]
[null,null,null,null,null,null,null,null,null,null,{"$f":"IF(ISNUMBER(SEARCH($E$3,L565)),MAX($K$1,K564)+1,0)","v":0},"Sahara Banking and Financial Services Direct",15601,null,null,null,null,null,null,null,null,null,null,null,null,{"$f":"IFERROR(VLOOKUP(ROWS($Z$2:Z565),K565:L1313,2,0),\"\")","v":""}]
[null,null,null,null,null,null,null,null,null,null,{"$f":"IF(ISNUMBER(SEARCH($E$3,L566)),MAX($K$1,K565)+1,0)","v":0},"Sahara Growth",1390,null,null,null,null,null,null,null,null,null,null,null,null,{"$f":"IFERROR(VLOOKUP(ROWS($Z$2:Z566),K566:L1314,2,0),\"\")","v":""}]
[null,null,null,null,null,null,null,null,null,null,{"$f":"IF(ISNUMBER(SEARCH($E$3,L567)),MAX($K$1,K566)+1,0)","v":0},"Sahara Growth Direct",15610,null,null,null,null,null,null,null,null,null,null,null,null,{"$f":"IFERROR(VLOOKUP(ROWS($Z$2:Z567),K567:L1315,2,0),\"\")","v":""}]
[null,null,null,null,null,null,null,null,null,null,{"$f":"IF(ISNUMBER(SEARCH($E$3,L568)),MAX($K$1,K567)+1,0)","v":0},"Sahara Infrastructure Fixed Pricing",3192,null,null,null,null,null,null,null,null,null,null,null,null,{"$f":"IFERROR(VLOOKUP(ROWS($Z$2:Z568),K568:L1316,2,0),\"\")","v":""}]
[null,null,null,null,null,null,null,null,null,null,{"$f":"IF(ISNUMBER(SEARCH($E$3,L569)),MAX($K$1,K568)+1,0)","v":0},"Sahara Infrastructure Fixed Pricing Direct",15618,null,null,null,null,null,null,null,null,null,null,null,null,{"$f":"IFERROR(VLOOKUP(ROWS($Z$2:Z569),K569:L1317,2,0),\"\")","v":""}]
[null,null,null,null,null,null,null,null,null,null,{"$f":"IF(ISNUMBER(SEARCH($E$3,L570)),MAX($K$1,K569)+1,0)","v":0},"Sahara Infrastructure Variable Pricing",3194,null,null,null,null,null,null,null,null,null,null,null,null,{"$f":"IFERROR(VLOOKUP(ROWS($Z$2:Z570),K570:L1318,2,0),\"\")","v":""}]
[null,null,null,null,null,null,null,null,null,null,{"$f":"IF(ISNUMBER(SEARCH($E$3,L571)),MAX($K$1,K570)+1,0)","v":0},"Sahara Infrastructure Variable Pricing Direct",15622,null,null,null,null,null,null,null,null,null,null,null,null,{"$f":"IFERROR(VLOOKUP(ROWS($Z$2:Z571),K571:L1319,2,0),\"\")","v":""}]
[null,null,null,null,null,null,null,null,null,null,{"$f":"IF(ISNUMBER(SEARCH($E$3,L572)),MAX($K$1,K571)+1,0)","v":0},"Sahara Mid-Cap Direct",15642,null,null,null,null,null,null,null,null,null,null,null,null,{"$f":"IFERROR(VLOOKUP(ROWS($Z$2:Z572),K572:L1320,2,0),\"\")","v":""}]
[null,null,null,null,null,null,null,null,null,null,{"$f":"IF(ISNUMBER(SEARCH($E$3,L573)),MAX($K$1,K572)+1,0)","v":0},"Sahara Mid-Cap Fund",2553,null,null,null,null,null,null,null,null,null,null,null,null,{"$f":"IFERROR(VLOOKUP(ROWS($Z$2:Z573),K573:L1321,2,0),\"\")","v":""}]
[null,null,null,null,null,null,null,null,null,null,{"$f":"IF(ISNUMBER(SEARCH($E$3,L574)),MAX($K$1,K573)+1,0)","v":0},"Sahara Power & Natural Resources",7712,null,null,null,null,null,null,null,null,null,null,null,null,{"$f":"IFERROR(VLOOKUP(ROWS($Z$2:Z574),K574:L1322,2,0),\"\")","v":""}]
[null,null,null,null,null,null,null,null,null,null,{"$f":"IF(ISNUMBER(SEARCH($E$3,L575)),MAX($K$1,K574)+1,0)","v":0},"Sahara Power & Natural Resources Direct",15648,null,null,null,null,null,null,null,null,null,null,null,null,{"$f":"IFERROR(VLOOKUP(ROWS($Z$2:Z575),K575:L1323,2,0),\"\")","v":""}]
[null,null,null,null,null,null,null,null,null,null,{"$f":"IF(ISNUMBER(SEARCH($E$3,L576)),MAX($K$1,K575)+1,0)","v":0},"Sahara R.E.A.L",6054,null,null,null,null,null,null,null,null,null,null,null,null,{"$f":"IFERROR(VLOOKUP(ROWS($Z$2:Z576),K576:L1324,2,0),\"\")","v":""}]
[null,null,null,null,null,null,null,null,null,null,{"$f":"IF(ISNUMBER(SEARCH($E$3,L577)),MAX($K$1,K576)+1,0)","v":0},"Sahara R.E.A.L Direct",15651,null,null,null,null,null,null,null,null,null,null,null,null,{"$f":"IFERROR(VLOOKUP(ROWS($Z$2:Z577),K577:L1325,2,0),\"\")","v":""}]
[null,null,null,null,null,null,null,null,null,null,{"$f":"IF(ISNUMBER(SEARCH($E$3,L578)),MAX($K$1,K577)+1,0)","v":0},"Sahara Star Value",10605,null,null,null,null,null,null,null,null,null,null,null,null,{"$f":"IFERROR(VLOOKUP(ROWS($Z$2:Z578),K578:L1326,2,0),\"\")","v":""}]
[null,null,null,null,null,null,null,null,null,null,{"$f":"IF(ISNUMBER(SEARCH($E$3,L579)),MAX($K$1,K578)+1,0)","v":0},"Sahara Star Value Direct",15655,null,null,null,null,null,null,null,null,null,null,null,null,{"$f":"IFERROR(VLOOKUP(ROWS($Z$2:Z579),K579:L1327,2,0),\"\")","v":""}]
[null,null,null,null,null,null,null,null,null,null,{"$f":"IF(ISNUMBER(SEARCH($E$3,L580)),MAX($K$1,K579)+1,0)","v":0},"Sahara Super 20",10538,null,null,null,null,null,null,null,null,null,null,null,null,{"$f":"IFERROR(VLOOKUP(ROWS($Z$2:Z580),K580:L1328,2,0),\"\")","v":""}]
[null,null,null,null,null,null,null,null,null,null,{"$f":"IF(ISNUMBER(SEARCH($E$3,L581)),MAX($K$1,K580)+1,0)","v":0},"Sahara Super 20 Direct",15657,null,null,null,null,null,null,null,null,null,null,null,null,{"$f":"IFERROR(VLOOKUP(ROWS($Z$2:Z581),K581:L1329,2,0),\"\")","v":""}]
[null,null,null,null,null,null,null,null,null,null,{"$f":"IF(ISNUMBER(SEARCH($E$3,L582)),MAX($K$1,K581)+1,0)","v":0},"Sahara Tax Gain",409,null,null,null,null,null,null,null,null,null,null,null,null,{"$f":"IFERROR(VLOOKUP(ROWS($Z$2:Z582),K582:L1330,2,0),\"\")","v":""}]
[null,null,null,null,null,null,null,null,null,null,{"$f":"IF(ISNUMBER(SEARCH($E$3,L583)),MAX($K$1,K582)+1,0)","v":0},"Sahara Tax Gain Direct",15659,null,null,null,null,null,null,null,null,null,null,null,null,{"$f":"IFERROR(VLOOKUP(ROWS($Z$2:Z583),K583:L1331,2,0),\"\")","v":""}]
[null,null,null,null,null,null,null,null,null,null,{"$f":"IF(ISNUMBER(SEARCH($E$3,L584)),MAX($K$1,K583)+1,0)","v":0},"Sahara Wealth Plus Fixed Pricing",2810,null,null,null,null,null,null,null,null,null,null,null,null,{"$f":"IFERROR(VLOOKUP(ROWS($Z$2:Z584),K584:L1332,2,0),\"\")","v":""}]
[null,null,null,null,null,null,null,null,null,null,{"$f":"IF(ISNUMBER(SEARCH($E$3,L585)),MAX($K$1,K584)+1,0)","v":0},"Sahara Wealth Plus Fixed Pricing Direct",15661,null,null,null,null,null,null,null,null,null,null,null,null,{"$f":"IFERROR(VLOOKUP(ROWS($Z$2:Z585),K585:L1333,2,0),\"\")","v":""}]
[null,null,null,null,null,null,null,null,null,null,{"$f":"IF(ISNUMBER(SEARCH($E$3,L586)),MAX($K$1,K585)+1,0)","v":0},"Sahara Wealth Plus Variable Pricing",2877,null,null,null,null,null,null,null,null,null,null,null,null,{"$f":"IFERROR(VLOOKUP(ROWS($Z$2:Z586),K586:L1334,2,0),\"\")","v":""}]
[null,null,null,null,null,null,null,null,null,null,{"$f":"IF(ISNUMBER(SEARCH($E$3,L587)),MAX($K$1,K586)+1,0)","v":0},"Sahara Wealth Plus Variable Pricing Direct",15663,null,null,null,null,null,null,null,null,null,null,null,null,{"$f":"IFERROR(VLOOKUP(ROWS($Z$2:Z587),K587:L1335,2,0),\"\")","v":""}]
[null,null,null,null,null,null,null,null,null,null,{"$f":"IF(ISNUMBER(SEARCH($E$3,L588)),MAX($K$1,K587)+1,0)","v":0},"SBI Bluechip",3083,null,null,null,null,null,null,null,null,null,null,null,null,{"$f":"IFERROR(VLOOKUP(ROWS($Z$2:Z588),K588:L1336,2,0),\"\")","v":""}]
[null,null,null,null,null,null,null,null,null,null,{"$f":"IF(ISNUMBER(SEARCH($E$3,L589)),MAX($K$1,K588)+1,0)","v":0},"SBI Bluechip Direct",16198,null,null,null,null,null,null,null,null,null,null,null,null,{"$f":"IFERROR(VLOOKUP(ROWS($Z$2:Z589),K589:L1337,2,0),\"\")","v":""}]
[null,null,null,null,null,null,null,null,null,null,{"$f":"IF(ISNUMBER(SEARCH($E$3,L590)),MAX($K$1,K589)+1,0)","v":0},"SBI Contra",633,null,null,null,null,null,null,null,null,null,null,null,null,{"$f":"IFERROR(VLOOKUP(ROWS($Z$2:Z590),K590:L1338,2,0),\"\")","v":""}]
[null,null,null,null,null,null,null,null,null,null,{"$f":"IF(ISNUMBER(SEARCH($E$3,L591)),MAX($K$1,K590)+1,0)","v":0},"SBI Contra Direct",16322,null,null,null,null,null,null,null,null,null,null,null,null,{"$f":"IFERROR(VLOOKUP(ROWS($Z$2:Z591),K591:L1339,2,0),\"\")","v":""}]
[null,null,null,null,null,null,null,null,null,null,{"$f":"IF(ISNUMBER(SEARCH($E$3,L592)),MAX($K$1,K591)+1,0)","v":0},"SBI Emerging Businesses",2415,null,null,null,null,null,null,null,null,null,null,null,null,{"$f":"IFERROR(VLOOKUP(ROWS($Z$2:Z592),K592:L1340,2,0),\"\")","v":""}]
[null,null,null,null,null,null,null,null,null,null,{"$f":"IF(ISNUMBER(SEARCH($E$3,L593)),MAX($K$1,K592)+1,0)","v":0},"SBI Emerging Businesses Direct",16324,null,null,null,null,null,null,null,null,null,null,null,null,{"$f":"IFERROR(VLOOKUP(ROWS($Z$2:Z593),K593:L1341,2,0),\"\")","v":""}]
[null,null,null,null,null,null,null,null,null,null,{"$f":"IF(ISNUMBER(SEARCH($E$3,L594)),MAX($K$1,K593)+1,0)","v":0},"SBI FMCG",630,null,null,null,null,null,null,null,null,null,null,null,null,{"$f":"IFERROR(VLOOKUP(ROWS($Z$2:Z594),K594:L1342,2,0),\"\")","v":""}]
[null,null,null,null,null,null,null,null,null,null,{"$f":"IF(ISNUMBER(SEARCH($E$3,L595)),MAX($K$1,K594)+1,0)","v":0},"SBI FMCG Direct",16881,null,null,null,null,null,null,null,null,null,null,null,null,{"$f":"IFERROR(VLOOKUP(ROWS($Z$2:Z595),K595:L1343,2,0),\"\")","v":""}]
[null,null,null,null,null,null,null,null,null,null,{"$f":"IF(ISNUMBER(SEARCH($E$3,L596)),MAX($K$1,K595)+1,0)","v":0},"SBI Infrastructure",5071,null,null,null,null,null,null,null,null,null,null,null,null,{"$f":"IFERROR(VLOOKUP(ROWS($Z$2:Z596),K596:L1344,2,0),\"\")","v":""}]
[null,null,null,null,null,null,null,null,null,null,{"$f":"IF(ISNUMBER(SEARCH($E$3,L597)),MAX($K$1,K596)+1,0)","v":0},"SBI Infrastructure Direct",17161,null,null,null,null,null,null,null,null,null,null,null,null,{"$f":"IFERROR(VLOOKUP(ROWS($Z$2:Z597),K597:L1345,2,0),\"\")","v":""}]
[null,null,null,null,null,null,null,null,null,null,{"$f":"IF(ISNUMBER(SEARCH($E$3,L598)),MAX($K$1,K597)+1,0)","v":0},"SBI IT",631,null,null,null,null,null,null,null,null,null,null,null,null,{"$f":"IFERROR(VLOOKUP(ROWS($Z$2:Z598),K598:L1346,2,0),\"\")","v":""}]
[null,null,null,null,null,null,null,null,null,null,{"$f":"IF(ISNUMBER(SEARCH($E$3,L599)),MAX($K$1,K598)+1,0)","v":0},"SBI IT Direct",16884,null,null,null,null,null,null,null,null,null,null,null,null,{"$f":"IFERROR(VLOOKUP(ROWS($Z$2:Z599),K599:L1347,2,0),\"\")","v":""}]
[null,null,null,null,null,null,null,null,null,null,{"$f":"IF(ISNUMBER(SEARCH($E$3,L600)),MAX($K$1,K599)+1,0)","v":0},"SBI Magnum COMMA",2812,null,null,null,null,null,null,null,null,null,null,null,null,{"$f":"IFERROR(VLOOKUP(ROWS($Z$2:Z600),K600:L1348,2,0),\"\")","v":""}]
[null,null,null,null,null,null,null,null,null,null,{"$f":"IF(ISNUMBER(SEARCH($E$3,L601)),MAX($K$1,K600)+1,0)","v":0},"SBI Magnum COMMA Direct",17523,null,null,null,null,null,null,null,null,null,null,null,null,{"$f":"IFERROR(VLOOKUP(ROWS($Z$2:Z601),K601:L1349,2,0),\"\")","v":""}]
[null,null,null,null,null,null,null,null,null,null,{"$f":"IF(ISNUMBER(SEARCH($E$3,L602)),MAX($K$1,K601)+1,0)","v":0},"SBI Magnum Equity",190,null,null,null,null,null,null,null,null,null,null,null,null,{"$f":"IFERROR(VLOOKUP(ROWS($Z$2:Z602),K602:L1350,2,0),\"\")","v":""}]
[null,null,null,null,null,null,null,null,null,null,{"$f":"IF(ISNUMBER(SEARCH($E$3,L603)),MAX($K$1,K602)+1,0)","v":0},"SBI Magnum Equity Direct",16219,null,null,null,null,null,null,null,null,null,null,null,null,{"$f":"IFERROR(VLOOKUP(ROWS($Z$2:Z603),K603:L1351,2,0),\"\")","v":""}]
[null,null,null,null,null,null,null,null,null,null,{"$f":"IF(ISNUMBER(SEARCH($E$3,L604)),MAX($K$1,K603)+1,0)","v":0},"SBI Magnum Global",201,null,null,null,null,null,null,null,null,null,null,null,null,{"$f":"IFERROR(VLOOKUP(ROWS($Z$2:Z604),K604:L1352,2,0),\"\")","v":""}]
[null,null,null,null,null,null,null,null,null,null,{"$f":"IF(ISNUMBER(SEARCH($E$3,L605)),MAX($K$1,K604)+1,0)","v":0},"SBI Magnum Global Direct",16224,null,null,null,null,null,null,null,null,null,null,null,null,{"$f":"IFERROR(VLOOKUP(ROWS($Z$2:Z605),K605:L1353,2,0),\"\")","v":""}]
[null,null,null,null,null,null,null,null,null,null,{"$f":"IF(ISNUMBER(SEARCH($E$3,L606)),MAX($K$1,K605)+1,0)","v":0},"SBI Magnum Midcap",2662,null,null,null,null,null,null,null,null,null,null,null,null,{"$f":"IFERROR(VLOOKUP(ROWS($Z$2:Z606),K606:L1354,2,0),\"\")","v":""}]
[null,null,null,null,null,null,null,null,null,null,{"$f":"IF(ISNUMBER(SEARCH($E$3,L607)),MAX($K$1,K606)+1,0)","v":0},"SBI Magnum Midcap Direct",16235,null,null,null,null,null,null,null,null,null,null,null,null,{"$f":"IFERROR(VLOOKUP(ROWS($Z$2:Z607),K607:L1355,2,0),\"\")","v":""}]
[null,null,null,null,null,null,null,null,null,null,{"$f":"IF(ISNUMBER(SEARCH($E$3,L608)),MAX($K$1,K607)+1,0)","v":0},"SBI Magnum MultiCap",2859,null,null,null,null,null,null,null,null,null,null,null,null,{"$f":"IFERROR(VLOOKUP(ROWS($Z$2:Z608),K608:L1356,2,0),\"\")","v":""}]
[null,null,null,null,null,null,null,null,null,null,{"$f":"IF(ISNUMBER(SEARCH($E$3,L609)),MAX($K$1,K608)+1,0)","v":0},"SBI Magnum MultiCap Direct",17514,null,null,null,null,null,null,null,null,null,null,null,null,{"$f":"IFERROR(VLOOKUP(ROWS($Z$2:Z609),K609:L1357,2,0),\"\")","v":""}]
[null,null,null,null,null,null,null,null,null,null,{"$f":"IF(ISNUMBER(SEARCH($E$3,L610)),MAX($K$1,K609)+1,0)","v":0},"SBI Magnum Multiplier Plus",197,null,null,null,null,null,null,null,null,null,null,null,null,{"$f":"IFERROR(VLOOKUP(ROWS($Z$2:Z610),K610:L1358,2,0),\"\")","v":""}]
[null,null,null,null,null,null,null,null,null,null,{"$f":"IF(ISNUMBER(SEARCH($E$3,L611)),MAX($K$1,K610)+1,0)","v":0},"SBI Magnum Multiplier Plus Direct",16240,null,null,null,null,null,null,null,null,null,null,null,null,{"$f":"IFERROR(VLOOKUP(ROWS($Z$2:Z611),K611:L1359,2,0),\"\")","v":""}]
[null,null,null,null,null,null,null,null,null,null,{"$f":"IF(ISNUMBER(SEARCH($E$3,L612)),MAX($K$1,K611)+1,0)","v":0},"SBI Magnum Taxgain",198,null,null,null,null,null,null,null,null,null,null,null,null,{"$f":"IFERROR(VLOOKUP(ROWS($Z$2:Z612),K612:L1360,2,0),\"\")","v":""}]
[null,null,null,null,null,null,null,null,null,null,{"$f":"IF(ISNUMBER(SEARCH($E$3,L613)),MAX($K$1,K612)+1,0)","v":0},"SBI Magnum Taxgain Direct",16244,null,null,null,null,null,null,null,null,null,null,null,null,{"$f":"IFERROR(VLOOKUP(ROWS($Z$2:Z613),K613:L1361,2,0),\"\")","v":""}]
[null,null,null,null,null,null,null,null,null,null,{"$f":"IF(ISNUMBER(SEARCH($E$3,L614)),MAX($K$1,K613)+1,0)","v":0},"SBI Nifty Index",1164,null,null,null,null,null,null,null,null,null,null,null,null,{"$f":"IFERROR(VLOOKUP(ROWS($Z$2:Z614),K614:L1362,2,0),\"\")","v":""}]
[null,null,null,null,null,null,null,null,null,null,{"$f":"IF(ISNUMBER(SEARCH($E$3,L615)),MAX($K$1,K614)+1,0)","v":0},"SBI Nifty Index Direct",16233,null,null,null,null,null,null,null,null,null,null,null,null,{"$f":"IFERROR(VLOOKUP(ROWS($Z$2:Z615),K615:L1363,2,0),\"\")","v":""}]
[null,null,null,null,null,null,null,null,null,null,{"$f":"IF(ISNUMBER(SEARCH($E$3,L616)),MAX($K$1,K615)+1,0)","v":0},"SBI Pharma",632,null,null,null,null,null,null,null,null,null,null,null,null,{"$f":"IFERROR(VLOOKUP(ROWS($Z$2:Z616),K616:L1364,2,0),\"\")","v":""}]
[null,null,null,null,null,null,null,null,null,null,{"$f":"IF(ISNUMBER(SEARCH($E$3,L617)),MAX($K$1,K616)+1,0)","v":0},"SBI Pharma Direct",16327,null,null,null,null,null,null,null,null,null,null,null,null,{"$f":"IFERROR(VLOOKUP(ROWS($Z$2:Z617),K617:L1365,2,0),\"\")","v":""}]
[null,null,null,null,null,null,null,null,null,null,{"$f":"IF(ISNUMBER(SEARCH($E$3,L618)),MAX($K$1,K617)+1,0)","v":0},"SBI PSU",11198,null,null,null,null,null,null,null,null,null,null,null,null,{"$f":"IFERROR(VLOOKUP(ROWS($Z$2:Z618),K618:L1366,2,0),\"\")","v":""}]
[null,null,null,null,null,null,null,null,null,null,{"$f":"IF(ISNUMBER(SEARCH($E$3,L619)),MAX($K$1,K618)+1,0)","v":0},"SBI PSU Direct",16311,null,null,null,null,null,null,null,null,null,null,null,null,{"$f":"IFERROR(VLOOKUP(ROWS($Z$2:Z619),K619:L1367,2,0),\"\")","v":""}]
[null,null,null,null,null,null,null,null,null,null,{"$f":"IF(ISNUMBER(SEARCH($E$3,L620)),MAX($K$1,K619)+1,0)","v":0},"SBI Sensex ETF",18077,null,null,null,null,null,null,null,null,null,null,null,null,{"$f":"IFERROR(VLOOKUP(ROWS($Z$2:Z620),K620:L1368,2,0),\"\")","v":""}]
[null,null,null,null,null,null,null,null,null,null,{"$f":"IF(ISNUMBER(SEARCH($E$3,L621)),MAX($K$1,K620)+1,0)","v":0},"Sundaram CAPEX Opp Reg Direct-G",16138,null,null,null,null,null,null,null,null,null,null,null,null,{"$f":"IFERROR(VLOOKUP(ROWS($Z$2:Z621),K621:L1369,2,0),\"\")","v":""}]
[null,null,null,null,null,null,null,null,null,null,{"$f":"IF(ISNUMBER(SEARCH($E$3,L622)),MAX($K$1,K621)+1,0)","v":0},"Sundaram CAPEX Opp Reg-D",2833,null,null,null,null,null,null,null,null,null,null,null,null,{"$f":"IFERROR(VLOOKUP(ROWS($Z$2:Z622),K622:L1370,2,0),\"\")","v":""}]
[null,null,null,null,null,null,null,null,null,null,{"$f":"IF(ISNUMBER(SEARCH($E$3,L623)),MAX($K$1,K622)+1,0)","v":0},"Sundaram CAPEX Opp Reg-G",2832,null,null,null,null,null,null,null,null,null,null,null,null,{"$f":"IFERROR(VLOOKUP(ROWS($Z$2:Z623),K623:L1371,2,0),\"\")","v":""}]
[null,null,null,null,null,null,null,null,null,null,{"$f":"IF(ISNUMBER(SEARCH($E$3,L624)),MAX($K$1,K623)+1,0)","v":0},"Sundaram Energy Opportunities",6223,null,null,null,null,null,null,null,null,null,null,null,null,{"$f":"IFERROR(VLOOKUP(ROWS($Z$2:Z624),K624:L1372,2,0),\"\")","v":""}]
[null,null,null,null,null,null,null,null,null,null,{"$f":"IF(ISNUMBER(SEARCH($E$3,L625)),MAX($K$1,K624)+1,0)","v":0},"Sundaram Energy Opportunities Direct",16142,null,null,null,null,null,null,null,null,null,null,null,null,{"$f":"IFERROR(VLOOKUP(ROWS($Z$2:Z625),K625:L1373,2,0),\"\")","v":""}]
[null,null,null,null,null,null,null,null,null,null,{"$f":"IF(ISNUMBER(SEARCH($E$3,L626)),MAX($K$1,K625)+1,0)","v":0},"Sundaram Entertainment Opportunities Inst#",7617,null,null,null,null,null,null,null,null,null,null,null,null,{"$f":"IFERROR(VLOOKUP(ROWS($Z$2:Z626),K626:L1374,2,0),\"\")","v":""}]
[null,null,null,null,null,null,null,null,null,null,{"$f":"IF(ISNUMBER(SEARCH($E$3,L627)),MAX($K$1,K626)+1,0)","v":0},"Sundaram Entertainment Opportunities Reg",7615,null,null,null,null,null,null,null,null,null,null,null,null,{"$f":"IFERROR(VLOOKUP(ROWS($Z$2:Z627),K627:L1375,2,0),\"\")","v":""}]
[null,null,null,null,null,null,null,null,null,null,{"$f":"IF(ISNUMBER(SEARCH($E$3,L628)),MAX($K$1,K627)+1,0)","v":0},"Sundaram Entertainment Opportunities Reg Direct",16146,null,null,null,null,null,null,null,null,null,null,null,null,{"$f":"IFERROR(VLOOKUP(ROWS($Z$2:Z628),K628:L1376,2,0),\"\")","v":""}]
[null,null,null,null,null,null,null,null,null,null,{"$f":"IF(ISNUMBER(SEARCH($E$3,L629)),MAX($K$1,K628)+1,0)","v":0},"Sundaram Equity Multiplier",4152,null,null,null,null,null,null,null,null,null,null,null,null,{"$f":"IFERROR(VLOOKUP(ROWS($Z$2:Z629),K629:L1377,2,0),\"\")","v":""}]
[null,null,null,null,null,null,null,null,null,null,{"$f":"IF(ISNUMBER(SEARCH($E$3,L630)),MAX($K$1,K629)+1,0)","v":0},"Sundaram Equity Multiplier Direct",16086,null,null,null,null,null,null,null,null,null,null,null,null,{"$f":"IFERROR(VLOOKUP(ROWS($Z$2:Z630),K630:L1378,2,0),\"\")","v":""}]
[null,null,null,null,null,null,null,null,null,null,{"$f":"IF(ISNUMBER(SEARCH($E$3,L631)),MAX($K$1,K630)+1,0)","v":0},"Sundaram Equity Plus",12708,null,null,null,null,null,null,null,null,null,null,null,null,{"$f":"IFERROR(VLOOKUP(ROWS($Z$2:Z631),K631:L1379,2,0),\"\")","v":""}]
[null,null,null,null,null,null,null,null,null,null,{"$f":"IF(ISNUMBER(SEARCH($E$3,L632)),MAX($K$1,K631)+1,0)","v":0},"Sundaram Equity Plus Direct",16088,null,null,null,null,null,null,null,null,null,null,null,null,{"$f":"IFERROR(VLOOKUP(ROWS($Z$2:Z632),K632:L1380,2,0),\"\")","v":""}]
[null,null,null,null,null,null,null,null,null,null,{"$f":"IF(ISNUMBER(SEARCH($E$3,L633)),MAX($K$1,K632)+1,0)","v":0},"Sundaram Equity Plus Direct",16089,null,null,null,null,null,null,null,null,null,null,null,null,{"$f":"IFERROR(VLOOKUP(ROWS($Z$2:Z633),K633:L1381,2,0),\"\")","v":""}]
[null,null,null,null,null,null,null,null,null,null,{"$f":"IF(ISNUMBER(SEARCH($E$3,L634)),MAX($K$1,K633)+1,0)","v":0},"Sundaram Financial Services Opp Inst#",7613,null,null,null,null,null,null,null,null,null,null,null,null,{"$f":"IFERROR(VLOOKUP(ROWS($Z$2:Z634),K634:L1382,2,0),\"\")","v":""}]
[null,null,null,null,null,null,null,null,null,null,{"$f":"IF(ISNUMBER(SEARCH($E$3,L635)),MAX($K$1,K634)+1,0)","v":0},"Sundaram Financial Services Opp Reg",7611,null,null,null,null,null,null,null,null,null,null,null,null,{"$f":"IFERROR(VLOOKUP(ROWS($Z$2:Z635),K635:L1383,2,0),\"\")","v":""}]
[null,null,null,null,null,null,null,null,null,null,{"$f":"IF(ISNUMBER(SEARCH($E$3,L636)),MAX($K$1,K635)+1,0)","v":0},"Sundaram Financial Services Opp Reg Direct",16148,null,null,null,null,null,null,null,null,null,null,null,null,{"$f":"IFERROR(VLOOKUP(ROWS($Z$2:Z636),K636:L1384,2,0),\"\")","v":""}]
[null,null,null,null,null,null,null,null,null,null,{"$f":"IF(ISNUMBER(SEARCH($E$3,L637)),MAX($K$1,K636)+1,0)","v":0},"Sundaram Global Advantage",5449,null,null,null,null,null,null,null,null,null,null,null,null,{"$f":"IFERROR(VLOOKUP(ROWS($Z$2:Z637),K637:L1385,2,0),\"\")","v":""}]
[null,null,null,null,null,null,null,null,null,null,{"$f":"IF(ISNUMBER(SEARCH($E$3,L638)),MAX($K$1,K637)+1,0)","v":0},"Sundaram Global Advantage Direct",17200,null,null,null,null,null,null,null,null,null,null,null,null,{"$f":"IFERROR(VLOOKUP(ROWS($Z$2:Z638),K638:L1386,2,0),\"\")","v":""}]
[null,null,null,null,null,null,null,null,null,null,{"$f":"IF(ISNUMBER(SEARCH($E$3,L639)),MAX($K$1,K638)+1,0)","v":0},"Sundaram Growth Direct",16093,null,null,null,null,null,null,null,null,null,null,null,null,{"$f":"IFERROR(VLOOKUP(ROWS($Z$2:Z639),K639:L1387,2,0),\"\")","v":""}]
[null,null,null,null,null,null,null,null,null,null,{"$f":"IF(ISNUMBER(SEARCH($E$3,L640)),MAX($K$1,K639)+1,0)","v":0},"Sundaram Growth Reg",411,null,null,null,null,null,null,null,null,null,null,null,null,{"$f":"IFERROR(VLOOKUP(ROWS($Z$2:Z640),K640:L1388,2,0),\"\")","v":""}]
[null,null,null,null,null,null,null,null,null,null,{"$f":"IF(ISNUMBER(SEARCH($E$3,L641)),MAX($K$1,K640)+1,0)","v":0},"Sundaram PSU Opportunities",10803,null,null,null,null,null,null,null,null,null,null,null,null,{"$f":"IFERROR(VLOOKUP(ROWS($Z$2:Z641),K641:L1389,2,0),\"\")","v":""}]
[null,null,null,null,null,null,null,null,null,null,{"$f":"IF(ISNUMBER(SEARCH($E$3,L642)),MAX($K$1,K641)+1,0)","v":0},"Sundaram PSU Opportunities Direct",16154,null,null,null,null,null,null,null,null,null,null,null,null,{"$f":"IFERROR(VLOOKUP(ROWS($Z$2:Z642),K642:L1390,2,0),\"\")","v":""}]
[null,null,null,null,null,null,null,null,null,null,{"$f":"IF(ISNUMBER(SEARCH($E$3,L643)),MAX($K$1,K642)+1,0)","v":0},"Sundaram Rural India Reg",3268,null,null,null,null,null,null,null,null,null,null,null,null,{"$f":"IFERROR(VLOOKUP(ROWS($Z$2:Z643),K643:L1391,2,0),\"\")","v":""}]
[null,null,null,null,null,null,null,null,null,null,{"$f":"IF(ISNUMBER(SEARCH($E$3,L644)),MAX($K$1,K643)+1,0)","v":0},"Sundaram Rural India Reg Direct",16163,null,null,null,null,null,null,null,null,null,null,null,null,{"$f":"IFERROR(VLOOKUP(ROWS($Z$2:Z644),K644:L1392,2,0),\"\")","v":""}]
[null,null,null,null,null,null,null,null,null,null,{"$f":"IF(ISNUMBER(SEARCH($E$3,L645)),MAX($K$1,K644)+1,0)","v":0},"Sundaram S.M.I.L.E. Direct",16112,null,null,null,null,null,null,null,null,null,null,null,null,{"$f":"IFERROR(VLOOKUP(ROWS($Z$2:Z645),K645:L1393,2,0),\"\")","v":""}]
[null,null,null,null,null,null,null,null,null,null,{"$f":"IF(ISNUMBER(SEARCH($E$3,L646)),MAX($K$1,K645)+1,0)","v":0},"Sundaram S.M.I.L.E. Inst#",7691,null,null,null,null,null,null,null,null,null,null,null,null,{"$f":"IFERROR(VLOOKUP(ROWS($Z$2:Z646),K646:L1394,2,0),\"\")","v":""}]
[null,null,null,null,null,null,null,null,null,null,{"$f":"IF(ISNUMBER(SEARCH($E$3,L647)),MAX($K$1,K646)+1,0)","v":0},"Sundaram S.M.I.L.E. Reg",2599,null,null,null,null,null,null,null,null,null,null,null,null,{"$f":"IFERROR(VLOOKUP(ROWS($Z$2:Z647),K647:L1395,2,0),\"\")","v":""}]
[null,null,null,null,null,null,null,null,null,null,{"$f":"IF(ISNUMBER(SEARCH($E$3,L648)),MAX($K$1,K647)+1,0)","v":0},"Sundaram Select Focus Inst#",7685,null,null,null,null,null,null,null,null,null,null,null,null,{"$f":"IFERROR(VLOOKUP(ROWS($Z$2:Z648),K648:L1396,2,0),\"\")","v":""}]
[null,null,null,null,null,null,null,null,null,null,{"$f":"IF(ISNUMBER(SEARCH($E$3,L649)),MAX($K$1,K648)+1,0)","v":0},"Sundaram Select Focus Reg",1384,null,null,null,null,null,null,null,null,null,null,null,null,{"$f":"IFERROR(VLOOKUP(ROWS($Z$2:Z649),K649:L1397,2,0),\"\")","v":""}]
[null,null,null,null,null,null,null,null,null,null,{"$f":"IF(ISNUMBER(SEARCH($E$3,L650)),MAX($K$1,K649)+1,0)","v":0},"Sundaram Select Focus Reg Direct",16120,null,null,null,null,null,null,null,null,null,null,null,null,{"$f":"IFERROR(VLOOKUP(ROWS($Z$2:Z650),K650:L1398,2,0),\"\")","v":""}]
[null,null,null,null,null,null,null,null,null,null,{"$f":"IF(ISNUMBER(SEARCH($E$3,L651)),MAX($K$1,K650)+1,0)","v":0},"Sundaram Select Midcap Inst#",7687,null,null,null,null,null,null,null,null,null,null,null,null,{"$f":"IFERROR(VLOOKUP(ROWS($Z$2:Z651),K651:L1399,2,0),\"\")","v":""}]
[null,null,null,null,null,null,null,null,null,null,{"$f":"IF(ISNUMBER(SEARCH($E$3,L652)),MAX($K$1,K651)+1,0)","v":0},"Sundaram Select Midcap Reg",1386,null,null,null,null,null,null,null,null,null,null,null,null,{"$f":"IFERROR(VLOOKUP(ROWS($Z$2:Z652),K652:L1400,2,0),\"\")","v":""}]
[null,null,null,null,null,null,null,null,null,null,{"$f":"IF(ISNUMBER(SEARCH($E$3,L653)),MAX($K$1,K652)+1,0)","v":0},"Sundaram Select Midcap Reg Direct",16125,null,null,null,null,null,null,null,null,null,null,null,null,{"$f":"IFERROR(VLOOKUP(ROWS($Z$2:Z653),K653:L1401,2,0),\"\")","v":""}]
[null,null,null,null,null,null,null,null,null,null,{"$f":"IF(ISNUMBER(SEARCH($E$3,L654)),MAX($K$1,K653)+1,0)","v":0},"Sundaram Taxsaver",687,null,null,null,null,null,null,null,null,null,null,null,null,{"$f":"IFERROR(VLOOKUP(ROWS($Z$2:Z654),K654:L1402,2,0),\"\")","v":""}]
[null,null,null,null,null,null,null,null,null,null,{"$f":"IF(ISNUMBER(SEARCH($E$3,L655)),MAX($K$1,K654)+1,0)","v":0},"Sundaram Taxsaver Direct",16169,null,null,null,null,null,null,null,null,null,null,null,null,{"$f":"IFERROR(VLOOKUP(ROWS($Z$2:Z655),K655:L1403,2,0),\"\")","v":""}]
[null,null,null,null,null,null,null,null,null,null,{"$f":"IF(ISNUMBER(SEARCH($E$3,L656)),MAX($K$1,K655)+1,0)","v":0},"Tata Dividend Yield Direct",16669,null,null,null,null,null,null,null,null,null,null,null,null,{"$f":"IFERROR(VLOOKUP(ROWS($Z$2:Z656),K656:L1404,2,0),\"\")","v":""}]
[null,null,null,null,null,null,null,null,null,null,{"$f":"IF(ISNUMBER(SEARCH($E$3,L657)),MAX($K$1,K656)+1,0)","v":0},"Tata Dividend Yield Plan A",2491,null,null,null,null,null,null,null,null,null,null,null,null,{"$f":"IFERROR(VLOOKUP(ROWS($Z$2:Z657),K657:L1405,2,0),\"\")","v":""}]
[null,null,null,null,null,null,null,null,null,null,{"$f":"IF(ISNUMBER(SEARCH($E$3,L658)),MAX($K$1,K657)+1,0)","v":0},"Tata Equity Opportunities Direct",16679,null,null,null,null,null,null,null,null,null,null,null,null,{"$f":"IFERROR(VLOOKUP(ROWS($Z$2:Z658),K658:L1406,2,0),\"\")","v":""}]
[null,null,null,null,null,null,null,null,null,null,{"$f":"IF(ISNUMBER(SEARCH($E$3,L659)),MAX($K$1,K658)+1,0)","v":0},"Tata Equity Opportunities Plan A",1656,null,null,null,null,null,null,null,null,null,null,null,null,{"$f":"IFERROR(VLOOKUP(ROWS($Z$2:Z659),K659:L1407,2,0),\"\")","v":""}]
[null,null,null,null,null,null,null,null,null,null,{"$f":"IF(ISNUMBER(SEARCH($E$3,L660)),MAX($K$1,K659)+1,0)","v":0},"Tata Equity PE",2267,null,null,null,null,null,null,null,null,null,null,null,null,{"$f":"IFERROR(VLOOKUP(ROWS($Z$2:Z660),K660:L1408,2,0),\"\")","v":""}]
[null,null,null,null,null,null,null,null,null,null,{"$f":"IF(ISNUMBER(SEARCH($E$3,L661)),MAX($K$1,K660)+1,0)","v":0},"Tata Equity PE Direct",16952,null,null,null,null,null,null,null,null,null,null,null,null,{"$f":"IFERROR(VLOOKUP(ROWS($Z$2:Z661),K661:L1409,2,0),\"\")","v":""}]
[null,null,null,null,null,null,null,null,null,null,{"$f":"IF(ISNUMBER(SEARCH($E$3,L662)),MAX($K$1,K661)+1,0)","v":0},"Tata Ethical Direct",16683,null,null,null,null,null,null,null,null,null,null,null,null,{"$f":"IFERROR(VLOOKUP(ROWS($Z$2:Z662),K662:L1410,2,0),\"\")","v":""}]
[null,null,null,null,null,null,null,null,null,null,{"$f":"IF(ISNUMBER(SEARCH($E$3,L663)),MAX($K$1,K662)+1,0)","v":0},"Tata Ethical Plan A",977,null,null,null,null,null,null,null,null,null,null,null,null,{"$f":"IFERROR(VLOOKUP(ROWS($Z$2:Z663),K663:L1411,2,0),\"\")","v":""}]
[null,null,null,null,null,null,null,null,null,null,{"$f":"IF(ISNUMBER(SEARCH($E$3,L664)),MAX($K$1,K663)+1,0)","v":0},"Tata Growing Economies Infrastructure Direct",17507,null,null,null,null,null,null,null,null,null,null,null,null,{"$f":"IFERROR(VLOOKUP(ROWS($Z$2:Z664),K664:L1412,2,0),\"\")","v":""}]
[null,null,null,null,null,null,null,null,null,null,{"$f":"IF(ISNUMBER(SEARCH($E$3,L665)),MAX($K$1,K664)+1,0)","v":0},"Tata Growing Economies Infrastructure Plan A",6929,null,null,null,null,null,null,null,null,null,null,null,null,{"$f":"IFERROR(VLOOKUP(ROWS($Z$2:Z665),K665:L1413,2,0),\"\")","v":""}]
[null,null,null,null,null,null,null,null,null,null,{"$f":"IF(ISNUMBER(SEARCH($E$3,L666)),MAX($K$1,K665)+1,0)","v":0},"Tata Growing Economies Infrastructure Plan B",6931,null,null,null,null,null,null,null,null,null,null,null,null,{"$f":"IFERROR(VLOOKUP(ROWS($Z$2:Z666),K666:L1414,2,0),\"\")","v":""}]
[null,null,null,null,null,null,null,null,null,null,{"$f":"IF(ISNUMBER(SEARCH($E$3,L667)),MAX($K$1,K666)+1,0)","v":0},"Tata Growing Economies Infrastructure Plan B Direct",17508,null,null,null,null,null,null,null,null,null,null,null,null,{"$f":"IFERROR(VLOOKUP(ROWS($Z$2:Z667),K667:L1415,2,0),\"\")","v":""}]
[null,null,null,null,null,null,null,null,null,null,{"$f":"IF(ISNUMBER(SEARCH($E$3,L668)),MAX($K$1,K667)+1,0)","v":0},"Tata Index Nifty Direct",16954,null,null,null,null,null,null,null,null,null,null,null,null,{"$f":"IFERROR(VLOOKUP(ROWS($Z$2:Z668),K668:L1416,2,0),\"\")","v":""}]
[null,null,null,null,null,null,null,null,null,null,{"$f":"IF(ISNUMBER(SEARCH($E$3,L669)),MAX($K$1,K668)+1,0)","v":0},"Tata Index Nifty Plan A",1550,null,null,null,null,null,null,null,null,null,null,null,null,{"$f":"IFERROR(VLOOKUP(ROWS($Z$2:Z669),K669:L1417,2,0),\"\")","v":""}]
[null,null,null,null,null,null,null,null,null,null,{"$f":"IF(ISNUMBER(SEARCH($E$3,L670)),MAX($K$1,K669)+1,0)","v":0},"Tata Index Sensex B#",1553,null,null,null,null,null,null,null,null,null,null,null,null,{"$f":"IFERROR(VLOOKUP(ROWS($Z$2:Z670),K670:L1418,2,0),\"\")","v":""}]
[null,null,null,null,null,null,null,null,null,null,{"$f":"IF(ISNUMBER(SEARCH($E$3,L671)),MAX($K$1,K670)+1,0)","v":0},"Tata Index Sensex Direct",16955,null,null,null,null,null,null,null,null,null,null,null,null,{"$f":"IFERROR(VLOOKUP(ROWS($Z$2:Z671),K671:L1419,2,0),\"\")","v":""}]
[null,null,null,null,null,null,null,null,null,null,{"$f":"IF(ISNUMBER(SEARCH($E$3,L672)),MAX($K$1,K671)+1,0)","v":0},"Tata Index Sensex Plan A",1551,null,null,null,null,null,null,null,null,null,null,null,null,{"$f":"IFERROR(VLOOKUP(ROWS($Z$2:Z672),K672:L1420,2,0),\"\")","v":""}]
[null,null,null,null,null,null,null,null,null,null,{"$f":"IF(ISNUMBER(SEARCH($E$3,L673)),MAX($K$1,K672)+1,0)","v":0},"Tata Indo Global Infrastructure Direct",16701,null,null,null,null,null,null,null,null,null,null,null,null,{"$f":"IFERROR(VLOOKUP(ROWS($Z$2:Z673),K673:L1421,2,0),\"\")","v":""}]
[null,null,null,null,null,null,null,null,null,null,{"$f":"IF(ISNUMBER(SEARCH($E$3,L674)),MAX($K$1,K673)+1,0)","v":0},"Tata Indo Global Infrastructure Plan A",5769,null,null,null,null,null,null,null,null,null,null,null,null,{"$f":"IFERROR(VLOOKUP(ROWS($Z$2:Z674),K674:L1422,2,0),\"\")","v":""}]
[null,null,null,null,null,null,null,null,null,null,{"$f":"IF(ISNUMBER(SEARCH($E$3,L675)),MAX($K$1,K674)+1,0)","v":0},"Tata Infrastructure Direct",16703,null,null,null,null,null,null,null,null,null,null,null,null,{"$f":"IFERROR(VLOOKUP(ROWS($Z$2:Z675),K675:L1423,2,0),\"\")","v":""}]
[null,null,null,null,null,null,null,null,null,null,{"$f":"IF(ISNUMBER(SEARCH($E$3,L676)),MAX($K$1,K675)+1,0)","v":0},"Tata Infrastructure Plan A",2543,null,null,null,null,null,null,null,null,null,null,null,null,{"$f":"IFERROR(VLOOKUP(ROWS($Z$2:Z676),K676:L1424,2,0),\"\")","v":""}]
[null,null,null,null,null,null,null,null,null,null,{"$f":"IF(ISNUMBER(SEARCH($E$3,L677)),MAX($K$1,K676)+1,0)","v":0},"Tata Midcap Growth Direct",16717,null,null,null,null,null,null,null,null,null,null,null,null,{"$f":"IFERROR(VLOOKUP(ROWS($Z$2:Z677),K677:L1425,2,0),\"\")","v":""}]
[null,null,null,null,null,null,null,null,null,null,{"$f":"IF(ISNUMBER(SEARCH($E$3,L678)),MAX($K$1,K677)+1,0)","v":0},"Tata Midcap Growth Plan A",103,null,null,null,null,null,null,null,null,null,null,null,null,{"$f":"IFERROR(VLOOKUP(ROWS($Z$2:Z678),K678:L1426,2,0),\"\")","v":""}]
[null,null,null,null,null,null,null,null,null,null,{"$f":"IF(ISNUMBER(SEARCH($E$3,L679)),MAX($K$1,K678)+1,0)","v":0},"Tata Pure Equity Direct",16729,null,null,null,null,null,null,null,null,null,null,null,null,{"$f":"IFERROR(VLOOKUP(ROWS($Z$2:Z679),K679:L1427,2,0),\"\")","v":""}]
[null,null,null,null,null,null,null,null,null,null,{"$f":"IF(ISNUMBER(SEARCH($E$3,L680)),MAX($K$1,K679)+1,0)","v":0},"Tata Pure Equity Plan A",509,null,null,null,null,null,null,null,null,null,null,null,null,{"$f":"IFERROR(VLOOKUP(ROWS($Z$2:Z680),K680:L1428,2,0),\"\")","v":""}]
[null,null,null,null,null,null,null,null,null,null,{"$f":"IF(ISNUMBER(SEARCH($E$3,L681)),MAX($K$1,K680)+1,0)","v":0},"Tata Retirement Savings Progressive Direct",17020,null,null,null,null,null,null,null,null,null,null,null,null,{"$f":"IFERROR(VLOOKUP(ROWS($Z$2:Z681),K681:L1429,2,0),\"\")","v":""}]
[null,null,null,null,null,null,null,null,null,null,{"$f":"IF(ISNUMBER(SEARCH($E$3,L682)),MAX($K$1,K681)+1,0)","v":0},"Tata Retirement Savings Progressive Plan A",13413,null,null,null,null,null,null,null,null,null,null,null,null,{"$f":"IFERROR(VLOOKUP(ROWS($Z$2:Z682),K682:L1430,2,0),\"\")","v":""}]
[null,null,null,null,null,null,null,null,null,null,{"$f":"IF(ISNUMBER(SEARCH($E$3,L683)),MAX($K$1,K682)+1,0)","v":0},"Tata Tax Saving",212,null,null,null,null,null,null,null,null,null,null,null,null,{"$f":"IFERROR(VLOOKUP(ROWS($Z$2:Z683),K683:L1431,2,0),\"\")","v":""}]
[null,null,null,null,null,null,null,null,null,null,{"$f":"IF(ISNUMBER(SEARCH($E$3,L684)),MAX($K$1,K683)+1,0)","v":0},"Tata Tax Saving Direct",16739,null,null,null,null,null,null,null,null,null,null,null,null,{"$f":"IFERROR(VLOOKUP(ROWS($Z$2:Z684),K684:L1432,2,0),\"\")","v":""}]
[null,null,null,null,null,null,null,null,null,null,{"$f":"IF(ISNUMBER(SEARCH($E$3,L685)),MAX($K$1,K684)+1,0)","v":0},"Taurus Banking & Financial Services",14718,null,null,null,null,null,null,null,null,null,null,null,null,{"$f":"IFERROR(VLOOKUP(ROWS($Z$2:Z685),K685:L1433,2,0),\"\")","v":""}]
[null,null,null,null,null,null,null,null,null,null,{"$f":"IF(ISNUMBER(SEARCH($E$3,L686)),MAX($K$1,K685)+1,0)","v":0},"Taurus Banking & Financial Services Direct",17023,null,null,null,null,null,null,null,null,null,null,null,null,{"$f":"IFERROR(VLOOKUP(ROWS($Z$2:Z686),K686:L1434,2,0),\"\")","v":""}]
[null,null,null,null,null,null,null,null,null,null,{"$f":"IF(ISNUMBER(SEARCH($E$3,L687)),MAX($K$1,K686)+1,0)","v":0},"Taurus Bonanza",43,null,null,null,null,null,null,null,null,null,null,null,null,{"$f":"IFERROR(VLOOKUP(ROWS($Z$2:Z687),K687:L1435,2,0),\"\")","v":""}]
[null,null,null,null,null,null,null,null,null,null,{"$f":"IF(ISNUMBER(SEARCH($E$3,L688)),MAX($K$1,K687)+1,0)","v":0},"Taurus Bonanza Direct",17027,null,null,null,null,null,null,null,null,null,null,null,null,{"$f":"IFERROR(VLOOKUP(ROWS($Z$2:Z688),K688:L1436,2,0),\"\")","v":""}]
[null,null,null,null,null,null,null,null,null,null,{"$f":"IF(ISNUMBER(SEARCH($E$3,L689)),MAX($K$1,K688)+1,0)","v":0},"Taurus Discovery",215,null,null,null,null,null,null,null,null,null,null,null,null,{"$f":"IFERROR(VLOOKUP(ROWS($Z$2:Z689),K689:L1437,2,0),\"\")","v":""}]
[null,null,null,null,null,null,null,null,null,null,{"$f":"IF(ISNUMBER(SEARCH($E$3,L690)),MAX($K$1,K689)+1,0)","v":0},"Taurus Discovery Direct",16656,null,null,null,null,null,null,null,null,null,null,null,null,{"$f":"IFERROR(VLOOKUP(ROWS($Z$2:Z690),K690:L1438,2,0),\"\")","v":""}]
[null,null,null,null,null,null,null,null,null,null,{"$f":"IF(ISNUMBER(SEARCH($E$3,L691)),MAX($K$1,K690)+1,0)","v":0},"Taurus Ethical",10244,null,null,null,null,null,null,null,null,null,null,null,null,{"$f":"IFERROR(VLOOKUP(ROWS($Z$2:Z691),K691:L1439,2,0),\"\")","v":""}]
[null,null,null,null,null,null,null,null,null,null,{"$f":"IF(ISNUMBER(SEARCH($E$3,L692)),MAX($K$1,K691)+1,0)","v":0},"Taurus Ethical Direct",16658,null,null,null,null,null,null,null,null,null,null,null,null,{"$f":"IFERROR(VLOOKUP(ROWS($Z$2:Z692),K692:L1440,2,0),\"\")","v":""}]
[null,null,null,null,null,null,null,null,null,null,{"$f":"IF(ISNUMBER(SEARCH($E$3,L693)),MAX($K$1,K692)+1,0)","v":0},"Taurus Infrastructure",4256,null,null,null,null,null,null,null,null,null,null,null,null,{"$f":"IFERROR(VLOOKUP(ROWS($Z$2:Z693),K693:L1441,2,0),\"\")","v":""}]
[null,null,null,null,null,null,null,null,null,null,{"$f":"IF(ISNUMBER(SEARCH($E$3,L694)),MAX($K$1,K693)+1,0)","v":0},"Taurus Infrastructure Direct",16672,null,null,null,null,null,null,null,null,null,null,null,null,{"$f":"IFERROR(VLOOKUP(ROWS($Z$2:Z694),K694:L1442,2,0),\"\")","v":""}]
[null,null,null,null,null,null,null,null,null,null,{"$f":"IF(ISNUMBER(SEARCH($E$3,L695)),MAX($K$1,K694)+1,0)","v":0},"Taurus Nifty Index",11215,null,null,null,null,null,null,null,null,null,null,null,null,{"$f":"IFERROR(VLOOKUP(ROWS($Z$2:Z695),K695:L1443,2,0),\"\")","v":""}]
[null,null,null,null,null,null,null,null,null,null,{"$f":"IF(ISNUMBER(SEARCH($E$3,L696)),MAX($K$1,K695)+1,0)","v":0},"Taurus Nifty Index Direct",17039,null,null,null,null,null,null,null,null,null,null,null,null,{"$f":"IFERROR(VLOOKUP(ROWS($Z$2:Z696),K696:L1444,2,0),\"\")","v":""}]
[null,null,null,null,null,null,null,null,null,null,{"$f":"IF(ISNUMBER(SEARCH($E$3,L697)),MAX($K$1,K696)+1,0)","v":0},"Taurus Starshare",214,null,null,null,null,null,null,null,null,null,null,null,null,{"$f":"IFERROR(VLOOKUP(ROWS($Z$2:Z697),K697:L1445,2,0),\"\")","v":""}]
[null,null,null,null,null,null,null,null,null,null,{"$f":"IF(ISNUMBER(SEARCH($E$3,L698)),MAX($K$1,K697)+1,0)","v":0},"Taurus Starshare Direct",16705,null,null,null,null,null,null,null,null,null,null,null,null,{"$f":"IFERROR(VLOOKUP(ROWS($Z$2:Z698),K698:L1446,2,0),\"\")","v":""}]
[null,null,null,null,null,null,null,null,null,null,{"$f":"IF(ISNUMBER(SEARCH($E$3,L699)),MAX($K$1,K698)+1,0)","v":0},"Taurus Tax Shield",83,null,null,null,null,null,null,null,null,null,null,null,null,{"$f":"IFERROR(VLOOKUP(ROWS($Z$2:Z699),K699:L1447,2,0),\"\")","v":""}]
[null,null,null,null,null,null,null,null,null,null,{"$f":"IF(ISNUMBER(SEARCH($E$3,L700)),MAX($K$1,K699)+1,0)","v":0},"Taurus Tax Shield Direct",16713,null,null,null,null,null,null,null,null,null,null,null,null,{"$f":"IFERROR(VLOOKUP(ROWS($Z$2:Z700),K700:L1448,2,0),\"\")","v":""}]
[null,null,null,null,null,null,null,null,null,null,{"$f":"IF(ISNUMBER(SEARCH($E$3,L701)),MAX($K$1,K700)+1,0)","v":0},"Templeton India Equity Income",3280,null,null,null,null,null,null,null,null,null,null,null,null,{"$f":"IFERROR(VLOOKUP(ROWS($Z$2:Z701),K701:L1449,2,0),\"\")","v":""}]
[null,null,null,null,null,null,null,null,null,null,{"$f":"IF(ISNUMBER(SEARCH($E$3,L702)),MAX($K$1,K701)+1,0)","v":0},"Templeton India Equity Income Direct",16782,null,null,null,null,null,null,null,null,null,null,null,null,{"$f":"IFERROR(VLOOKUP(ROWS($Z$2:Z702),K702:L1450,2,0),\"\")","v":""}]
[null,null,null,null,null,null,null,null,null,null,{"$f":"IF(ISNUMBER(SEARCH($E$3,L703)),MAX($K$1,K702)+1,0)","v":0},"Templeton India Growth",221,null,null,null,null,null,null,null,null,null,null,null,null,{"$f":"IFERROR(VLOOKUP(ROWS($Z$2:Z703),K703:L1451,2,0),\"\")","v":""}]
[null,null,null,null,null,null,null,null,null,null,{"$f":"IF(ISNUMBER(SEARCH($E$3,L704)),MAX($K$1,K703)+1,0)","v":0},"Templeton India Growth Direct",16824,null,null,null,null,null,null,null,null,null,null,null,null,{"$f":"IFERROR(VLOOKUP(ROWS($Z$2:Z704),K704:L1452,2,0),\"\")","v":""}]
[null,null,null,null,null,null,null,null,null,null,{"$f":"IF(ISNUMBER(SEARCH($E$3,L705)),MAX($K$1,K704)+1,0)","v":0},"Union KBC Equity",12817,null,null,null,null,null,null,null,null,null,null,null,null,{"$f":"IFERROR(VLOOKUP(ROWS($Z$2:Z705),K705:L1453,2,0),\"\")","v":""}]
[null,null,null,null,null,null,null,null,null,null,{"$f":"IF(ISNUMBER(SEARCH($E$3,L706)),MAX($K$1,K705)+1,0)","v":0},"Union KBC Equity Direct",16412,null,null,null,null,null,null,null,null,null,null,null,null,{"$f":"IFERROR(VLOOKUP(ROWS($Z$2:Z706),K706:L1454,2,0),\"\")","v":""}]
[null,null,null,null,null,null,null,null,null,null,{"$f":"IF(ISNUMBER(SEARCH($E$3,L707)),MAX($K$1,K706)+1,0)","v":0},"Union KBC Tax Saver",13521,null,null,null,null,null,null,null,null,null,null,null,null,{"$f":"IFERROR(VLOOKUP(ROWS($Z$2:Z707),K707:L1455,2,0),\"\")","v":""}]
[null,null,null,null,null,null,null,null,null,null,{"$f":"IF(ISNUMBER(SEARCH($E$3,L708)),MAX($K$1,K707)+1,0)","v":0},"Union KBC Tax Saver Direct",16436,null,null,null,null,null,null,null,null,null,null,null,null,{"$f":"IFERROR(VLOOKUP(ROWS($Z$2:Z708),K708:L1456,2,0),\"\")","v":""}]
[null,null,null,null,null,null,null,null,null,null,{"$f":"IF(ISNUMBER(SEARCH($E$3,L709)),MAX($K$1,K708)+1,0)","v":0},"UTI Banking Sector Direct",15967,null,null,null,null,null,null,null,null,null,null,null,null,{"$f":"IFERROR(VLOOKUP(ROWS($Z$2:Z709),K709:L1457,2,0),\"\")","v":""}]
[null,null,null,null,null,null,null,null,null,null,{"$f":"IF(ISNUMBER(SEARCH($E$3,L710)),MAX($K$1,K709)+1,0)","v":0},"UTI Banking Sector Reg",2144,null,null,null,null,null,null,null,null,null,null,null,null,{"$f":"IFERROR(VLOOKUP(ROWS($Z$2:Z710),K710:L1458,2,0),\"\")","v":""}]
[null,null,null,null,null,null,null,null,null,null,{"$f":"IF(ISNUMBER(SEARCH($E$3,L711)),MAX($K$1,K710)+1,0)","v":0},"UTI Contra",3226,null,null,null,null,null,null,null,null,null,null,null,null,{"$f":"IFERROR(VLOOKUP(ROWS($Z$2:Z711),K711:L1459,2,0),\"\")","v":""}]
[null,null,null,null,null,null,null,null,null,null,{"$f":"IF(ISNUMBER(SEARCH($E$3,L712)),MAX($K$1,K711)+1,0)","v":0},"UTI Contra Direct",15876,null,null,null,null,null,null,null,null,null,null,null,null,{"$f":"IFERROR(VLOOKUP(ROWS($Z$2:Z712),K712:L1460,2,0),\"\")","v":""}]
[null,null,null,null,null,null,null,null,null,null,{"$f":"IF(ISNUMBER(SEARCH($E$3,L713)),MAX($K$1,K712)+1,0)","v":0},"UTI Dividend Yield",2730,null,null,null,null,null,null,null,null,null,null,null,null,{"$f":"IFERROR(VLOOKUP(ROWS($Z$2:Z713),K713:L1461,2,0),\"\")","v":""}]
[null,null,null,null,null,null,null,null,null,null,{"$f":"IF(ISNUMBER(SEARCH($E$3,L714)),MAX($K$1,K713)+1,0)","v":0},"UTI Dividend Yield Direct",15948,null,null,null,null,null,null,null,null,null,null,null,null,{"$f":"IFERROR(VLOOKUP(ROWS($Z$2:Z714),K714:L1462,2,0),\"\")","v":""}]
[null,null,null,null,null,null,null,null,null,null,{"$f":"IF(ISNUMBER(SEARCH($E$3,L715)),MAX($K$1,K714)+1,0)","v":0},"UTI Energy",6726,null,null,null,null,null,null,null,null,null,null,null,null,{"$f":"IFERROR(VLOOKUP(ROWS($Z$2:Z715),K715:L1463,2,0),\"\")","v":""}]
[null,null,null,null,null,null,null,null,null,null,{"$f":"IF(ISNUMBER(SEARCH($E$3,L716)),MAX($K$1,K715)+1,0)","v":0},"UTI Energy Direct",15887,null,null,null,null,null,null,null,null,null,null,null,null,{"$f":"IFERROR(VLOOKUP(ROWS($Z$2:Z716),K716:L1464,2,0),\"\")","v":""}]
[null,null,null,null,null,null,null,null,null,null,{"$f":"IF(ISNUMBER(SEARCH($E$3,L717)),MAX($K$1,K716)+1,0)","v":0},"UTI Equity",247,null,null,null,null,null,null,null,null,null,null,null,null,{"$f":"IFERROR(VLOOKUP(ROWS($Z$2:Z717),K717:L1465,2,0),\"\")","v":""}]
[null,null,null,null,null,null,null,null,null,null,{"$f":"IF(ISNUMBER(SEARCH($E$3,L718)),MAX($K$1,K717)+1,0)","v":0},"UTI Equity Direct",15714,null,null,null,null,null,null,null,null,null,null,null,null,{"$f":"IFERROR(VLOOKUP(ROWS($Z$2:Z718),K718:L1466,2,0),\"\")","v":""}]
[null,null,null,null,null,null,null,null,null,null,{"$f":"IF(ISNUMBER(SEARCH($E$3,L719)),MAX($K$1,K718)+1,0)","v":0},"UTI Equity Tax Savings",724,null,null,null,null,null,null,null,null,null,null,null,null,{"$f":"IFERROR(VLOOKUP(ROWS($Z$2:Z719),K719:L1467,2,0),\"\")","v":""}]
[null,null,null,null,null,null,null,null,null,null,{"$f":"IF(ISNUMBER(SEARCH($E$3,L720)),MAX($K$1,K719)+1,0)","v":0},"UTI Equity Tax Savings Direct",15723,null,null,null,null,null,null,null,null,null,null,null,null,{"$f":"IFERROR(VLOOKUP(ROWS($Z$2:Z720),K720:L1468,2,0),\"\")","v":""}]
[null,null,null,null,null,null,null,null,null,null,{"$f":"IF(ISNUMBER(SEARCH($E$3,L721)),MAX($K$1,K720)+1,0)","v":0},"UTI India Lifestyle",5437,null,null,null,null,null,null,null,null,null,null,null,null,{"$f":"IFERROR(VLOOKUP(ROWS($Z$2:Z721),K721:L1469,2,0),\"\")","v":""}]
[null,null,null,null,null,null,null,null,null,null,{"$f":"IF(ISNUMBER(SEARCH($E$3,L722)),MAX($K$1,K721)+1,0)","v":0},"UTI India Lifestyle Direct",15894,null,null,null,null,null,null,null,null,null,null,null,null,{"$f":"IFERROR(VLOOKUP(ROWS($Z$2:Z722),K722:L1470,2,0),\"\")","v":""}]
[null,null,null,null,null,null,null,null,null,null,{"$f":"IF(ISNUMBER(SEARCH($E$3,L723)),MAX($K$1,K722)+1,0)","v":0},"UTI Infrastructure",2140,null,null,null,null,null,null,null,null,null,null,null,null,{"$f":"IFERROR(VLOOKUP(ROWS($Z$2:Z723),K723:L1471,2,0),\"\")","v":""}]
[null,null,null,null,null,null,null,null,null,null,{"$f":"IF(ISNUMBER(SEARCH($E$3,L724)),MAX($K$1,K723)+1,0)","v":0},"UTI Infrastructure Direct",15900,null,null,null,null,null,null,null,null,null,null,null,null,{"$f":"IFERROR(VLOOKUP(ROWS($Z$2:Z724),K724:L1472,2,0),\"\")","v":""}]
[null,null,null,null,null,null,null,null,null,null,{"$f":"IF(ISNUMBER(SEARCH($E$3,L725)),MAX($K$1,K724)+1,0)","v":0},"UTI Leadership Equity",3099,null,null,null,null,null,null,null,null,null,null,null,null,{"$f":"IFERROR(VLOOKUP(ROWS($Z$2:Z725),K725:L1473,2,0),\"\")","v":""}]
[null,null,null,null,null,null,null,null,null,null,{"$f":"IF(ISNUMBER(SEARCH($E$3,L726)),MAX($K$1,K725)+1,0)","v":0},"UTI Leadership Equity Direct",15907,null,null,null,null,null,null,null,null,null,null,null,null,{"$f":"IFERROR(VLOOKUP(ROWS($Z$2:Z726),K726:L1474,2,0),\"\")","v":""}]
[null,null,null,null,null,null,null,null,null,null,{"$f":"IF(ISNUMBER(SEARCH($E$3,L727)),MAX($K$1,K726)+1,0)","v":0},"UTI Master Plus '91",241,null,null,null,null,null,null,null,null,null,null,null,null,{"$f":"IFERROR(VLOOKUP(ROWS($Z$2:Z727),K727:L1475,2,0),\"\")","v":""}]
[null,null,null,null,null,null,null,null,null,null,{"$f":"IF(ISNUMBER(SEARCH($E$3,L728)),MAX($K$1,K727)+1,0)","v":0},"UTI Master Plus '91 Direct",15956,null,null,null,null,null,null,null,null,null,null,null,null,{"$f":"IFERROR(VLOOKUP(ROWS($Z$2:Z728),K728:L1476,2,0),\"\")","v":""}]
[null,null,null,null,null,null,null,null,null,null,{"$f":"IF(ISNUMBER(SEARCH($E$3,L729)),MAX($K$1,K728)+1,0)","v":0},"UTI Master Value",543,null,null,null,null,null,null,null,null,null,null,null,null,{"$f":"IFERROR(VLOOKUP(ROWS($Z$2:Z729),K729:L1477,2,0),\"\")","v":""}]
[null,null,null,null,null,null,null,null,null,null,{"$f":"IF(ISNUMBER(SEARCH($E$3,L730)),MAX($K$1,K729)+1,0)","v":0},"UTI Master Value Direct",15799,null,null,null,null,null,null,null,null,null,null,null,null,{"$f":"IFERROR(VLOOKUP(ROWS($Z$2:Z730),K730:L1478,2,0),\"\")","v":""}]
[null,null,null,null,null,null,null,null,null,null,{"$f":"IF(ISNUMBER(SEARCH($E$3,L731)),MAX($K$1,K730)+1,0)","v":0},"UTI Mastershare",22,null,null,null,null,null,null,null,null,null,null,null,null,{"$f":"IFERROR(VLOOKUP(ROWS($Z$2:Z731),K731:L1479,2,0),\"\")","v":""}]
[null,null,null,null,null,null,null,null,null,null,{"$f":"IF(ISNUMBER(SEARCH($E$3,L732)),MAX($K$1,K731)+1,0)","v":0},"UTI Mastershare Direct",15789,null,null,null,null,null,null,null,null,null,null,null,null,{"$f":"IFERROR(VLOOKUP(ROWS($Z$2:Z732),K732:L1480,2,0),\"\")","v":""}]
[null,null,null,null,null,null,null,null,null,null,{"$f":"IF(ISNUMBER(SEARCH($E$3,L733)),MAX($K$1,K732)+1,0)","v":0},"UTI Mid Cap",2138,null,null,null,null,null,null,null,null,null,null,null,null,{"$f":"IFERROR(VLOOKUP(ROWS($Z$2:Z733),K733:L1481,2,0),\"\")","v":""}]
[null,null,null,null,null,null,null,null,null,null,{"$f":"IF(ISNUMBER(SEARCH($E$3,L734)),MAX($K$1,K733)+1,0)","v":0},"UTI Mid Cap Direct",15920,null,null,null,null,null,null,null,null,null,null,null,null,{"$f":"IFERROR(VLOOKUP(ROWS($Z$2:Z734),K734:L1482,2,0),\"\")","v":""}]
[null,null,null,null,null,null,null,null,null,null,{"$f":"IF(ISNUMBER(SEARCH($E$3,L735)),MAX($K$1,K734)+1,0)","v":0},"UTI MNC",544,null,null,null,null,null,null,null,null,null,null,null,null,{"$f":"IFERROR(VLOOKUP(ROWS($Z$2:Z735),K735:L1483,2,0),\"\")","v":""}]
[null,null,null,null,null,null,null,null,null,null,{"$f":"IF(ISNUMBER(SEARCH($E$3,L736)),MAX($K$1,K735)+1,0)","v":0},"UTI MNC Direct",15820,null,null,null,null,null,null,null,null,null,null,null,null,{"$f":"IFERROR(VLOOKUP(ROWS($Z$2:Z736),K736:L1484,2,0),\"\")","v":""}]
[null,null,null,null,null,null,null,null,null,null,{"$f":"IF(ISNUMBER(SEARCH($E$3,L737)),MAX($K$1,K736)+1,0)","v":0},"UTI Nifty Index",757,null,null,null,null,null,null,null,null,null,null,null,null,{"$f":"IFERROR(VLOOKUP(ROWS($Z$2:Z737),K737:L1485,2,0),\"\")","v":""}]
[null,null,null,null,null,null,null,null,null,null,{"$f":"IF(ISNUMBER(SEARCH($E$3,L738)),MAX($K$1,K737)+1,0)","v":0},"UTI Nifty Index Direct",15830,null,null,null,null,null,null,null,null,null,null,null,null,{"$f":"IFERROR(VLOOKUP(ROWS($Z$2:Z738),K738:L1486,2,0),\"\")","v":""}]
[null,null,null,null,null,null,null,null,null,null,{"$f":"IF(ISNUMBER(SEARCH($E$3,L739)),MAX($K$1,K738)+1,0)","v":0},"UTI Opportunities",2820,null,null,null,null,null,null,null,null,null,null,null,null,{"$f":"IFERROR(VLOOKUP(ROWS($Z$2:Z739),K739:L1487,2,0),\"\")","v":""}]
[null,null,null,null,null,null,null,null,null,null,{"$f":"IF(ISNUMBER(SEARCH($E$3,L740)),MAX($K$1,K739)+1,0)","v":0},"UTI Opportunities Direct",15927,null,null,null,null,null,null,null,null,null,null,null,null,{"$f":"IFERROR(VLOOKUP(ROWS($Z$2:Z740),K740:L1488,2,0),\"\")","v":""}]
[null,null,null,null,null,null,null,null,null,null,{"$f":"IF(ISNUMBER(SEARCH($E$3,L741)),MAX($K$1,K740)+1,0)","v":0},"UTI Pharma & Healthcare",654,null,null,null,null,null,null,null,null,null,null,null,null,{"$f":"IFERROR(VLOOKUP(ROWS($Z$2:Z741),K741:L1489,2,0),\"\")","v":""}]
[null,null,null,null,null,null,null,null,null,null,{"$f":"IF(ISNUMBER(SEARCH($E$3,L742)),MAX($K$1,K741)+1,0)","v":0},"UTI Pharma & Healthcare Direct",15932,null,null,null,null,null,null,null,null,null,null,null,null,{"$f":"IFERROR(VLOOKUP(ROWS($Z$2:Z742),K742:L1490,2,0),\"\")","v":""}]
[null,null,null,null,null,null,null,null,null,null,{"$f":"IF(ISNUMBER(SEARCH($E$3,L743)),MAX($K$1,K742)+1,0)","v":0},"UTI Services Industries",657,null,null,null,null,null,null,null,null,null,null,null,null,{"$f":"IFERROR(VLOOKUP(ROWS($Z$2:Z743),K743:L1491,2,0),\"\")","v":""}]
[null,null,null,null,null,null,null,null,null,null,{"$f":"IF(ISNUMBER(SEARCH($E$3,L744)),MAX($K$1,K743)+1,0)","v":0},"UTI Services Industries Direct",15939,null,null,null,null,null,null,null,null,null,null,null,null,{"$f":"IFERROR(VLOOKUP(ROWS($Z$2:Z744),K744:L1492,2,0),\"\")","v":""}]
[null,null,null,null,null,null,null,null,null,null,{"$f":"IF(ISNUMBER(SEARCH($E$3,L745)),MAX($K$1,K744)+1,0)","v":0},"UTI Top 100",10533,null,null,null,null,null,null,null,null,null,null,null,null,{"$f":"IFERROR(VLOOKUP(ROWS($Z$2:Z745),K745:L1493,2,0),\"\")","v":""}]
[null,null,null,null,null,null,null,null,null,null,{"$f":"IF(ISNUMBER(SEARCH($E$3,L746)),MAX($K$1,K745)+1,0)","v":0},"UTI Top 100 Direct",15845,null,null,null,null,null,null,null,null,null,null,null,null,{"$f":"IFERROR(VLOOKUP(ROWS($Z$2:Z746),K746:L1494,2,0),\"\")","v":""}]
[null,null,null,null,null,null,null,null,null,null,{"$f":"IF(ISNUMBER(SEARCH($E$3,L747)),MAX($K$1,K746)+1,0)","v":0},"UTI Transportation and Logistics",2142,null,null,null,null,null,null,null,null,null,null,null,null,{"$f":"IFERROR(VLOOKUP(ROWS($Z$2:Z747),K747:L1495,2,0),\"\")","v":""}]
[null,null,null,null,null,null,null,null,null,null,{"$f":"IF(ISNUMBER(SEARCH($E$3,L748)),MAX($K$1,K747)+1,0)","v":0},"UTI Transportation and Logistics Direct",15955,null,null,null,null,null,null,null,null,null,null,null,null,{"$f":"IFERROR(VLOOKUP(ROWS($Z$2:Z748),K748:L1496,2,0),\"\")","v":""}]
[null,null,null,null,null,null,null,null,null,null,{"$f":"IF(ISNUMBER(SEARCH($E$3,L749)),MAX($K$1,K748)+1,0)","v":0},"UTI Wealth Builder Series II Direct",15963,null,null,null,null,null,null,null,null,null,null,null,null,{"$f":"IFERROR(VLOOKUP(ROWS($Z$2:Z749),K749:L1497,2,0),\"\")","v":""}]
[null,null,null,null,null,null,null,null,null,null,{"$f":"IF(ISNUMBER(SEARCH($E$3,L750)),MAX($K$1,K749)+1,0)","v":0},"UTI Wealth Builder Series II Retail",9758]